Workbook

Sheet Generators_PL
H1: Residential Price List
H2: EFFECTIVE DATE: 05/01/2023
H3: Pricing is in USD
A5: *denotes new or updated models
A6: Specification # | B6: Description | C6: Standby (kW) | D6: LCB (Amp) | E6: Net Price | F6: List Price | G6: MSRP | H6: MAP
A7: RESIDENTIAL GENERATOR PRICE LIST
A9: AIR-COOLED AUTOMATIC STANDBY GENERATOR, LPG, COLOR : KOHLER CASHMERE
A10: Standard Features: cUL-US Approval, Steel 58 dBA Sound Shield, Standard Air Intake, VSC Controller with 2.5-Amp Battery Charger, Flexible Fuel Line, Hydraulic Magnetic Type Breaker, Five-Year Comprehensive/ 18-Month Off-Grid Warranty, Field Convertible to Natural Gas Fuel
A12: 6VSG-QS18 | B12: 6VSG, 48V, Oil Makeup kit | C12: 6 | D12: N/A | E12: =F12*F$4 -> 0 | F12: 6885 | G12: =VLOOKUP($A12,'[1]CURRENT PRICING'!$B:$F,4,FALSE) -> 5585 | H12: =VLOOKUP($A12,'[1]CURRENT PRICING'!$B:$F,5,FALSE) -> 5474
A13: 6VSG-QS19 | B13: 6VSG, 36V, Oil Makeup Kit, Comm Kit | C13: 6 | D13: N/A | E13: 0 | F13: 7135 | G13: =VLOOKUP($A13,'[1]CURRENT PRICING'!$B:$F,4,FALSE) -> 5788 | H13: =VLOOKUP($A13,'[1]CURRENT PRICING'!$B:$F,5,FALSE) -> 5672
A14: 6VSG-QS20 | B14: 6VSG, 48V, Oil Makeup Kit, Comm Kit | C14: 6 | D14: N/A | E14: 0 | F14: 6995 | G14: =VLOOKUP($A14,'[1]CURRENT PRICING'!$B:$F,4,FALSE) -> 5675 | H14: =VLOOKUP($A14,'[1]CURRENT PRICING'!$B:$F,5,FALSE) -> 5561
A15: 6VSG-QS21 | B15: 6VSG, 48V | C15: 6 | D15: N/A | E15: 0 | F15: 6592 | G15: =VLOOKUP($A15,'[1]CURRENT PRICING'!$B:$F,4,FALSE) -> 5348 | H15: =VLOOKUP($A15,'[1]CURRENT PRICING'!$B:$F,5,FALSE) -> 5241
A16: 6VSG-QS22 | B16: 6VSG, 24V | C16: 6 | D16: N/A | E16: 0 | F16: 6915 | G16: =VLOOKUP($A16,'[1]CURRENT PRICING'!$B:$F,4,FALSE) -> 5610 | H16: =VLOOKUP($A16,'[1]CURRENT PRICING'!$B:$F,5,FALSE) -> 5497
A17: AIR-COOLED AUTOMATIC STANDBY GENERATOR, NATURAL GAS, COLOR : KOHLER CASHMERE
A18: Standard Features: UL2200/CSA Approval, Battery Cables, Fuel Solenoid Valve & Secondary Regulator, Oil Drain Extension With Shutoff Valve, Rodent-Resistant Construction, Critical Silencer, Sound-Deadening, Flame-Retardant Sound Shield Foam, Carb- And EPA-Certified Fuel System, Flex Fuel Line, Easy-Connect Terminal Block, Five-Year Comprehensive Warranty, Field Convertible to LPG Fuel, OnCue Plus
A20: 10RESV-QS8 | B20: 10RESV, 1 PH, 240V, UL/cUL | C20: 10 | D20: 50 | E20: =F20*F$4 -> 0 | F20: 4180 | G20: 3395 | H20: 3325
A21: 10RESVL-100LC12 | B21: 10RESVL,RXT 100 Amp, LC-12 spaces, NEMA1 | C21: 10 | D21: 50 | E21: =F21*F$4 -> 0 | F21: 4865 | G21: 3950 | H21: 3870
A22: 12RES-QS11 | B22: 12RES, 1 PH, 120/240V, UL/cUL (No OnCue Plus on ADC Controller) | C22: 12 | D22: 40 | E22: 0 | F22: 6195 | G22: 5025 | H22: 4925
A23: 12RESV-QS8 | B23: 12RESV, 1 PH, 240V, UL/cUL | C23: 12 | D23: 60 | E23: 0 | F23: 4745 | G23: 3845 | H23: 3770
A24: 12RESVL-100LC12 | B24: 12RESVL,RXT 100 Amp, LC-12 spaces, NEMA1 | C24: 12 | D24: 60 | E24: 0 | F24: 5430 | G24: 4405 | H24: 4315
A25: 14RCA-QS5 | B25: 14RCA, 1PH, 240V, cUL/CSA - Mossy Oak Shadow Grass Habitat | C25: 14 | D25: 70 | E25: 0 | F25: 6535 | G25: 5300 | H25: 5195
A26: 14RCA-QS6 | B26: 14RCA, 1 PH, 240V, cUL/US, CSA | C26: 14 | D26: 70 | E26: 0 | F26: 5335 | G26: 4325 | H26: 4240
A27: 14RCA-QS7 | B27: 14RCA, 3 PH, 208V, cUL, CSA | C27: 14 | D27: 50 | E27: 0 | F27: 5535 | G27: 4490 | H27: 4400
A28: 14RCA-QS8 | B28: 14RCA, 3 PH, 240V, cUL, CSA | C28: 14 | D28: 50 | E28: 0 | F28: 5535 | G28: 4490 | H28: 4400
A29: 14RCA-QS9 | B29: 14RCA, 3 PH, 480V, cUL, CSA | C29: 14 | D29: 25 | E29: 0 | F29: 5535 | G29: 4490 | H29: 4400
A30: 14RCA-QS10 | B30: 14RCA, 1PH, 240V, cUL/CSA - Mossy Oak Break-Up Country | C30: 14 | D30: 70 | E30: 0 | F30: 6535 | G30: 5300 | H30: 5195
A31: 14RCA-QS11 | B31: 14RCA, 1PH, 240V, cUL/CSA - Mossy Oak Original Bottomland | C31: 14 | D31: 70 | E31: 0 | F31: 6535 | G31: 5300 | H31: 5195
A32: 14RCAL-200SELS | B32: 14RCAL,RXT 200 Amp,SE,Load Shed,NEMA 3R | C32: 14 | D32: 70 | E32: 0 | F32: 6340 | G32: 5215 | H32: 5110
A33: 14RCAL-100LC16 | B33: 14RCA, 1 PH, 240V, cUL, RXT 100 AMP | C33: 14 | D33: 70 | E33: 0 | F33: 6020 | G33: 4885 | H33: 4790
A34: 14RESAL-100LC16 | B34: 14RESAL, RXT 100 Amp, LC, NEMA 1 | C34: 14 | D34: 70 | E34: 0 | F34: 5820 | G34: 4725 | H34: 4630
A35: 14RESAL-200SELS | B35: 14RESAL,RXT 200 Amp,SE,Load Shed,NEMA 3R | C35: 14 | D35: 70 | E35: 0 | F35: 6140 | G35: 5055 | H35: 4950
A36: AIR-COOLED AUTOMATIC STANDBY GENERATOR, NATURAL GAS, COLOR : KOHLER CASHMERE
A37: Standard Features: UL2200/CSA Approval, Battery Cables, Fuel Solenoid Valve & Secondary Regulator, Oil Drain Extension With Shutoff Valve, Rodent-Resistant Construction, Critical Silencer, Sound-Deadening, Flame-Retardant Sound Shield Foam, Carb- And EPA-Certified Fuel System, Flex Fuel Line, Easy-Connect Terminal Block, Five-Year Comprehensive Warranty, Field Convertible to LPG Fuel, OnCue Plus
A39: 14RESA-QS32 | B39: 14RESA, 1 PH, 240V, cUL/US, CSA | C39: 14 | D39: 70 | E39: =F39*F$4 -> 0 | F39: 5135 | G39: 4165 | H39: 4080
A40: 14RESA-QS33 | B40: 14RESA, 3 PH, 208V, cUL/US, CSA | C40: 14 | D40: 50 | E40: 0 | F40: 5335 | G40: 4325 | H40: 4240
A41: 14RESA-QS34 | B41: 14RESA, 3 PH, 240V, cUL/US, CSA | C41: 14 | D41: 50 | E41: 0 | F41: 5335 | G41: 4325 | H41: 4240
A42: 14RESA-QS35 | B42: 14RESA, 3 PH, 480V, cUL/US, CSA | C42: 14 | D42: 25 | E42: 0 | F42: 5335 | G42: 4325 | H42: 4240
A43: 20RCA-QS5 | B43: 20RCA, 1PH, 240V, cUL/CSA - Mossy Oak Shadow Grass Habitat | C43: 20 | D43: 100 | E43: 0 | F43: 7400 | G43: 6535 | H43: 6405
A44: 20RCA-QS6 | B44: 20RCA, 1 PH, 240V, cUL/US, CSA | C44: 20 | D44: 100 | E44: 0 | F44: 6200 | G44: 5550 | H44: 5440
A45: 20RCA-QS7 | B45: 20RCA, 3 PH, 208V, cUL/US, CSA | C45: 20 | D45: 70 | E45: 0 | F45: 6400 | G45: 5715 | H45: 5600
A46: 20RCA-QS8 | B46: 20RCA, 3 PH, 240V, cUL/US, CSA | C46: 20 | D46: 60 | E46: 0 | F46: 6400 | G46: 5715 | H46: 5600
A47: 20RCA-QS9 | B47: 20RCA, 3 PH, 480V, cUL/US, CSA | C47: 20 | D47: 30 | E47: 0 | F47: 6400 | G47: 5715 | H47: 5600
A48: 20RCA-QS10 | B48: 20RCA, 1PH, 240V, cUL/CSA - Mossy Oak Break-Up Country | C48: 20 | D48: 100 | E48: 0 | F48: 7400 | G48: 6535 | H48: 6405
A49: 20RCA-QS11 | B49: 20RCA, 1PH, 240V, cUL/CSA - Mossy Oak Original Bottomland | C49: 20 | D49: 100 | E49: 0 | F49: 7400 | G49: 6535 | H49: 6405
A50: 20RCAL-200SELS | B50: 20RCAL, RXT 200 A SE, N3R, w/LOAD Man | C50: 20 | D50: 100 | E50: 0 | F50: 7205 | G50: 6440 | H50: 6310
A51: 20RESCL-200SELS | B51: 20RESCL, RXT 200 Amp, SE, Load Shed Kit, NEMA 3R | C51: 20 | D51: 100 | E51: 0 | F51: 7005 | G51: 6275 | H51: 6145
A52: 20RESC-QS15 | B52: 20RESC, 1 PH, 240V, cUL/US, CSA | C52: 20 | D52: 100 | E52: 0 | F52: 6000 | G52: 5385 | H52: 5275
A53: 20RESC-QS16 | B53: 20RESC, 3 PH, 208V, cUL/US, CSA | C53: 20 | D53: 70 | E53: 0 | F53: 6200 | G53: 5550 | H53: 5440
A54: 20RESC-QS17 | B54: 20RESC, 3 PH, 240V, cUL/US, CSA | C54: 20 | D54: 60 | E54: 0 | F54: 6200 | G54: 5550 | H54: 5440
A55: 26RCA-QS1 | B55: 26RCA, 1 PH, 240V, cUL, CSA | C55: 26 | D55: 125 | E55: 0 | F55: 7935 | G55: 6520 | H55: 6390
A56: 26RCA-QS50 | B56: 26RCA, 1 PH, 240V, cUL, CSA, Cold Weather Kit | C56: 26 | D56: 125 | E56: 0 | F56: 8675 | G56: 7130 | H56: 6985
A57: 26RCA-QS5 | B57: 26RCA, 1 PH, 240V, cUL, CSA, Mossy Oak Shadow Grass Habitat | C57: 26 | D57: 125 | E57: 0 | F57: 9135 | G57: 7505 | H57: 7355
A58: 26RCA-QS10 | B58: 26RCA, 1 PH, 240V, cUL, CSA, Mossy Oak Break-Up Country | C58: 26 | D58: 125 | E58: 0 | F58: 9135 | G58: 7505 | H58: 7355
A59: 26RCA-QS11 | B59: 26RCA, 1 PH, 240V, cUL, CSA, Mossy Oak Original Bottomland | C59: 26 | D59: 125 | E59: 0 | F59: 9135 | G59: 7505 | H59: 7355
A60: 26RCAL-200SELS | B60: 26RCAL, RXT 200 Amp, SE, N3R, w/LOAD Man | C60: 26 | D60: 125 | E60: 0 | F60: 8940 | G60: 7340 | H60: 7195
A61: LIQUID-COOLED AUTOMATIC STANDBY GENERATOR, NG/LP, Color: Kohler Cashmere
A62: Standard Features: UL2200/CSA, 60 Hz, Aluminum Sound Shield, Unit Mounted Radiator, Standard Air Intake, RDC2 Controller which includes a 2.5AMP Battery Charger, Flexible Fuel Lines, Coolant in generator, 45 C Cooling System and 5-Year Comprehensive Warranty, OnCue Plus
A64: 24RCLA-QS1 | B64: 24RCLA, 1 PH, 240V, UL, CSA | C64: 24 | D64: 100 | E64: =F64*F$4 -> 0 | F64: 15675 | G64: 12730 | H64: 12475
A65: 24RCLA-QS2 | B65: 24RCLA, 3 PH, 208V, UL, CSA | C65: 24 | D65: 90 | E65: 0 | F65: 15675 | G65: 12730 | H65: 12475
A66: 24RCLA-QS3 | B66: 24RCLA, 3 PH, 240V, UL, CSA | C66: 24 | D66: 80 | E66: 0 | F66: 15675 | G66: 12730 | H66: 12475
A67: 24RCLA-QS4 | B67: 24RCLA, 3 PH, 480V, UL, CSA | C67: 24 | D67: 40 | E67: 0 | F67: 15675 | G67: 12730 | H67: 12475
A68: 24RCLA-QS50 | B68: 24RCLA, 1 PH, 240V, UL, CSA, Blk Heater | C68: 24 | D68: 100 | E68: 0 | F68: 16280 | G68: 13225 | H68: 12960
A69: 30RCLA-QS1 | B69: 30RCLA, 1 PH, 240V, UL, CSA | C69: 30 | D69: 150 | E69: 0 | F69: 17895 | G69: 14535 | H69: 14245
A70: 30RCLA-QS2 | B70: 30RCLA, 3 PH, 208V, UL, CSA | C70: 30 | D70: 125 | E70: 0 | F70: 17895 | G70: 14535 | H70: 14245
A71: 30RCLA-QS3 | B71: 30RCLA, 3 PH, 240V, UL, CSA | C71: 30 | D71: 100 | E71: 0 | F71: 17895 | G71: 14535 | H71: 14245
A72: 30RCLA-QS4 | B72: 30RCLA, 3 PH, 480V, UL, CSA | C72: 30 | D72: 50 | E72: 0 | F72: 17895 | G72: 14535 | H72: 14245
A73: 30RCLA-QS50 | B73: 30RCLA, 1 PH, 240V, UL, CSA, Blk Heater | C73: 30 | D73: 150 | E73: 0 | F73: 18455 | G73: 14990 | H73: 14690
A74: LIQUID-COOLED AUTOMATIC STANDBY GENERATOR, NG/LP, Color: Kohler Cashmere
A75: Standard Features: UL2200/CSA, 60 Hz, Aluminum Sound Shield, Unit Mounted Radiator, Standard Air Intake, RDC2 Controller which includes a 2.5AMP Battery Charger, Flexible Fuel Lines, Coolant in generator, 45 C Cooling System and 5-Year Comprehensive Warranty, OnCue Plus
A77: 38RCLC-QS1 | B77: 38RCLC, 1 PH, 240V, UL, CSA | C77: 38 | D77: 175 | E77: =F77*F$4 -> 0 | F77: 19905 | G77: 16170 | H77: 15845
A78: 38RCLC-QS2 | B78: 38RCLC, 3 PH, 208V, UL, CSA | C78: 38 | D78: 150 | E78: 0 | F78: 19905 | G78: 16170 | H78: 15845
A79: 38RCLC-QS3 | B79: 38RCLC, 3 PH, 240V, UL, CSA | C79: 38 | D79: 125 | E79: 0 | F79: 19905 | G79: 16170 | H79: 15845
A80: 38RCLC-QS4 | B80: 38RCLC, 3 PH, 480V, UL, CSA | C80: 38 | D80: 60 | E80: 0 | F80: 19905 | G80: 16170 | H80: 15845
A81: 38RCLC-QS50 | B81: 38RCLC, 1 PH, 240V, UL, CSA, Blk Heater | C81: 38 | D81: 175 | E81: 0 | F81: 20475 | G81: 16635 | H81: 16300
A82: 48RCLC-QS5 | B82: 48RCLC, 1 PH, 240V, UL, CSA | C82: 48 | D82: 200 | E82: 0 | F82: 22715 | G82: 18450 | H82: 18080
A83: 48RCLC-QS6 | B83: 48RCLC, 3 PH, 208V, UL, CSA | C83: 48 | D83: 175 | E83: 0 | F83: 22715 | G83: 18450 | H83: 18080
A84: 48RCLC-QS7 | B84: 48RCLC, 3 PH, 240V, UL, CSA | C84: 48 | D84: 150 | E84: 0 | F84: 22715 | G84: 18450 | H84: 18080
A85: 48RCLC-QS8 | B85: 48RCLC, 3 PH, 480V, UL, CSA | C85: 48 | D85: 80 | E85: 0 | F85: 22715 | G85: 18450 | H85: 18080
A86: 48RCLC-QS51 | B86: 48RCLC, 1 PH, 240V, UL, CSA, Blk Heater | C86: 48 | D86: 200 | E86: 0 | F86: 23290 | G86: 18920 | H86: 18540
A87: 60RCLB-QS5 | B87: 60RCLB, 1 PH, 240V, UL, CSA | C87: 60 | D87: 250 | E87: 0 | F87: 27865 | G87: 22635 | H87: 22180
A88: 60RCLB-QS6 | B88: 60RCLB, 3 PH, 208V, UL, CSA | C88: 60 | D88: 225 | E88: 0 | F88: 27865 | G88: 22635 | H88: 22180
A89: 60RCLB-QS7 | B89: 60RCLB, 3 PH, 240V, UL, CSA | C89: 60 | D89: 200 | E89: 0 | F89: 27865 | G89: 22635 | H89: 22180
A90: 60RCLB-QS8 | B90: 60RCLB, 3 PH, 480V, UL, CSA | C90: 60 | D90: 100 | E90: 0 | F90: 27865 | G90: 22635 | H90: 22180
A91: 60RCLB-QS51 | B91: 60RCLB, 1 PH, 240V, UL, CSA, Blk Heater | C91: 60 | D91: 250 | E91: 0 | F91: 28515 | G91: 23165 | H91: 22700
A92: LIQUID-COOLED AUTOMATIC STANDBY GENERATOR, NATURAL GAS, Color: Kohler Cashmere
A93: Standard Features: UL2200/CSA, Sound Shield, 45C Unit Mounted Radiator, Standard Air Intake, APM402 Controller, Flexible Fuel Lines, 12V-6A Battery Charger, Additional Gas Solenoid Valve, Rodent Guards, Silencer, Coolant in generator, Block Heater installed and 5-Year Basic Warranty
A95: KG80R-QS | B95: KG80R, 1 PH, 120/240, 4T9X Alternator, Steel Enclosure | C95: 80 | D95: 350 | E95: =F95*F$4 -> 0 | F95: 33945 | G95: 27330 | H95: 26785
A96: KG80R-QS1 | B96: KG80R, 1 PH, 120/240, 4T9X Alternator, Aluminum Enclosure | C96: 80 | D96: 350 | E96: 0 | F96: 35355 | G96: 28465 | H96: 27895
A97: KG80R-QS2 | B97: KG80R, 3 Ph, 120/208, 4R9X Alternator, Steel Enclosure | C97: 80 | D97: 300 | E97: 0 | F97: 33955 | G97: 27335 | H97: 26790
A98: KG80R-QS3 | B98: KG80R, 3 Ph, 120/240, 4R9X Alternator, Steel Enclosure | C98: 80 | D98: 250 | E98: 0 | F98: 33955 | G98: 27335 | H98: 26790
A99: KG80R-QS4 | B99: KG80R, 3 Ph, 277/480, 4R9X Alternator, Steel Enclosure | C99: 80 | D99: 125 | E99: 0 | F99: 33955 | G99: 27335 | H99: 26790
A100: KG80R-QS5 | B100: KG80R, 3 Ph, 120/208, 4R9X Alternator, Aluminum Enclosure | C100: 80 | D100: 300 | E100: 0 | F100: 35385 | G100: 28490 | H100: 27920
A101: KG80R-QS6 | B101: KG80R, 1 PH, 120/240, 4T9X Alternator, Steel Enclosure, w/Catalyst, CA/MA Compliant | C101: 80 | D101: 350 | E101: 0 | F101: 36035 | G101: 29010 | H101: 28430
A102: KG80R-QS7 | B102: KG80R, 1 PH, 120/240, 4T9X Alternator, Aluminum Enclosure, w/Catalyst, CA/MA Compliant | C102: 80 | D102: 350 | E102: 0 | F102: 37410 | G102: 30115 | H102: 29515
A103: KG80R-QS8 | B103: KG80R, 3 Ph, 120/208, 4R9X Alternator, Steel Enclosure, w/Catalyst, CA/MA Compliant | C103: 80 | D103: 300 | E103: 0 | F103: 36010 | G103: 28990 | H103: 28410
A104: KG80R-QS20 | B104: KG80R, 1PH, 120/240, 4T9X Alternator, Aluminum Enclosure, Auto Dual Fuel | C104: 80 | D104: 300 | E104: 0 | F104: 35945 | G104: 28927.82 | H104: 28360.61
A105: KG80R-QS21 | B105: KG80R, 1PH, 120/240, 4T9X Alternator, Aluminum Enclosure, Auto Dual Fuel, CA/MA Compliant | C105: 80 | D105: 300 | E105: 0 | F105: 37355 | G105: 30062.56 | H105: 29473.1
A106: KG100R-QS | B106: KG100R, 1 PH, 120/240, 4T13X Alternator, Steel Enclosure, CA/MA Compliant | C106: 100 | D106: 600 | E106: 0 | F106: 39290 | G106: 31635 | H106: 31000
A107: KG100R-QS1 | B107: KG100R, 1 PH, 120/240, 4T13X Alternator, Aluminum Enclosure, CA/MA Compliant | C107: 100 | D107: 600 | E107: 0 | F107: 40675 | G107: 32750 | H107: 32095
A108: KG100R-QS2 | B108: KG100R, 3 Ph, 120/208, 4R12X Alternator, Steel Enclosure, CA/MA Compliant | C108: 100 | D108: 350 | E108: 0 | F108: 39290 | G108: 31635 | H108: 31000
A109: KG100R-QS3 | B109: KG100R, 3 Ph, 120/240, 4R12X Alternator, Steel Enclosure, CA/MA Compliant | C109: 100 | D109: 300 | E109: 0 | F109: 39290 | G109: 31635 | H109: 31000
A110: KG100R-QS4 | B110: KG100R, 3 Ph, 277/480, 4R12X Alternator, Steel Enclosure, CA/MA Compliant | C110: 100 | D110: 150 | E110: 0 | F110: 39290 | G110: 31635 | H110: 31000
A111: KG100R-QS5 | B111: KG100R, 3 Ph, 120/208, 4R12X Alternator, Aluminum Enclosure, CA/MA Compliant | C111: 100 | D111: 350 | E111: 0 | F111: 40675 | G111: 32750 | H111: 32095
A112: KG100R-QS6 | B112: KG100R, 3Ph, 600V, Aluminum Enclosure, 12V Run Relay, 2/5 IO | C112: 100 | D112: 125 | E112: 0 | F112: 40675 | G112: 32750 | H112: 32095
A113: KG100R-QS20 | B113: KG100R, 1PH, 120/240, 4T9X Alternator, Aluminum, Auto Dual Fuel, CA/MA Compliant | C113: 100 | D113: 350 | E113: 0 | F113: 41290 | G113: 33229.37 | H113: 32577.81
A114: LIQUID-COOLED AUTOMATIC STANDBY GENERATOR, NATURAL GAS, Color: Kohler Cashmere
A115: Standard Features: UL2200/CSA, Sound Shield, 45C Unit Mounted Radiator, Standard Air Intake, APM402 Controller, Flexible Fuel Lines, 12V-6A Battery Charger, Additional Gas Solenoid Valve, Rodent Guards, Silencer, Coolant in generator, Block Heater installed and 5-Year Basic Warranty
A117: KG125R-QS | B117: KG125R, 1 PH, 120/240, 4T13X Alternator, Steel Enclosure | C117: 125 | D117: 600 | E117: =F117*F$4 -> 0 | F117: 41515 | G117: 33040 | H117: 32380
A118: KG125R-QS1 | B118: KG125R, 1 PH, 120/240, 4T13X Alternator, Aluminum Enclosure | C118: 125 | D118: 600 | E118: 0 | F118: 42950 | G118: 34185 | H118: 33500
A119: KG125R-QS2 | B119: KG125R, 3 Ph, 120/208, 4R13X Alternator, Steel Enclosure | C119: 125 | D119: 600 | E119: 0 | F119: 41515 | G119: 33040 | H119: 32380
A120: KG125R-QS3 | B120: KG125R, 3 Ph, 120/240, 4R13X Alternator, Steel Enclosure | C120: 125 | D120: 400 | E120: 0 | F120: 41515 | G120: 33040 | H120: 32380
A121: KG125R-QS4 | B121: KG125R, 3 Ph, 277/480, 4R13X Alternator, Steel Enclosure | C121: 125 | D121: 200 | E121: 0 | F121: 41515 | G121: 33040 | H121: 32380
A122: KG125R-QS5 | B122: KG125R, 3 Ph, 120/208, 4R13X Alternator, Aluminum Enclosure | C122: 125 | D122: 600 | E122: 0 | F122: 42950 | G122: 34185 | H122: 33500
A123: 150ERESC-QS8 | B123: 150ERESC, 1 PH, 120/240, 4T13X Alternator, Steel Enclosure | C123: 150 | D123: 600 | E123: 0 | F123: 46540 | G123: 37185 | H123: 36440
A124: 150ERESC-QS9 | B124: 150ERESC, 1 PH, 120/240, 4T13X Alternator, Aluminum Enclosure | C124: 150 | D124: 600 | E124: 0 | F124: 47860 | G124: 38240 | H124: 37475
A125: 150ERESC-QS10 | B125: 150ERESC, 3 Ph, 120/208, 4S13X Alternator, Aluminum Enclosure | C125: 150 | D125: 600 | E125: 0 | F125: 47860 | G125: 38240 | H125: 37475
A126: 150ERESC-QS11 | B126: 150ERESC, 3Ph, 600V, Aluminum Enclosure, 12V Run Relay, 2/5 IO | C126: 150 | D126: 225 | E126: 0 | F126: 47860 | G126: 38240 | H126: 37475
A127: 150ERESC-MV10 | B127: 150ERESC, 3 Ph, 120/208, 4S13X Alternator, Steel Enclosure | C127: 150 | D127: 600 | E127: 0 | F127: 46560 | G127: 37200 | H127: 36455
A128: 150ERESC-MV11 | B128: 150ERESC, 3 Ph, 120/240, 4S13X Alternator, Steel Enclosure | C128: 150 | D128: 600 | E128: 0 | F128: 46560 | G128: 37200 | H128: 36455
A129: 150ERESC-MV12 | B129: 150ERESC, 3 Ph, 277/480. 4S13X Alternator, Steel Enclosure | C129: 150 | D129: 250 | E129: 0 | F129: 46560 | G129: 37200 | H129: 36455

Sheet Generators_PL_Canada
J1: Residential Price List
B2: CANADA | J2: =Generators_PL!H2 -> EFFECTIVE DATE: 05/01/2023
J3: =Generators_PL!F4 -> 0
A5: *denotes new or updated models | E5: USD | I5: CAD | K5: 1.35
A6: Specification # | B6: Description | C6: Standby (kW) | D6: LCB (Amp) | E6: Net Price | F6: List Price | G6: MSRP | H6: MAP | I6: MSRP | J6: MAP
A7: RESIDENTIAL GENERATOR PRICE LIST
A9: AIR-COOLED AUTOMATIC STANDBY GENERATOR, LPG, COLOR : KOHLER CASHMERE
A10: Standard Features: UL2200/CSA Approval, Steel 58 dBA Sound Shield, Standard Air Intake, VSC Controller with 2.5-Amp Battery Charger, Flexible Fuel Line, Hydraulic Magnetic Type Breaker, Five-Year Comprehensive/ 18-Month Off-Grid Warranty, Field Convertible to Natural Gas Fuel
A12: 6VSG-QS18 | B12: 6VSG, 48V, Oil Makeup kit | C12: 6 | D12: N/A | E12: =F12*$J$3 -> 0 | F12: =Generators_PL!F12 -> 6885 | G12: =Generators_PL!G12 -> 5585 | H12: =Generators_PL!H12 -> 5474 | I12: =G12*$K$5 -> 7539.75 | J12: =H12*$K$5 -> 7389.9
A13: 6VSG-QS19 | B13: 6VSG, 36V, Oil Makeup Kit, Comm Kit | C13: 6 | D13: N/A | E13: =F13*$J$3 -> 0 | F13: =Generators_PL!F13 -> 7135 | G13: =Generators_PL!G13 -> 5788 | H13: =Generators_PL!H13 -> 5672 | I13: =G13*$K$5 -> 7813.8 | J13: =H13*$K$5 -> 7657.2
A14: 6VSG-QS20 | B14: 6VSG, 48V, Oil Makeup Kit, Comm Kit | C14: 6 | D14: N/A | E14: =F14*$J$3 -> 0 | F14: =Generators_PL!F14 -> 6995 | G14: =Generators_PL!G14 -> 5675 | H14: =Generators_PL!H14 -> 5561 | I14: 7661.25 | J14: 7507.35
A15: 6VSG-QS21 | B15: 6VSG, 48V | C15: 6 | D15: N/A | E15: =F15*$J$3 -> 0 | F15: =Generators_PL!F15 -> 6592 | G15: =Generators_PL!G15 -> 5348 | H15: =Generators_PL!H15 -> 5241 | I15: 7219.8 | J15: 7075.35
A16: 6VSG-QS22 | B16: 6VSG, 24V | C16: 6 | D16: N/A | E16: =F16*$J$3 -> 0 | F16: =Generators_PL!F16 -> 6915 | G16: =Generators_PL!G16 -> 5610 | H16: =Generators_PL!H16 -> 5497 | I16: 7573.5 | J16: 7420.95
A17: AIR-COOLED AUTOMATIC STANDBY GENERATOR, NATURAL GAS, COLOR : KOHLER CASHMERE
A18: Standard Features: UL2200/CSA Approval, Battery Cables, Fuel Solenoid Valve & Secondary Regulator, Oil Drain Extension With Shutoff Valve, Rodent-Resistant Construction, Critical Silencer, Sound-Deadening, Flame-Retardant Sound Shield Foam, Carb- And EPA-Certified Fuel System, Flex Fuel Line, Easy-Connect Terminal Block, Five-Year Comprehensive Warranty, Field Convertible to LPG Fuel, OnCue Plus
A20: 10RESV-QS8 | B20: 10RESV, 1 PH, 240V, UL/cUL | C20: 10 | D20: 50 | E20: =F20*$J$3 -> 0 | F20: =Generators_PL!F20 -> 4180 | G20: =Generators_PL!G20 -> 3395 | H20: =Generators_PL!H20 -> 3325 | I20: =G20*$K$5 -> 4583.25 | J20: =H20*$K$5 -> 4488.75
A21: 10RESVL-100LC12 | B21: 10RESVL,RXT 100 Amp, LC-12 spaces, NEMA1 | C21: 10 | D21: 50 | E21: =F21*$J$3 -> 0 | F21: =Generators_PL!F21 -> 4865 | G21: =Generators_PL!G21 -> 3950 | H21: =Generators_PL!H21 -> 3870 | I21: 5332.5 | J21: 5224.5
A22: 12RES-QS11 | B22: 12RES, 1 PH, 120/240V, UL/cUL (No OnCue Plus on ADC Controller) | C22: 12 | D22: 40 | E22: =F22*$J$3 -> 0 | F22: =Generators_PL!F22 -> 6195 | G22: =Generators_PL!G22 -> 5025 | H22: =Generators_PL!H22 -> 4925 | I22: 6783.75 | J22: 6648.75
A23: 12RESV-QS8 | B23: 12RESV, 1 PH, 240V, UL/cUL | C23: 12 | D23: 60 | E23: =F23*$J$3 -> 0 | F23: =Generators_PL!F23 -> 4745 | G23: =Generators_PL!G23 -> 3845 | H23: =Generators_PL!H23 -> 3770 | I23: 5190.75 | J23: 5089.5
A24: 12RESVL-100LC12 | B24: 12RESVL,RXT 100 Amp, LC-12 spaces, NEMA1 | C24: 12 | D24: 60 | E24: =F24*$J$3 -> 0 | F24: =Generators_PL!F24 -> 5430 | G24: =Generators_PL!G24 -> 4405 | H24: =Generators_PL!H24 -> 4315 | I24: 5946.75 | J24: 5825.25
A25: 14RCA-QS5 | B25: 14RCA, 1PH, 240V, cUL/CSA - Mossy Oak Shadow Grass Habitat | C25: 14 | D25: 70 | E25: =F25*$J$3 -> 0 | F25: 6535 | G25: 5300 | H25: 5195 | I25: 7155 | J25: 7013.25
A26: 14RCA-QS6 | B26: 14RCA, 1 PH, 240V, cUL/US, CSA | C26: 14 | D26: 70 | E26: =F26*$J$3 -> 0 | F26: 5335 | G26: 4325 | H26: 4240 | I26: 5838.75 | J26: 5724
A27: 14RCA-QS7 | B27: 14RCA, 3 PH, 208V, cUL, CSA | C27: 14 | D27: 50 | E27: =F27*$J$3 -> 0 | F27: 5535 | G27: 4490 | H27: 4400 | I27: 6061.5 | J27: 5940
A28: 14RCA-QS8 | B28: 14RCA, 3 PH, 240V, cUL, CSA | C28: 14 | D28: 50 | E28: =F28*$J$3 -> 0 | F28: 5535 | G28: 4490 | H28: 4400 | I28: 6061.5 | J28: 5940
A29: 14RCA-QS9 | B29: 14RCA, 3 PH, 480V, cUL, CSA | C29: 14 | D29: 25 | E29: =F29*$J$3 -> 0 | F29: 5535 | G29: 4490 | H29: 4400 | I29: 6061.5 | J29: 5940
A30: 14RCAL-200SELS | B30: 14RCAL,RXT 200 Amp,SE,Load Shed,NEMA 3R | C30: 14 | D30: 70 | E30: =F30*$J$3 -> 0 | F30: 6425 | G30: 5215 | H30: 5110 | I30: 7040.25 | J30: 6898.5
A31: 14RCA-QS10 | B31: 14RCA, 1PH, 240V, cUL/CSA - Mossy Oak Break-Up Country | C31: 14 | D31: 70 | E31: =F31*$J$3 -> 0 | F31: 6535 | G31: 5300 | H31: 5195 | I31: 7155 | J31: 7013.25
A32: 14RCA-QS11 | B32: 14RCA, 1PH, 240V, cUL/CSA - Mossy Oak Original Bottomland | C32: 14 | D32: 70 | E32: =F32*$J$3 -> 0 | F32: 6535 | G32: 5300 | H32: 5195 | I32: 7155 | J32: 7013.25
A33: 14RCAL-100LC16 | B33: 14RCA, 1 PH, 240V, cUL, RXT 100 AMP | C33: 14 | D33: 70 | E33: =F33*$J$3 -> 0 | F33: =Generators_PL!F33 -> 6020 | G33: =Generators_PL!G33 -> 4885 | H33: =Generators_PL!H33 -> 4790 | I33: 6594.75 | J33: 6466.5
A34: 14RESAL-100LC16 | B34: 14RESAL, RXT 100 Amp, LC, NEMA 1 | C34: 14 | D34: 70 | E34: =F34*$J$3 -> 0 | F34: =Generators_PL!F34 -> 5820 | G34: =Generators_PL!G34 -> 4725 | H34: =Generators_PL!H34 -> 4630 | I34: 6378.75 | J34: 6250.5
A35: 14RESAL-200SELS | B35: 14RESAL,RXT 200 Amp,SE,Load Shed,NEMA 3R | C35: 14 | D35: 70 | E35: =F35*#REF! ->  | F35: 6525 | G35: 5290 | H35: 5185
A36: AIR-COOLED AUTOMATIC STANDBY GENERATOR, NATURAL GAS, COLOR : KOHLER CASHMERE
A37: Standard Features: UL2200/CSA Approval, Battery Cables, Fuel Solenoid Valve & Secondary Regulator, Oil Drain Extension With Shutoff Valve, Rodent-Resistant Construction, Critical Silencer, Sound-Deadening, Flame-Retardant Sound Shield Foam, Carb- And EPA-Certified Fuel System, Flex Fuel Line, Easy-Connect Terminal Block, Five-Year Comprehensive Warranty, Field Convertible to LPG Fuel, OnCue Plus
A39: 14RESA-QS32 | B39: 14RESA, 1 PH, 240V, cUL/US, CSA | C39: 14 | D39: 70 | E39: =F39*$J$3 -> 0 | F39: =Generators_PL!F39 -> 5135 | G39: =Generators_PL!G39 -> 4165 | H39: =Generators_PL!H39 -> 4080 | I39: =G39*$K$5 -> 5622.75 | J39: =H39*$K$5 -> 5508
A40: 14RESA-QS33 | B40: 14RESA, 3 PH, 208V, cUL/US, CSA | C40: 14 | D40: 50 | E40: =F40*$J$3 -> 0 | F40: =Generators_PL!F40 -> 5335 | G40: =Generators_PL!G40 -> 4325 | H40: =Generators_PL!H40 -> 4240 | I40: =G40*$K$5 -> 5838.75 | J40: =H40*$K$5 -> 5724
A41: 14RESA-QS34 | B41: 14RESA, 3 PH, 240V, cUL/US, CSA | C41: 14 | D41: 50 | E41: =F41*$J$3 -> 0 | F41: =Generators_PL!F41 -> 5335 | G41: =Generators_PL!G41 -> 4325 | H41: =Generators_PL!H41 -> 4240 | I41: 5838.75 | J41: 5724
A42: 14RESA-QS35 | B42: 14RESA, 3 PH, 480V, cUL/US, CSA | C42: 14 | D42: 25 | E42: =F42*$J$3 -> 0 | F42: =Generators_PL!F42 -> 5335 | G42: =Generators_PL!G42 -> 4325 | H42: =Generators_PL!H42 -> 4240 | I42: 5838.75 | J42: 5724
A43: 20RCA-QS5 | B43: 20RCA, 1PH, 240V, cUL/CSA - Mossy Oak Shadow Grass Habitat | C43: 20 | D43: 100 | E43: =F43*$J$3 -> 0 | F43: 7930 | G43: 6535 | H43: 6405 | I43: 8822.25 | J43: 8646.75
A44: 20RCA-QS6 | B44: 20RCA, 1 PH, 240V, cUL/US, CSA | C44: 20 | D44: 100 | E44: =F44*$J$3 -> 0 | F44: =Generators_PL!F44 -> 6200 | G44: =Generators_PL!G44 -> 5550 | H44: =Generators_PL!H44 -> 5440 | I44: 7492.5 | J44: 7344
A45: 20RCA-QS7 | B45: 20RCA, 3 PH, 208V, cUL/US, CSA | C45: 20 | D45: 70 | E45: =F45*$J$3 -> 0 | F45: =Generators_PL!F45 -> 6400 | G45: =Generators_PL!G45 -> 5715 | H45: =Generators_PL!H45 -> 5600 | I45: 7715.25 | J45: 7560
A46: 20RCA-QS8 | B46: 20RCA, 3 PH, 240V, cUL/US, CSA | C46: 20 | D46: 60 | E46: =F46*$J$3 -> 0 | F46: =Generators_PL!F46 -> 6400 | G46: =Generators_PL!G46 -> 5715 | H46: =Generators_PL!H46 -> 5600 | I46: 7715.25 | J46: 7560
A47: 20RCA-QS9 | B47: 20RCA, 3 PH, 480V, cUL/US, CSA | C47: 20 | D47: 30 | E47: =F47*$J$3 -> 0 | F47: =Generators_PL!F47 -> 6400 | G47: =Generators_PL!G47 -> 5715 | H47: =Generators_PL!H47 -> 5600 | I47: 7715.25 | J47: 7560
A48: 20RCAL-200SELS | B48: 20RCA, 1PH, 240V, cUL/CSA - Mossy Oak Break-Up Country | C48: 20 | D48: 100 | E48: =F48*$J$3 -> 0 | F48: =Generators_PL!F50 -> 7205 | G48: =Generators_PL!G50 -> 6440 | H48: =Generators_PL!H50 -> 6310 | I48: 8694 | J48: 8518.5
A49: 20RESCL-200SELS | B49: 20RCA, 1PH, 240V, cUL/CSA - Mossy Oak Original Bottomland | C49: 20 | D49: 100 | E49: =F49*$J$3 -> 0 | F49: =Generators_PL!F51 -> 7005 | G49: =Generators_PL!G51 -> 6275 | H49: =Generators_PL!H51 -> 6145 | I49: 8471.25 | J49: 8295.75
A50: 20RCA-QS10 | B50: 20RCA, 1PH, 240V, cUL/CSA - Mossy Oak Break-Up Country | C50: 20 | D50: 100 | E50: =F50*$J$3 -> 0 | F50: 7930 | G50: 6535 | H50: 6405 | I50: 8822.25 | J50: 8646.75
A51: 20RCA-QS11 | B51: 20RCA, 1PH, 240V, cUL/CSA - Mossy Oak Original Bottomland | C51: 20 | D51: 100 | E51: =F51*$J$3 -> 0 | F51: 7930 | G51: 6535 | H51: 6405 | I51: 8822.25 | J51: 8646.75
A52: 20RESC-QS15 | B52: 20RESC, 1 PH, 240V, cUL/US, CSA | C52: 20 | D52: 100 | E52: =F52*$J$3 -> 0 | F52: =Generators_PL!F52 -> 6000 | G52: =Generators_PL!G52 -> 5385 | H52: =Generators_PL!H52 -> 5275 | I52: 7269.75 | J52: 7121.25
A53: 20RESC-QS16 | B53: 20RESC, 3 PH, 208V, cUL/US, CSA | C53: 20 | D53: 70 | E53: =F53*$J$3 -> 0 | F53: =Generators_PL!F53 -> 6200 | G53: =Generators_PL!G53 -> 5550 | H53: =Generators_PL!H53 -> 5440 | I53: 7492.5 | J53: 7344
A54: 20RESC-QS17 | B54: 20RESC, 3 PH, 240V, cUL/US, CSA | C54: 20 | D54: 60 | E54: =F54*$J$3 -> 0 | F54: =Generators_PL!F54 -> 6200 | G54: =Generators_PL!G54 -> 5550 | H54: =Generators_PL!H54 -> 5440 | I54: 7492.5 | J54: 7344
A55: 26RCA-QS1 | B55: 26RCA, 1 PH, 240V, cUL, CSA | C55: 26 | D55: 125 | E55: =F55*$J$3 -> 0 | F55: 7935 | G55: 6520 | H55: 6390 | I55: 8802 | J55: 8626.5
A56: 26RCA-QS50 | B56: 26RCA, 1 PH, 240V, cUL, CSA, Cold Weather Kit | C56: 26 | D56: 125 | E56: =F56*$J$3 -> 0 | F56: 8675 | G56: 7130 | H56: 6985 | I56: 9625.5 | J56: 9429.75
A57: 26RCA-QS5 | B57: 26RCA, 1 PH, 240V, cUL, CSA, Mossy Oak Shadow Grass Habitat | C57: 26 | D57: 125 | E57: =F57*$J$3 -> 0 | F57: 9135 | G57: 7505 | H57: 7355 | I57: 10131.75 | J57: 9929.25
A58: 26RCA-QS10 | B58: 26RCA, 1 PH, 240V, cUL, CSA, Mossy Oak Break-Up Country | C58: 26 | D58: 125 | E58: =F58*$J$3 -> 0 | F58: 9135 | G58: 7505 | H58: 7355 | I58: 10131.75 | J58: 9929.25
A59: 26RCA-QS11 | B59: 26RCA, 1 PH, 240V, cUL, CSA, Mossy Oak Original Bottomland | C59: 26 | D59: 125 | E59: =F59*$J$3 -> 0 | F59: 9135 | G59: 7505 | H59: 7355 | I59: 10131.75 | J59: 9929.25
A60: 26RCAL-200SELS | B60: 26RCAL, RXT 200 Amp, SE, N3R, w/LOAD Man | C60: 26 | D60: 125 | E60: =F60*$J$3 -> 0 | F60: 8940 | G60: 7340 | H60: 7195
A61: LIQUID-COOLED AUTOMATIC STANDBY GENERATOR, NG/LP, Color: Kohler Cashmere
A62: Standard Features: UL2200/CSA, 60 Hz, Aluminum Sound Shield, Unit Mounted Radiator, Standard Air Intake, RDC2 Controller which includes a 2.5AMP Battery Charger, Flexible Fuel Lines, Coolant in generator, 45 C Cooling System and 5-Year Comprehensive Warranty, OnCue Plus
A64: 24RCLA-QS1 | B64: 24RCLA, 1 PH, 240V, UL, CSA | C64: 24 | D64: 100 | E64: =F64*$J$3 -> 0 | F64: =Generators_PL!F64 -> 15675 | G64: =Generators_PL!G64 -> 12730 | H64: =Generators_PL!H64 -> 12475 | I64: =G64*$K$5 -> 17185.5 | J64: =H64*$K$5 -> 16841.25
A65: 24RCLA-QS2 | B65: 24RCLA, 3 PH, 208V, UL, CSA | C65: 24 | D65: 90 | E65: =F65*$J$3 -> 0 | F65: =Generators_PL!F65 -> 15675 | G65: =Generators_PL!G65 -> 12730 | H65: =Generators_PL!H65 -> 12475 | I65: 17185.5 | J65: 16841.25
A66: 24RCLA-QS3 | B66: 24RCLA, 3 PH, 240V, UL, CSA | C66: 24 | D66: 80 | E66: =F66*$J$3 -> 0 | F66: =Generators_PL!F66 -> 15675 | G66: =Generators_PL!G66 -> 12730 | H66: =Generators_PL!H66 -> 12475 | I66: 17185.5 | J66: 16841.25
A67: 24RCLA-QS4 | B67: 24RCLA, 3 PH, 480V, UL, CSA | C67: 24 | D67: 40 | E67: =F67*$J$3 -> 0 | F67: =Generators_PL!F67 -> 15675 | G67: =Generators_PL!G67 -> 12730 | H67: =Generators_PL!H67 -> 12475 | I67: 17185.5 | J67: 16841.25
A68: 24RCLA-QS50 | B68: 24RCLA, 1 PH, 240V, UL, CSA, Blk Heater | C68: 24 | D68: 100 | E68: =F68*$J$3 -> 0 | F68: =Generators_PL!F68 -> 16280 | G68: =Generators_PL!G68 -> 13225 | H68: =Generators_PL!H68 -> 12960 | I68: 17853.75 | J68: 17496
A69: 30RCLA-QS1 | B69: 30RCLA, 1 PH, 240V, UL, CSA | C69: 30 | D69: 150 | E69: =F69*$J$3 -> 0 | F69: =Generators_PL!F69 -> 17895 | G69: =Generators_PL!G69 -> 14535 | H69: =Generators_PL!H69 -> 14245 | I69: 19622.25 | J69: 19230.75
A70: 30RCLA-QS2 | B70: 30RCLA, 3 PH, 208V, UL, CSA | C70: 30 | D70: 125 | E70: =F70*$J$3 -> 0 | F70: =Generators_PL!F70 -> 17895 | G70: =Generators_PL!G70 -> 14535 | H70: =Generators_PL!H70 -> 14245 | I70: 19622.25 | J70: 19230.75
A71: 30RCLA-QS3 | B71: 30RCLA, 3 PH, 240V, UL, CSA | C71: 30 | D71: 100 | E71: =F71*$J$3 -> 0 | F71: =Generators_PL!F71 -> 17895 | G71: =Generators_PL!G71 -> 14535 | H71: =Generators_PL!H71 -> 14245 | I71: 19622.25 | J71: 19230.75
A72: 30RCLA-QS4 | B72: 30RCLA, 3 PH, 480V, UL, CSA | C72: 30 | D72: 50 | E72: =F72*$J$3 -> 0 | F72: =Generators_PL!F72 -> 17895 | G72: =Generators_PL!G72 -> 14535 | H72: =Generators_PL!H72 -> 14245 | I72: 19622.25 | J72: 19230.75
A73: 30RCLA-QS50 | B73: 30RCLA, 1 PH, 240V, UL, CSA, Blk Heater | C73: 30 | D73: 150 | E73: =F73*$J$3 -> 0 | F73: =Generators_PL!F73 -> 18455 | G73: =Generators_PL!G73 -> 14990 | H73: =Generators_PL!H73 -> 14690 | I73: 20236.5 | J73: 19831.5
A74: LIQUID-COOLED AUTOMATIC STANDBY GENERATOR, NG/LP, Color: Kohler Cashmere
A75: Standard Features: UL2200/CSA, 60 Hz, Aluminum Sound Shield, Unit Mounted Radiator, Standard Air Intake, RDC2 Controller which includes a 2.5AMP Battery Charger, Flexible Fuel Lines, Coolant in generator, 45 C Cooling System and 5-Year Comprehensive Warranty, OnCue Plus
A77: 38RCLC-QS1 | B77: 38RCLB, 1 PH, 240V, UL, CSA | C77: 38 | D77: 175 | E77: =F77*$J$3 -> 0 | F77: =Generators_PL!F77 -> 19905 | G77: =Generators_PL!G77 -> 16170 | H77: =Generators_PL!H77 -> 15845 | I77: =G77*$K$5 -> 21829.5 | J77: =H77*$K$5 -> 21390.75
A78: 38RCLC-QS2 | B78: 38RCLB, 3 PH, 208V, UL, CSA | C78: 38 | D78: 150 | E78: =F78*$J$3 -> 0 | F78: =Generators_PL!F78 -> 19905 | G78: =Generators_PL!G78 -> 16170 | H78: =Generators_PL!H78 -> 15845 | I78: 21829.5 | J78: 21390.75
A79: 38RCLC-QS3 | B79: 38RCLB, 3 PH, 240V, UL, CSA | C79: 38 | D79: 125 | E79: =F79*$J$3 -> 0 | F79: =Generators_PL!F79 -> 19905 | G79: =Generators_PL!G79 -> 16170 | H79: =Generators_PL!H79 -> 15845 | I79: 21829.5 | J79: 21390.75
A80: 38RCLC-QS4 | B80: 38RCLB, 3 PH, 480V, UL, CSA | C80: 38 | D80: 60 | E80: =F80*$J$3 -> 0 | F80: =Generators_PL!F80 -> 19905 | G80: =Generators_PL!G80 -> 16170 | H80: =Generators_PL!H80 -> 15845 | I80: 21829.5 | J80: 21390.75
A81: 38RCLC-QS50 | B81: 38RCLB, 1 PH, 240V, UL, CSA, Blk Heater | C81: 38 | D81: 175 | E81: =F81*$J$3 -> 0 | F81: =Generators_PL!F81 -> 20475 | G81: =Generators_PL!G81 -> 16635 | H81: =Generators_PL!H81 -> 16300 | I81: 22457.25 | J81: 22005
A82: 48RCLC-QS5 | B82: 48RCLC, 1 PH, 240V, UL, CSA | C82: 48 | D82: 200 | E82: =F82*$J$3 -> 0 | F82: =Generators_PL!F82 -> 22715 | G82: =Generators_PL!G82 -> 18450 | H82: =Generators_PL!H82 -> 18080 | I82: 24907.5 | J82: 24408
A83: 48RCLC-QS6 | B83: 48RCLC, 3 PH, 208V, UL, CSA | C83: 48 | D83: 175 | E83: =F83*$J$3 -> 0 | F83: =Generators_PL!F83 -> 22715 | G83: =Generators_PL!G83 -> 18450 | H83: =Generators_PL!H83 -> 18080 | I83: 24907.5 | J83: 24408
A84: 48RCLC-QS7 | B84: 48RCLC, 3 PH, 240V, UL, CSA | C84: 48 | D84: 150 | E84: =F84*$J$3 -> 0 | F84: =Generators_PL!F84 -> 22715 | G84: =Generators_PL!G84 -> 18450 | H84: =Generators_PL!H84 -> 18080 | I84: 24907.5 | J84: 24408
A85: 48RCLC-QS8 | B85: 48RCLC, 3 PH, 480V, UL, CSA | C85: 48 | D85: 80 | E85: =F85*$J$3 -> 0 | F85: =Generators_PL!F85 -> 22715 | G85: =Generators_PL!G85 -> 18450 | H85: =Generators_PL!H85 -> 18080 | I85: 24907.5 | J85: 24408
A86: 48RCLC-QS51 | B86: 48RCLC, 1 PH, 240V, UL, CSA, Blk Heater | C86: 48 | D86: 200 | E86: =F86*$J$3 -> 0 | F86: =Generators_PL!F86 -> 23290 | G86: =Generators_PL!G86 -> 18920 | H86: =Generators_PL!H86 -> 18540 | I86: 25542 | J86: 25029
A87: 60RCLB-QS5 | B87: 60RCLB, 1 PH, 240V, UL, CSA | C87: 60 | D87: 250 | E87: =F87*$J$3 -> 0 | F87: =Generators_PL!F87 -> 27865 | G87: =Generators_PL!G87 -> 22635 | H87: =Generators_PL!H87 -> 22180 | I87: 30557.25 | J87: 29943
A88: 60RCLB-QS6 | B88: 60RCLB, 3 PH, 208V, UL, CSA | C88: 60 | D88: 225 | E88: =F88*$J$3 -> 0 | F88: =Generators_PL!F88 -> 27865 | G88: =Generators_PL!G88 -> 22635 | H88: =Generators_PL!H88 -> 22180 | I88: 30557.25 | J88: 29943
A89: 60RCLB-QS7 | B89: 60RCLB, 3 PH, 240V, UL, CSA | C89: 60 | D89: 200 | E89: =F89*$J$3 -> 0 | F89: =Generators_PL!F89 -> 27865 | G89: =Generators_PL!G89 -> 22635 | H89: =Generators_PL!H89 -> 22180 | I89: 30557.25 | J89: 29943
A90: 60RCLB-QS8 | B90: 60RCLB, 3 PH, 480V, UL, CSA | C90: 60 | D90: 100 | E90: =F90*$J$3 -> 0 | F90: =Generators_PL!F90 -> 27865 | G90: =Generators_PL!G90 -> 22635 | H90: =Generators_PL!H90 -> 22180 | I90: 30557.25 | J90: 29943
A91: 60RCLB-QS51 | B91: 60RCLB, 1 PH, 240V, UL, CSA, Blk Heater | C91: 60 | D91: 250 | E91: =F91*$J$3 -> 0 | F91: =Generators_PL!F91 -> 28515 | G91: =Generators_PL!G91 -> 23165 | H91: =Generators_PL!H91 -> 22700 | I91: 31272.75 | J91: 30645
A92: LIQUID-COOLED AUTOMATIC STANDBY GENERATOR, NATURAL GAS, Color: Kohler Cashmere
A93: Standard Features: UL2200/CSA, Sound Shield, 45C Unit Mounted Radiator, Standard Air Intake, APM402 Controller, Flexible Fuel Lines, 12V-6A Battery Charger, Additional Gas Solenoid Valve, Rodent Guards, Silencer, Coolant in generator, Block Heater installed and 5-Year Basic Warranty
A95: KG80R-QS | B95: KG80R, 1 PH, 120/240, 4T9X Alternator, Steel Enclosure | C95: 80 | D95: 350 | E95: =F95*$J$3 -> 0 | F95: =Generators_PL!F95 -> 33945 | G95: =Generators_PL!G95 -> 27330 | H95: =Generators_PL!H95 -> 26785 | I95: =G95*$K$5 -> 36895.5 | J95: =H95*$K$5 -> 36159.75
A96: KG80R-QS1 | B96: KG80R, 1 PH, 120/240, 4T9X Alternator, Aluminum Enclosure | C96: 80 | D96: 350 | E96: =F96*$J$3 -> 0 | F96: =Generators_PL!F96 -> 35355 | G96: =Generators_PL!G96 -> 28465 | H96: =Generators_PL!H96 -> 27895 | I96: 38427.75 | J96: 37658.25
A97: KG80R-QS2 | B97: KG80R, 3 Ph, 120/208, 4R9X Alternator, Steel Enclosure | C97: 80 | D97: 300 | E97: =F97*$J$3 -> 0 | F97: =Generators_PL!F97 -> 33955 | G97: =Generators_PL!G97 -> 27335 | H97: =Generators_PL!H97 -> 26790 | I97: 36902.25 | J97: 36166.5
A98: KG80R-QS3 | B98: KG80R, 3 Ph, 120/240, 4R9X Alternator, Steel Enclosure | C98: 80 | D98: 250 | E98: =F98*$J$3 -> 0 | F98: =Generators_PL!F98 -> 33955 | G98: =Generators_PL!G98 -> 27335 | H98: =Generators_PL!H98 -> 26790 | I98: 36902.25 | J98: 36166.5
A99: KG80R-QS4 | B99: KG80R, 3 Ph, 277/480, 4R9X Alternator, Steel Enclosure | C99: 80 | D99: 125 | E99: =F99*$J$3 -> 0 | F99: =Generators_PL!F99 -> 33955 | G99: =Generators_PL!G99 -> 27335 | H99: =Generators_PL!H99 -> 26790 | I99: 36902.25 | J99: 36166.5
A100: KG80R-QS5 | B100: KG80R, 3 Ph, 120/208, 4R9X Alternator, Aluminum Enclosure | C100: 80 | D100: 300 | E100: =F100*$J$3 -> 0 | F100: =Generators_PL!F100 -> 35385 | G100: =Generators_PL!G100 -> 28490 | H100: =Generators_PL!H100 -> 27920 | I100: 38461.5 | J100: 37692
A101: KG80R-QS6 | B101: KG80R, 1 PH, 120/240, 4T9X Alternator, Steel Enclosure, w/Catalyst, CA/MA Compliant | C101: 80 | D101: 350 | E101: =F101*$J$3 -> 0 | F101: =Generators_PL!F101 -> 36035 | G101: =Generators_PL!G101 -> 29010 | H101: =Generators_PL!H101 -> 28430 | I101: 39163.5 | J101: 38380.5
A102: KG80R-QS7 | B102: KG80R, 1 PH, 120/240, 4T9X Alternator, Aluminum Enclosure, w/Catalyst, CA/MA Compliant | C102: 80 | D102: 350 | E102: =F102*$J$3 -> 0 | F102: =Generators_PL!F102 -> 37410 | G102: =Generators_PL!G102 -> 30115 | H102: =Generators_PL!H102 -> 29515 | I102: 40655.25 | J102: 39845.25
A103: KG80R-QS8 | B103: KG80R, 3 Ph, 120/208, 4R9X Alternator, Steel Enclosure, w/Catalyst, CA/MA Compliant | C103: 80 | D103: 300 | E103: =F103*$J$3 -> 0 | F103: =Generators_PL!F103 -> 36010 | G103: =Generators_PL!G103 -> 28990 | H103: =Generators_PL!H103 -> 28410 | I103: 39136.5 | J103: 38353.5
A104: KG80R-QS20 | B104: KG80R, 1PH, 120/240, 4T9X Alternator, Aluminum Enclosure, Auto Dual Fuel | C104: 80 | D104: 300 | E104: =F104*$J$3 -> 0 | F104: =Generators_PL!F104 -> 35945 | G104: =Generators_PL!G104 -> 28927.82 | H104: =Generators_PL!H104 -> 28360.61 | I104: 39052.557 | J104: 38286.8235
A105: KG80R-QS21 | B105: KG80R, 1PH, 120/240, 4T9X Alternator, Aluminum Enclosure, Auto Dual Fuel, CA/MA Compliant | C105: 80 | D105: 300 | E105: =F105*$J$3 -> 0 | F105: =Generators_PL!F105 -> 37355 | G105: =Generators_PL!G105 -> 30062.56 | H105: =Generators_PL!H105 -> 29473.1 | I105: 40584.456 | J105: 39788.685
A106: KG100R-QS | B106: KG100R, 1 PH, 120/240, 4T13X Alternator, Steel Enclosure, CA/MA Compliant | C106: 100 | D106: 600 | E106: =F106*$J$3 -> 0 | F106: =Generators_PL!F106 -> 39290 | G106: =Generators_PL!G106 -> 31635 | H106: =Generators_PL!H106 -> 31000 | I106: 42707.25 | J106: 41850
A107: KG100R-QS1 | B107: KG100R, 1 PH, 120/240, 4T13X Alternator, Aluminum Enclosure, CA/MA Compliant | C107: 100 | D107: 600 | E107: =F107*$J$3 -> 0 | F107: =Generators_PL!F107 -> 40675 | G107: =Generators_PL!G107 -> 32750 | H107: =Generators_PL!H107 -> 32095 | I107: 44212.5 | J107: 43328.25
A108: KG100R-QS2 | B108: KG100R, 3 Ph, 120/208, 4R12X Alternator, Steel Enclosure, CA/MA Compliant | C108: 100 | D108: 350 | E108: =F108*$J$3 -> 0 | F108: =Generators_PL!F108 -> 39290 | G108: =Generators_PL!G108 -> 31635 | H108: =Generators_PL!H108 -> 31000 | I108: 42707.25 | J108: 41850
A109: KG100R-QS3 | B109: KG100R, 3 Ph, 120/240, 4R12X Alternator, Steel Enclosure, CA/MA Compliant | C109: 100 | D109: 300 | E109: =F109*$J$3 -> 0 | F109: =Generators_PL!F109 -> 39290 | G109: =Generators_PL!G109 -> 31635 | H109: =Generators_PL!H109 -> 31000 | I109: 42707.25 | J109: 41850
A110: KG100R-QS4 | B110: KG100R, 3 Ph, 277/480, 4R12X Alternator, Steel Enclosure, CA/MA Compliant | C110: 100 | D110: 150 | E110: =F110*$J$3 -> 0 | F110: =Generators_PL!F110 -> 39290 | G110: =Generators_PL!G110 -> 31635 | H110: =Generators_PL!H110 -> 31000 | I110: 42707.25 | J110: 41850
A111: KG100R-QS5 | B111: KG100R, 3 Ph, 120/208, 4R12X Alternator, Aluminum Enclosure, CA/MA Compliant | C111: 100 | D111: 350 | E111: =F111*$J$3 -> 0 | F111: =Generators_PL!F111 -> 40675 | G111: =Generators_PL!G111 -> 32750 | H111: =Generators_PL!H111 -> 32095 | I111: 44212.5 | J111: 43328.25
A112: KG100R-QS6 | B112: KG100R, 3Ph, 600V, Aluminum Enclosure, 12V Run Relay, 2/5 IO | C112: 100 | D112: 125 | E112: =F112*$J$3 -> 0 | F112: 40675 | G112: 32750 | H112: 32095 | I112: 44212.5 | J112: 43328.25
A113: KG100R-QS20 | B113: KG100R, 1PH, 120/240, 4T9X Alternator, Aluminum, Auto Dual Fuel, CA/MA Compliant | C113: 100 | D113: 350 | E113: =F113*$J$3 -> 0 | F113: =Generators_PL!F113 -> 41290 | G113: =Generators_PL!G113 -> 33229.37 | H113: =Generators_PL!H113 -> 32577.81 | I113: 44859.6495 | J113: 43980.0435
A114: LIQUID-COOLED AUTOMATIC STANDBY GENERATOR, NATURAL GAS, Color: Kohler Cashmere
A115: Standard Features: UL2200/CSA, Sound Shield, 45C Unit Mounted Radiator, Standard Air Intake, APM402 Controller, Flexible Fuel Lines, 12V-6A Battery Charger, Additional Gas Solenoid Valve, Rodent Guards, Silencer, Coolant in generator, Block Heater installed and 5-Year Basic Warranty
A117: KG125R-QS | B117: KG125R, 1 PH, 120/240, 4T13X Alternator, Steel Enclosure | C117: 125 | D117: 600 | E117: =F117*$J$3 -> 0 | F117: =Generators_PL!F117 -> 41515 | G117: =Generators_PL!G117 -> 33040 | H117: =Generators_PL!H117 -> 32380 | I117: =G117*$K$5 -> 44604 | J117: =H117*$K$5 -> 43713
A118: KG125R-QS1 | B118: KG125R, 1 PH, 120/240, 4T13X Alternator, Aluminum Enclosure | C118: 125 | D118: 600 | E118: =F118*$J$3 -> 0 | F118: =Generators_PL!F118 -> 42950 | G118: =Generators_PL!G118 -> 34185 | H118: =Generators_PL!H118 -> 33500 | I118: 46149.75 | J118: 45225
A119: KG125R-QS2 | B119: KG125R, 3 Ph, 120/208, 4R13X Alternator, Steel Enclosure | C119: 125 | D119: 600 | E119: =F119*$J$3 -> 0 | F119: =Generators_PL!F119 -> 41515 | G119: =Generators_PL!G119 -> 33040 | H119: =Generators_PL!H119 -> 32380 | I119: 44604 | J119: 43713
A120: KG125R-QS3 | B120: KG125R, 3 Ph, 120/240, 4R13X Alternator, Steel Enclosure | C120: 125 | D120: 400 | E120: =F120*$J$3 -> 0 | F120: =Generators_PL!F120 -> 41515 | G120: =Generators_PL!G120 -> 33040 | H120: =Generators_PL!H120 -> 32380 | I120: 44604 | J120: 43713
A121: KG125R-QS4 | B121: KG125R, 3 Ph, 277/480, 4R13X Alternator, Steel Enclosure | C121: 125 | D121: 200 | E121: =F121*$J$3 -> 0 | F121: =Generators_PL!F121 -> 41515 | G121: =Generators_PL!G121 -> 33040 | H121: =Generators_PL!H121 -> 32380 | I121: 44604 | J121: 43713
A122: KG125R-QS5 | B122: KG125R, 3 Ph, 120/208, 4R13X Alternator, Aluminum Enclosure | C122: 125 | D122: 600 | E122: =F122*$J$3 -> 0 | F122: =Generators_PL!F122 -> 42950 | G122: =Generators_PL!G122 -> 34185 | H122: =Generators_PL!H122 -> 33500 | I122: 46149.75 | J122: 45225
A123: 150ERESC-QS8 | B123: 150ERESC, 1 PH, 120/240, 4T13X Alternator, Steel Enclosure | C123: 150 | D123: 600 | E123: =F123*$J$3 -> 0 | F123: =Generators_PL!F123 -> 46540 | G123: =Generators_PL!G123 -> 37185 | H123: =Generators_PL!H123 -> 36440 | I123: 50199.75 | J123: 49194
A124: 150ERESC-QS9 | B124: 150ERESC, 1 PH, 120/240, 4T13X Alternator, Aluminum Enclosure | C124: 150 | D124: 600 | E124: =F124*$J$3 -> 0 | F124: =Generators_PL!F124 -> 47860 | G124: =Generators_PL!G124 -> 38240 | H124: =Generators_PL!H124 -> 37475 | I124: 51624 | J124: 50591.25
A125: 150ERESC-QS10 | B125: 150ERESC, 3 Ph, 120/208, 4S13X Alternator, Aluminum Enclosure | C125: 150 | D125: 600 | E125: =F125*$J$3 -> 0 | F125: =Generators_PL!F125 -> 47860 | G125: =Generators_PL!G125 -> 38240 | H125: =Generators_PL!H125 -> 37475 | I125: 51624 | J125: 50591.25
A126: 150ERESC-QS11 | B126: 150ERESC, 3Ph, 600V, Aluminum Enclosure, 12V Run Relay, 2/5 IO | C126: 150 | D126: 225 | E126: =F126*$J$3 -> 0 | F126: 47860 | G126: 38240 | H126: 37475 | I126: 51624 | J126: 50591.25
A127: 150ERESC-MV10 | B127: 150ERESC, 3 Ph, 120/208, 4S13X Alternator, Steel Enclosure | C127: 150 | D127: 600 | E127: =F127*$J$3 -> 0 | F127: =Generators_PL!F127 -> 46560 | G127: =Generators_PL!G127 -> 37200 | H127: =Generators_PL!H127 -> 36455 | I127: 50220 | J127: 49214.25
A128: 150ERESC-MV11 | B128: 150ERESC, 3 Ph, 120/240, 4S13X Alternator, Steel Enclosure | C128: 150 | D128: 600 | E128: =F128*$J$3 -> 0 | F128: =Generators_PL!F128 -> 46560 | G128: =Generators_PL!G128 -> 37200 | H128: =Generators_PL!H128 -> 36455 | I128: 50220 | J128: 49214.25
A129: 150ERESC-MV12 | B129: 150ERESC, 3 Ph, 277/480. 4S13X Alternator, Steel Enclosure | C129: 150 | D129: 250 | E129: =F129*$J$3 -> 0 | F129: =Generators_PL!F129 -> 46560 | G129: =Generators_PL!G129 -> 37200 | H129: =Generators_PL!H129 -> 36455 | I129: 50220 | J129: 49214.25

Sheet GENSET_ACCY_6-20kW
A1: 615 | S1: =Generators_PL!H1 -> Residential Price List
S2: =Generators_PL!H2 -> EFFECTIVE DATE: 05/01/2023
S3: =Generators_PL!H3 -> Pricing is in USD
E4: =Generators_PL!F4 -> 0
C5: Please click on the following link to access Accessory Kit Pricing | D5: :AMP STOCK ORDERS
A6: OLD PART NUMBER (superseded by the New Part Number starting on 4/3/2023) | B6: NEW PART NUMBER | C6: Description | D6: Net Price | E6: Aftermarket Parts List Price | F6: MSRP | G6: MAP | H6: 6VSG | I6: 8.5RES | J6: 12RES | K6: 8/10/12RESV(L) | L6: 8RESV(L) | M6: 10/12RESV(L) | N6: 14RES(L) | O6: 14RCA(L) | P6: 14RESA(L) | Q6: 20RCA(L) | R6: 20RESC(L) | S6: 26RCA(L)
A7: RESIDENTIAL AIR COOLED GENSET PARTS & ACCESSORIES PRICE LIST
A9: GM85144-KP1-QS | B9: GM85144-1 | C9: PowerSync® Automatic Paralleling Module (APM) | D9: =E9*E$4 -> 0 | E9: 3150 | N9: X | O9: X | P9: X | Q9: X | R9: X
A10: GM86368-KP1-QS | B10: GM86368-S1 | C10: Circuit Breaker Kit - 14Kw (70 Amp) | D10: 0 | E10: 125 | N10: X | O10: X | P10: X
A11: GM86369-KP1-QS | B11: GM86369-S1 | C11: Circuit Breaker Kit - 20kW (100 Amp) | D11: 0 | E11: 160 | Q11: X | R11: X
A12: GM92001-KP1-QS | B12: GM92001-1 | C12: Power Relay Module (PRM) | D12: 0 | E12: 160 | K12: X | N12: X | O12: X | P12: X | Q12: X | R12: X
A13: GM81529-KP1-QS | B13: GM81529-S1 | C13: Programmable Interface Module (PIM) (UL) | D13: 0 | E13: 390 | K13: X | N13: X | O13: X | P13: X | Q13: X | R13: X
A14: GM81529-KP2-QS | B14: GM81529-S2 | C14: Programmable Interface Module (PIM) (CSA) | D14: 0 | E14: 390 | K14: X | N14: X | O14: X | P14: X | Q14: X | R14: X
A15: GM17250-KP1-QS | B15: GM17250-S1 | C15: 400 Amp Current Transformer – Larger Inner Diameter (for use with LCM or Load Shed kit, if required) | D15: 0 | E15: 187 | K15: X | N15: X | O15: X | P15: X | Q15: X | R15: X
A16: GM114539-KP1-QS | B16: GM114539-S1 | C16: OnCue Plus- Wireless Radio Kit | D16: 0 | E16: 210 | H16: X | K16: X | L16: X | M16: X | N16: X | O16: X | P16: X | Q16: X | R16: X
A17: GM19462-KP4-QS | B17: GM19462-S4 | C17: Carburetor Heater 120V | D17: 0 | E17: 189 | H17: X | I17: X | J17: X | N17: X | O17: X | P17: X
A18: GM19462-KP3-QS | B18: GM19462-S3 | C18: Carburetor Heater, 240V | D18: 0 | E18: 218 | N18: X | O18: X | P18: X
A19: GM57969-KP5-QS | B19: GM57969-S | C19: Carburetor Heater, 40W, 120V | D19: 0 | E19: 189 | K19: X | Q19: X | R19: X
A20: GM57969-KP3-QS | B20: GM57969-S3 | C20: Carburetor Heater, 240V | D20: 0 | E20: 189 | Q20: X | R20: X
A21: GM79141-KP3-QS | B21: GM79141-S | C21: Fuel Regulator Heater, 120V | D21: 0 | E21: 311 | Q21: X | R21: X
A22: GM79141-KP2-QS | B22: GM79141-S2 | C22: Fuel Regulator Heater, 240V | D22: 0 | E22: 311 | Q22: X | R22: X
A23: GM92406-KP3-QS | B23: GM92406-S3 | C23: Battery Heater, 120V | D23: 0 | E23: 255 | J23: X | K23: X | N23: X | O23: X | Q23: X | R23: X
A24: GM92406-KP2-QS | B24: GM92406-S2 | C24: Battery Heater, 240V | D24: 0 | E24: 275 | N24: X | Q24: X | R24: X
A25: GM75513-KP1 | B25: GM106374-S | C25: Battery Group Size 51 500CCA | D25: 0 | E25: 158 | H25: X | J25: X | K25: X | O25: X | P25: X | Q25: X | R25: X
A26: GM48808-KP1 | B26: GM106369-S | C26: Battery Group Size 26 500CCA | D26: 0 | E26: 141.8412 | I26: X | J26: X
A27: GM101615-KP1-QS | B27: GM101615-S1 | C27: Alternator Brush Cover | D27: 0 | E27: 23 | O27: X | P27: X | Q27: X | R27: X
A28: GM102176-KP1-QS | B28: GM102176-S1 | C28: Pressure Sensor Cover | D28: 0 | E28: 7 | N28: X | O28: X | P28: X | Q28: X | R28: X
A29: GM110949-KP1-QS | B29: GM110949-S1 | C29: Breather Tube Heater/Oil Heater Kit, 120V (14 kW) | D29: 0 | E29: 356 | O29: X | P29: X
A30: GM110949-KP2-QS | B30: GM110949-S2 | C30: Breather Tube Heater/Oil Heater Kit, 120V (20 kW) | D30: 0 | E30: 336 | Q30: X | R30: X
A31: GM110948-KP1-QS | B31: GM110948-S1 | C31: Cold Weather Package Kit, 120V (14kW) | D31: 0 | E31: 590 | O31: X | P31: X
A32: GM110948-KP2-QS | B32: GM110948-S2 | C32: Cold Weather Package Kit, 120V (20kW) | D32: 0 | E32: 640 | Q32: X | R32: X
B33: GM110948-S3 | C33: Cold Weather Package Kit, 120V (26kW) | E33: 670 | S33: X
B34: GM119028-S1 | C34: 120V Battery Heater Kit | E34: 40.89 | S34: X
B35: GM119027-S1 | C35: Flex Fuel Line | E35: 159.31 | S35: X
A36: GM107377-KP-QS | B36: GM107377-S | C36: Vent Tube Plug Kit | D36: 0 | E36: 18 | R36: X
A37: GM85224-KP1-QS | B37: GM85224-S1 | C37: Oil Makeup Kit | D37: 0 | E37: 400 | H37: X
A38: GM85409-KP1-QS | B38: GM85409-S1 | C38: Spark Arrestor - USFS Approved | D38: 0 | E38: 28 | H38: X
A39: GM90095-KP1-QS | B39: GM90095-S1 | C39: Emergency Stop - Composite Enclosure: Non-locking | D39: 0 | E39: 65 | P39: X | R39: X
A40: GM103279-KP1-QS | B40: GM103279-S1 | C40: Lockable Emergency Stop - Remote Mounting | D40: 0 | E40: 131 | K40: X | N40: X | O40: X | P40: X | Q40: X | R40: X
A41: GM113935-KP1-QS | B41: GM113935-S2 | C41: Lockable Emergency Stop - Enclosure Mounting | D41: 0 | E41: 131 | K41: X | L41: X | M41: X | N41: X | O41: X | P41: X | Q41: X | R41: X
A42: GM92228-KP1-QS | B42: No Change | C42: 3" Concrete Mounting Pad (only comes in quantities of 5) SHIPS WITHIN US ONLY | D42: =E42*$E$4 -> 0 | E42: 225 | F42: 185.4 | G42: 178.2 | M42: X
A43: GM92228-KP2-QS | B43: No Change | C43: 4" Concrete Mounting Pad (only comes in quantities of 5) SHIPS WITHIN US ONLY | D43: 0 | E43: 280 | F43: 230.72 | G43: 221.76 | M43: X
A44: GM90969-KP1-QS | B44: No Change | C44: 3" Concrete Mounting Pad (only comes in quantities of 5) SHIPS WITHIN US ONLY | D44: 0 | E44: 243 | F44: 200.232 | G44: 192.456 | P44: X | R44: X
A45: GM90969-KP2-QS | B45: No Change | C45: 4" Concrete Mounting Pad (only comes in quantities of 5) SHIPS WITHIN US ONLY | D45: 0 | E45: 291 | F45: 239.784 | G45: 230.472 | P45: X | R45: X
A46: GM104820-KP1-QS | B46: No Change | C46: 3" Concrete Mounting Pad (only comes in quantities of 5) SHIPS WITHIN US ONLY | D46: =E46*$E$4 -> 0 | E46: 243 | F46: 200.232 | G46: 192.456 | O46: X | Q46: X
A47: GM104820-KP2-QS | B47: No Change | C47: 4" Concrete Mounting Pad (only comes in quantities of 5) SHIPS WITHIN US ONLY | D47: 0 | E47: 291 | F47: 239.784 | G47: 230.472 | O47: X | Q47: X
A48: GM90365-SKP1-QS | B48: GM90365 | C48: Maintenance Kit – SV620 (8RESV/L Kit) | D48: =E48*E$4 -> 0 | E48: 71 | L48: X
A49: GM90366-SKP1-QS | B49: GM90366 | C49: Maintenance Kit – KT725 (10/12RESV/L Kit) | D49: 0 | E49: 87 | M49: X
A50: GM62345-SKP1-QS | B50: GM62345 | C50: Maintenance Kit – CH640 | D50: 0 | E50: 93 | I50: X
A51: GM62346-SKP1-QS | B51: GM62346 | C51: Maintenance Kit – CH740 | D51: 0 | E51: 85.2 | H51: X | J51: X | N51: X | O51: X | P51: X
A52: GM62347-SKP1-QS | B52: GM62347 | C52: Maintenance Kit – CH1000 | D52: 0 | E52: 102 | Q52: X | R52: X
A53: GM94923 | B53: No Change | C53: RESV Display Unit | D53: 0 | E53: 940
A54: GM109323 | B54: No Change | C54: RCA Display Unit | D54: 0 | E54: 1005
A55: GM32333-KP7-QS | B55: GM32333-S2 | C55: Harness, 25', Remote Panel | D55: =E55*E$4 -> 0 | E55: 419.83
A56: GM32333-KP8-QS | B56: GM32323-S8 | C56: Harness, 100' Remote Panel | D56: 0 | E56: 0
A57: GM118073 | B57: No Change | C57: 7 Year Comprehensive Warranty | D57: 0 | E57: 695 | F57: =VLOOKUP($A57,'[2]CURRENT PRICING'!$B:$F,4,FALSE) -> 750 | G57: =VLOOKUP($A57,'[2]CURRENT PRICING'!$B:$F,5,FALSE) -> 750 | H57: X | I57: X | J57: X | K57: X | L57: X | M57: X | N57: X | O57: X | P57: X | Q57: X | R57: X
A58: GM118074 | B58: No Change | C58: 10 Year Comprehensive Warranty | D58: 0 | E58: 995 | F58: =VLOOKUP($A58,'[2]CURRENT PRICING'!$B:$F,4,FALSE) -> 1050 | G58: =VLOOKUP($A58,'[2]CURRENT PRICING'!$B:$F,5,FALSE) -> 1050 | H58: X | I58: X | J58: X | K58: X | L58: X | M58: X | N58: X | O58: X | P58: X | Q58: X | R58: X

Sheet GENSET_ACCY_24-150kW
P1: =Generators_PL!H1 -> Residential Price List
P2: =Generators_PL!H2 -> EFFECTIVE DATE: 05/01/2023
P3: =Generators_PL!H3 -> Pricing is in USD
E4: =Generators_PL!F4 -> 0
C5: Please click on the following link to access Accessory Kit Pricing | D5: :AMP STOCK ORDERS
A6: OLD PART NUMBER (superseded by the New Part Number starting on 4/3/2023) | B6: NEW PART NUMBER | C6: Description | D6: Net Price | E6: Aftermarket Parts List Price | F6: MSRP | G6: MAP | H6: 24RCL | I6: 30RCL | J6: 38RCLB | K6: 48RCL/RCLA/RCLB | L6: 60RCL/60RCLA | M6: KG80R | N6: KG100R | O6: KG125R | P6: 150ERESC
A7: RESIDENTIAL LIQUID COOLED GENSET PARTS & ACCESSORIES PRICE LIST
B9: GM115956-S1 | C9: 48/60 RCL Auto Dual fuel Changeover Kit | D9: =E9*$E$4 -> 0 | E9: 709.3 | K9: X | L9: X
A10: GM81529-KP1-QS | B10: GM81529-S1 | C10: Programmable Interface Module (PIM) (UL) | D10: 0 | E10: 390 | H10: X | I10: X | J10: X | K10: X | L10: X
A11: GM81529-KP2-QS | B11: GM81529-S2 | C11: Programmable Interface Module (PIM) (CSA) | D11: 0 | E11: 390 | H11: X | I11: X | J11: X | K11: X | L11: X
A12: GM92001-KP1-QS | B12: GM92001-1 | C12: Power Relay Module (PRM) | D12: 0 | E12: 160 | H12: X | I12: X | J12: X | K12: X | L12: X
A13: GM17250-KP1-QS | B13: GM17250-S1 | C13: 400 Amp Current Transformer – Larger Inner Diameter (for use with LCM or Load Shed kit, if required) | D13: 0 | E13: 187 | H13: X | I13: X | J13: X | K13: X
A14: GM17250-KP2-QS | B14: GM17250-S2 | C14: 500 Amp Current Transformer (for use with LCM or Load Shed kit, if required) | D14: 0 | E14: 187 | L14: X
A15: GM114539-KP1-QS | B15: GM114539-S1 | C15: OnCue Plus- Wireless Radio Kit | D15: 0 | E15: 210 | H15: X | I15: X | J15: X | K15: X | L15: X
A16: GM104703-KP1 | B16: GM104703-S1 | C16: Battery Heater, 120V, 65W | D16: 0 | E16: 187.9930678 | H16: X | I16: X | J16: X | K16: X | L16: X | M16: X | N16: X | O16: X | P16: X
A17: GM89020-KP1 | B17: GM106373-S | C17: Battery Group Size 24 650CCA | D17: 0 | E17: 174.44 | H17: X | I17: X | J17: X | K17: X | L17: X
A18: GM90235-KP1-QS | B18: GM90235-S1 | C18: Block Heater, 500W, 120V | D18: 0 | E18: 115 | H18: X | I18: X | J18: X
A19: GM90235-KP2 | B19: GM90235-S2 | C19: Block Heater, 500W, 240V | D19: 0 | E19: 115 | H19: X | I19: X | J19: X
A20: GM78529-KP1-QS | B20: GM78529-S1 | C20: Block Heater, 1500W, 120V | D20: 0 | E20: 115 | K20: X | L20: X
A21: GM78529-KP2 | B21: GM78529-S2 | C21: Block Heater, 1500W, 240V | D21: 0 | E21: 115 | K21: X | L21: X
A22: GM78171-KP1 | B22: GM78171-S1 | C22: Crankcase Vent Heater Kit | D22: 0 | E22: 1128.62 | P22: X
A23: GM93357-KP1-QS | B23: GM93357-S2 | C23: Oil Pan Heater - 120V | D23: 0 | E23: 150 | H23: X | I23: X | J23: X
A24: GM93357-KP2 | B24: GM93357-S1 | C24: Oil Pan Heater - 240V | D24: 0 | E24: 150 | H24: X | I24: X | J24: X
A25: GM103279-KP1-QS | B25: GM103279-S1 | C25: Lockable Emergency Stop - Remote Mounting | D25: 0 | E25: 131 | H25: X | I25: X | J25: X | K25: X | L25: X | M25: X | N25: X | O25: X | P25: X
A26: GM113935-KP2-QS | B26: GM113935-S2 | C26: Lockable Emergency Stop - Enclosure Mounting | D26: 0 | E26: 131 | H26: X | I26: X | J26: X | K26: X | L26: X
A27: GM91356-KP1 | B27: GM91356-S1 | C27: REMOTE ANNUNCIATOR | D27: 0 | E27: 1035.041651 | M27: X | N27: X | O27: X | P27: X
A28: GM91356-KP2 | B28: GM91356-S2 | C28: REMOTE ANNUNCIATOR W/ ATS | D28: 0 | E28: 1197.738148 | M28: X | N28: X | O28: X | P28: X
A29: GM91356-KP3 | B29: GM91356-S3 | C29: REMOTE ANNUNCIATOR W/ 4 ATS | D29: 0 | E29: 1292.470294 | M29: X | N29: X | O29: X | P29: X
A30: GM62466-KP1 | B30: GM62466-S1 | C30: REMOTE ANNUNCIATOR POWER SUPPLY | D30: 0 | E30: 60 | M30: X | N30: X | O30: X | P30: X
A31: GM41143-KP2 | B31: GM41143-S2 | C31: CONVERTER, MODBUS/ETHERNET | D31: 0 | E31: 641.0131468 | M31: X | N31: X | O31: X | P31: X
A32: PA-343303 | B32: PA-343303 | C32: Gaseous filter | D32: 0 | E32: 165 | M32: X | N32: X | O32: X | P32: X
A33: GM93396-SKP1-QS | B33: GM93396 | C33: Maintenance Kit – 2.2L | D33: 0 | E33: 123 | H33: X | I33: X | J33: X
A34: GM86771-SKP1-QS | B34: GM86771 | C34: Maintenance Kit – 4.3L | D34: 0 | E34: 90 | J34: X
A35: GM83718-SKP1-QS | B35: GM83718 | C35: Maintenance Kit – 5.0L | D35: 0 | E35: 127 | K35: X
A36: GM89979-SKP1-QS | B36: GM89979 | C36: Maintenance Kit – 5.7L | D36: 0 | E36: 140.2 | L36: X
A37: GM106686-SKP1-QS | B37: GM106686-S | C37: Maintenance Kit - 6.2L | D37: 0 | E37: 190 | K37: X | L37: X
A38: 221886 | B38: No Change | C38: 5 Year Comprehensive Warranty | D38: =E38*$E$4 -> 0 | E38: 703 | M38: X | N38: X
A39: 221887 | B39: No Change | C39: 5 Year Comprehensive Warranty | D39: 0 | E39: 1452 | O39: X | P39: X
A40: GM118078 | B40: No Change | C40: 7 Year Comprehensive Warranty | D40: 0 | E40: 995 | F40: =VLOOKUP($A40,'[2]CURRENT PRICING'!$B:$F,4,FALSE) -> 1095 | G40: =VLOOKUP($A40,'[2]CURRENT PRICING'!$B:$F,5,FALSE) -> 1095 | H40: X | I40: X | J40: X | K40: X | L40: X
A41: GM118079 | B41: No Change | C41: 10 Year Comprehensive Warranty | D41: 0 | E41: 1395 | F41: =VLOOKUP($A41,'[2]CURRENT PRICING'!$B:$F,4,FALSE) -> 1495 | G41: =VLOOKUP($A41,'[2]CURRENT PRICING'!$B:$F,5,FALSE) -> 1495 | H41: X | I41: X | J41: X | K41: X | L41: X

Sheet PORTABLES_PL (hidden)
V1: =[3]Generators_PL!H1 -> Residential Price List
V2: =Generators_PL!H2 -> EFFECTIVE DATE: 05/01/2023
V3: =[3]Generators_PL!H3 -> Pricing is in USD
A5: *denotes new or updated models
B6: Certifications | K6: Size (in.) | O6: Plugs
A7: Specification # | B7: EPA | C7: CARB | D7: CSA | E7: Description | F7: Rated (kW) | G7: Running (kW) | H7: Fuel Tank Size (Gal) | I7: GFCI | J7: Weight | K7: L | L7: W | M7: H | N7: Low Oil Shutdown | O7: USB Plug | P7: AC Plug | Q7: DC Plug | R7: Pallet Qty | S7: Net Price | T7: Available Quantity (as of 10/20/22) | U7: Special Exit Price (no additional multipliers/ discounts applies) | V7: SRP
A8: PORTABLE GENSETS: 50-State ARB/EPA
A10: PA-eGen18iS-3001 | B10: x | C10: x | D10: x | E10: Portables Inverter 1800W Solar Charge | F10: 1.8 | G10: 1.44 | H10: N/A | I10: Y | J10: 116 | K10: 22 | L10: 18 | M10: 26 | N10: N/A | O10: 2 | P10: 2 | Q10: 2 | R10: 8 | S10: =IF(ISERROR(VLOOKUP($J10,[3]INPUTS!$H:$I,2,FALSE)),INDEX('[3]CURRENT PRICING'!$A:$U,MATCH($A10,'[3]CURRENT PRICING'!$B:$B,0),MATCH([3]Generators_PL!$H$1,'[3]CURRENT PRICING'!$11:$11,0)),VLOOKUP($J10,[3]INPUTS!$H:$I,2,FALSE)) -> 944.325 | T10: =VLOOKUP($A10,'[3]CURRENT PRICING'!$B:$F,3,FALSE) -> 1399 | U10: =VLOOKUP($A10,'[3]CURRENT PRICING'!$B:$F,4,FALSE) -> 1329 | V10: =VLOOKUP($A10,'[3]CURRENT PRICING'!$B:$F,5,FALSE) -> 1199
A11: PA-GEN50-3003 | B11: x | C11: x | D11: x | E11: 5.0kW Portable with Mobility Kit | F11: 5 | G11: 4.3 | H11: 8 | I11: N | J11: 189 | K11: 31 | L11: 23 | M11: 24 | N11: Y | O11: N/A | P11: 5 | Q11: N/A | R11: 6 | S11: =IF(ISERROR(VLOOKUP($J11,[3]INPUTS!$H:$I,2,FALSE)),INDEX('[3]CURRENT PRICING'!$A:$U,MATCH($A11,'[3]CURRENT PRICING'!$B:$B,0),MATCH([3]Generators_PL!$H$1,'[3]CURRENT PRICING'!$11:$11,0)),VLOOKUP($J11,[3]INPUTS!$H:$I,2,FALSE)) -> 741.825 | T11: =VLOOKUP($A11,'[3]CURRENT PRICING'!$B:$F,3,FALSE) -> 1099 | U11: =VLOOKUP($A11,'[3]CURRENT PRICING'!$B:$F,4,FALSE) -> 899 | V11: =VLOOKUP($A11,'[3]CURRENT PRICING'!$B:$F,5,FALSE) -> 849
A12: PA-GEN50-3102 | B12: x | C12: x | D12: x | E12: 5.0kW Portable w Mobility Kit, CO Monitor | F12: 5 | G12: 4.3 | H12: 8 | I12: N | J12: 189 | K12: 31 | L12: 23 | M12: 24 | N12: Y | O12: N/A | P12: 5 | Q12: N/A | R12: 6 | S12: =IF(ISERROR(VLOOKUP($J12,[3]INPUTS!$H:$I,2,FALSE)),INDEX('[3]CURRENT PRICING'!$A:$U,MATCH($A12,'[3]CURRENT PRICING'!$B:$B,0),MATCH([3]Generators_PL!$H$1,'[3]CURRENT PRICING'!$11:$11,0)),VLOOKUP($J12,[3]INPUTS!$H:$I,2,FALSE)) -> 944.325 | T12: 195 | U12: =VLOOKUP($A12,'[3]CURRENT PRICING'!$B:$F,4,FALSE) -> 835 | V12: =VLOOKUP($A12,'[3]CURRENT PRICING'!$B:$F,5,FALSE) -> 1049
A13: PA-PRO64-3002 | B13: x | C13: x | D13: x | E13: 6.4kW Portable, Tri-Fuel Ready, w Mobility Kit | F13: 6.4 | G13: 5.2 | H13: 8 | I13: Y | J13: 196 | K13: 35 | L13: 23 | M13: 24 | N13: Y | O13: N/A | P13: 6 | Q13: 1 | R13: 6 | S13: =IF(ISERROR(VLOOKUP($J13,[3]INPUTS!$H:$I,2,FALSE)),INDEX('[3]CURRENT PRICING'!$A:$U,MATCH($A13,'[3]CURRENT PRICING'!$B:$B,0),MATCH([3]Generators_PL!$H$1,'[3]CURRENT PRICING'!$11:$11,0)),VLOOKUP($J13,[3]INPUTS!$H:$I,2,FALSE)) -> 1011.825 | T13: =VLOOKUP($A13,'[3]CURRENT PRICING'!$B:$F,3,FALSE) -> 1499 | U13: =VLOOKUP($A13,'[3]CURRENT PRICING'!$B:$F,4,FALSE) -> 1349 | V13: =VLOOKUP($A13,'[3]CURRENT PRICING'!$B:$F,5,FALSE) -> 1299
A14: PA-PRO37-3101 | B14: x | C14: x | D14: x | E14: 3.7kW Portable, CO Monitor | F14: 3.7 | G14: 3 | H14: 3.4 | I14: Y | J14: 134 | K14: 25 | L14: 20 | M14: 21 | N14: Y | O14: N/A | P14: 6 | Q14: N/A | R14: 16 | S14: =IF(ISERROR(VLOOKUP($J14,[3]INPUTS!$H:$I,2,FALSE)),INDEX('[3]CURRENT PRICING'!$A:$U,MATCH($A14,'[3]CURRENT PRICING'!$B:$B,0),MATCH([3]Generators_PL!$H$1,'[3]CURRENT PRICING'!$11:$11,0)),VLOOKUP($J14,[3]INPUTS!$H:$I,2,FALSE)) -> 910.575 | T14: 79 | U14: =VLOOKUP($A14,'[3]CURRENT PRICING'!$B:$F,4,FALSE) -> 715 | V14: =VLOOKUP($A14,'[3]CURRENT PRICING'!$B:$F,5,FALSE) -> 1049
A15: PA-PRO64-3102 | B15: x | C15: x | D15: x | E15: 6.4kW Portable, w Mobility Kit, CO Monitor | F15: 6.4 | G15: 5.2 | H15: 8 | I15: Y | J15: 198 | K15: 29.4 | L15: 21.4 | M15: 22.3 | N15: Y | O15: N/A | P15: 6 | Q15: N/A | R15: 6 | S15: =IF(ISERROR(VLOOKUP($J15,[3]INPUTS!$H:$I,2,FALSE)),INDEX('[3]CURRENT PRICING'!$A:$U,MATCH($A15,'[3]CURRENT PRICING'!$B:$B,0),MATCH([3]Generators_PL!$H$1,'[3]CURRENT PRICING'!$11:$11,0)),VLOOKUP($J15,[3]INPUTS!$H:$I,2,FALSE)) -> 876.825 | T15: 89 | U15: =VLOOKUP($A15,'[3]CURRENT PRICING'!$B:$F,4,FALSE) -> 870 | V15: =VLOOKUP($A15,'[3]CURRENT PRICING'!$B:$F,5,FALSE) -> 999
A16: PA-PRO64E-3002 | B16: x | C16: x | D16: x | E16: 6.4kW Portable, Electric Start w Mobility Kit | F16: 6.4 | G16: 5.2 | H16: 8 | I16: Y | J16: 218 | K16: 35 | L16: 23 | M16: 24 | N16: Y | O16: N/A | P16: 6 | Q16: 1 | R16: 6 | S16: =IF(ISERROR(VLOOKUP($J16,[3]INPUTS!$H:$I,2,FALSE)),INDEX('[3]CURRENT PRICING'!$A:$U,MATCH($A16,'[3]CURRENT PRICING'!$B:$B,0),MATCH([3]Generators_PL!$H$1,'[3]CURRENT PRICING'!$11:$11,0)),VLOOKUP($J16,[3]INPUTS!$H:$I,2,FALSE)) -> 1214.325 | T16: =VLOOKUP($A16,'[3]CURRENT PRICING'!$B:$F,3,FALSE) -> 1799 | U16: =VLOOKUP($A16,'[3]CURRENT PRICING'!$B:$F,4,FALSE) -> 1599 | V16: =VLOOKUP($A16,'[3]CURRENT PRICING'!$B:$F,5,FALSE) -> 1449
A17: PA-PRO64E-3002-CA | B17: x | C17: x | D17: x | E17: 6.4kW Portable, Tri-Fuel, Electric Start w Mobility Kit | F17: 6.4 | G17: 5.2 | H17: 8 | I17: Y | J17: 218 | K17: 35 | L17: 23 | M17: 24 | N17: Y | O17: N/A | P17: 6 | Q17: 1 | R17: 6 | S17: =IF(ISERROR(VLOOKUP($J17,[3]INPUTS!$H:$I,2,FALSE)),INDEX('[3]CURRENT PRICING'!$A:$U,MATCH($A17,'[3]CURRENT PRICING'!$B:$B,0),MATCH([3]Generators_PL!$H$1,'[3]CURRENT PRICING'!$11:$11,0)),VLOOKUP($J17,[3]INPUTS!$H:$I,2,FALSE)) -> 1146.825 | T17: =VLOOKUP($A17,'[3]CURRENT PRICING'!$B:$F,3,FALSE) -> 1699 | U17: =VLOOKUP($A17,'[3]CURRENT PRICING'!$B:$F,4,FALSE) -> 1549 | V17: =VLOOKUP($A17,'[3]CURRENT PRICING'!$B:$F,5,FALSE) -> 1449
A18: PA-PRO64E-3102 | B18: x | C18: x | D18: x | E18: 6.4kW Portable w Electric Start, Mobility Kit, CO Monitor | F18: 6.4 | G18: 5.2 | H18: 8 | I18: Y | J18: 196 | K18: 35 | L18: 23 | M18: 24 | N18: Y | O18: N/A | P18: 6 | Q18: 1 | R18: 6 | S18: =IF(ISERROR(VLOOKUP($J18,[3]INPUTS!$H:$I,2,FALSE)),INDEX('[3]CURRENT PRICING'!$A:$U,MATCH($A18,'[3]CURRENT PRICING'!$B:$B,0),MATCH([3]Generators_PL!$H$1,'[3]CURRENT PRICING'!$11:$11,0)),VLOOKUP($J18,[3]INPUTS!$H:$I,2,FALSE)) -> 1315.575 | T18: 154 | U18: =VLOOKUP($A18,'[3]CURRENT PRICING'!$B:$F,4,FALSE) -> 995 | V18: =VLOOKUP($A18,'[3]CURRENT PRICING'!$B:$F,5,FALSE) -> 1599
A19: PA-PRO90-3002 | B19: x | C19: x | D19: x | E19: 9.0kW Portable w Mobility Kit | F19: 9 | G19: 7.2 | H19: 8 | I19: Y | J19: 224 | K19: 35 | L19: 23 | M19: 24 | N19: Y | O19: N/A | P19: 6 | Q19: 1 | R19: 4 | S19: =IF(ISERROR(VLOOKUP($J19,[3]INPUTS!$H:$I,2,FALSE)),INDEX('[3]CURRENT PRICING'!$A:$U,MATCH($A19,'[3]CURRENT PRICING'!$B:$B,0),MATCH([3]Generators_PL!$H$1,'[3]CURRENT PRICING'!$11:$11,0)),VLOOKUP($J19,[3]INPUTS!$H:$I,2,FALSE)) -> 1383.075 | T19: 90 | U19: =VLOOKUP($A19,'[3]CURRENT PRICING'!$B:$F,4,FALSE) -> 925 | V19: =VLOOKUP($A19,'[3]CURRENT PRICING'!$B:$F,5,FALSE) -> 1699
A20: PA-PRO90-3102 | B20: x | C20: x | D20: x | E20: 9.0kW Portable w Mobility Kit, CO Monitor | F20: 9 | G20: 7.2 | H20: 8 | I20: Y | J20: 218 | K20: 29.4 | L20: 21.4 | M20: 22.3 | N20: Y | O20: N/A | P20: 6 | Q20: N/A | R20: 4 | S20: =IF(ISERROR(VLOOKUP($J20,[3]INPUTS!$H:$I,2,FALSE)),INDEX('[3]CURRENT PRICING'!$A:$U,MATCH($A20,'[3]CURRENT PRICING'!$B:$B,0),MATCH([3]Generators_PL!$H$1,'[3]CURRENT PRICING'!$11:$11,0)),VLOOKUP($J20,[3]INPUTS!$H:$I,2,FALSE)) -> 1450.575 | T20: 88 | U20: =VLOOKUP($A20,'[3]CURRENT PRICING'!$B:$F,4,FALSE) -> 995 | V20: =VLOOKUP($A20,'[3]CURRENT PRICING'!$B:$F,5,FALSE) -> 1799
A21: PA-PRO90E-3102 | B21: x | C21: x | D21: x | E21: 9.0kW Portable w Electric Start, Mobility Kit, CO Monitor | F21: 9 | G21: 7.2 | H21: 8 | I21: Y | J21: 224 | K21: 35 | L21: 23 | M21: 24 | N21: Y | O21: N/A | P21: 6 | Q21: 1 | R21: 4 | T21: 167 | U21: =VLOOKUP($A21,'[3]CURRENT PRICING'!$B:$F,4,FALSE) -> 1095 | V21: =VLOOKUP($A21,'[3]CURRENT PRICING'!$B:$F,5,FALSE) -> 2049
A22: PA-PRO90E-3002 | B22: x | C22: x | D22: x | E22: 9.0kW Portable, Electric Start w Mobility Kit | F22: 9 | G22: 7.2 | H22: 8 | I22: Y | J22: 240 | K22: 35 | L22: 23 | M22: 24 | N22: Y | O22: N/A | P22: 6 | Q22: 1 | R22: 6 | S22: =IF(ISERROR(VLOOKUP($J22,[3]INPUTS!$H:$I,2,FALSE)),INDEX('[3]CURRENT PRICING'!$A:$U,MATCH($A22,'[3]CURRENT PRICING'!$B:$B,0),MATCH([3]Generators_PL!$H$1,'[3]CURRENT PRICING'!$11:$11,0)),VLOOKUP($J22,[3]INPUTS!$H:$I,2,FALSE)) -> 1450.575 | T22: =VLOOKUP($A22,'[3]CURRENT PRICING'!$B:$F,3,FALSE) -> 2149 | U22: =VLOOKUP($A22,'[3]CURRENT PRICING'!$B:$F,4,FALSE) -> 1999 | V22: =VLOOKUP($A22,'[3]CURRENT PRICING'!$B:$F,5,FALSE) -> 1899
A24: PORTABLE GENSETS: 49-State EPA
A26: PA-GEN50-2003 | B26: x | D26: x | E26: 5.0kW Portable w Mobility Kit | F26: 5 | G26: 4.3 | H26: 8 | I26: N | J26: 180 | K26: 32 | L26: 24 | M26: 25 | N26: Y | O26: N/A | P26: 5 | Q26: N/A | R26: 6 | S26: =IF(ISERROR(VLOOKUP($J26,[3]INPUTS!$H:$I,2,FALSE)),INDEX('[3]CURRENT PRICING'!$A:$U,MATCH($A26,'[3]CURRENT PRICING'!$B:$B,0),MATCH([3]Generators_PL!$H$1,'[3]CURRENT PRICING'!$11:$11,0)),VLOOKUP($J26,[3]INPUTS!$H:$I,2,FALSE)) -> 775.575 | T26: 170 | U26: =VLOOKUP($A26,'[3]CURRENT PRICING'!$B:$F,4,FALSE) -> 655 | V26: =VLOOKUP($A26,'[3]CURRENT PRICING'!$B:$F,5,FALSE) -> 849
A27: PA-GEN50-2102 | B27: x | D27: x | E27: 5.0kW Portable w Mobility Kit, CO Monitor | F27: 5 | G27: 4.3 | H27: 8 | I27: Y | J27: 180 | K27: 19.4 | L27: 21.4 | M27: 22.3 | N27: Y | O27: N/A | P27: 5 | Q27: N/A | R27: 6 | S27: =IF(ISERROR(VLOOKUP($J27,[3]INPUTS!$H:$I,2,FALSE)),INDEX('[3]CURRENT PRICING'!$A:$U,MATCH($A27,'[3]CURRENT PRICING'!$B:$B,0),MATCH([3]Generators_PL!$H$1,'[3]CURRENT PRICING'!$11:$11,0)),VLOOKUP($J27,[3]INPUTS!$H:$I,2,FALSE)) -> 843.075 | T27: 360 | U27: =VLOOKUP($A27,'[3]CURRENT PRICING'!$B:$F,4,FALSE) -> 830 | V27: =VLOOKUP($A27,'[3]CURRENT PRICING'!$B:$F,5,FALSE) -> 949
A28: PA-PRO37-2101 | B28: x | D28: x | E28: 3.7kW Portable, CO Monitor | F28: 3.7 | G28: 3 | H28: 3.4 | I28: Y | J28: 134 | K28: 25 | L28: 20 | M28: 21 | N28: Y | O28: N/A | P28: 6 | Q28: N/A | R28: 16 | T28: 160 | U28: =VLOOKUP($A28,'[3]CURRENT PRICING'!$B:$F,4,FALSE) -> 710 | V28: =VLOOKUP($A28,'[3]CURRENT PRICING'!$B:$F,5,FALSE) -> 999
A29: PA-PRO64-2002 | B29: x | D29: x | E29: 6.4kW Portable, w Mobility Kit | F29: 6.4 | G29: 5.2 | H29: 8 | I29: Y | J29: 198 | K29: 29.4 | L29: 21.4 | M29: 22.3 | N29: Y | O29: N/A | P29: 6 | Q29: N/A | R29: 6 | S29: =IF(ISERROR(VLOOKUP($J29,[3]INPUTS!$H:$I,2,FALSE)),INDEX('[3]CURRENT PRICING'!$A:$U,MATCH($A29,'[3]CURRENT PRICING'!$B:$B,0),MATCH([3]Generators_PL!$H$1,'[3]CURRENT PRICING'!$11:$11,0)),VLOOKUP($J29,[3]INPUTS!$H:$I,2,FALSE)) -> 944.325 | T29: 289 | U29: =VLOOKUP($A29,'[3]CURRENT PRICING'!$B:$F,4,FALSE) -> 690 | V29: =VLOOKUP($A29,'[3]CURRENT PRICING'!$B:$F,5,FALSE) -> 1099
A30: PA-PRO64E-2002 | B30: x | D30: x | E30: 6.4kW Portable, w Electric Start, Mobility Kit | F30: 6.4 | G30: 5.2 | H30: 8 | I30: Y | J30: 174 | K30: 35 | L30: 23 | M30: 24 | N30: Y | O30: N/A | P30: 6 | Q30: 1 | R30: 6 | S30: =IF(ISERROR(VLOOKUP($J30,[3]INPUTS!$H:$I,2,FALSE)),INDEX('[3]CURRENT PRICING'!$A:$U,MATCH($A30,'[3]CURRENT PRICING'!$B:$B,0),MATCH([3]Generators_PL!$H$1,'[3]CURRENT PRICING'!$11:$11,0)),VLOOKUP($J30,[3]INPUTS!$H:$I,2,FALSE)) -> 1113.075 | T30: 120 | U30: =VLOOKUP($A30,'[3]CURRENT PRICING'!$B:$F,4,FALSE) -> 800 | V30: =VLOOKUP($A30,'[3]CURRENT PRICING'!$B:$F,5,FALSE) -> 1349
A31: PA-PRO64E-2102 | B31: x | D31: x | E31: 6.4kW Portable, w Electric Kit, Mobility Kit, CO Monitor | F31: 6.4 | G31: 5.2 | H31: 8 | I31: Y | J31: 198 | K31: 29.4 | L31: 21.4 | M31: 22.3 | N31: Y | O31: N/A | P31: 6 | Q31: 1 | R31: 6 | S31: =IF(ISERROR(VLOOKUP($J31,[3]INPUTS!$H:$I,2,FALSE)),INDEX('[3]CURRENT PRICING'!$A:$U,MATCH($A31,'[3]CURRENT PRICING'!$B:$B,0),MATCH([3]Generators_PL!$H$1,'[3]CURRENT PRICING'!$11:$11,0)),VLOOKUP($J31,[3]INPUTS!$H:$I,2,FALSE)) -> 1214.325 | T31: 720 | U31: =VLOOKUP($A31,'[3]CURRENT PRICING'!$B:$F,4,FALSE) -> 990 | V31: =VLOOKUP($A31,'[3]CURRENT PRICING'!$B:$F,5,FALSE) -> 1499
A32: PA-PRO90-2002 | B32: x | D32: x | E32: 9.0kW Portable w Mobility Kit | F32: 9 | G32: 7.2 | H32: 8 | I32: Y | J32: 199 | K32: 35 | L32: 23 | M32: 24 | N32: Y | O32: N/A | P32: 6 | Q32: 1 | R32: 4 | S32: =IF(ISERROR(VLOOKUP($J32,[3]INPUTS!$H:$I,2,FALSE)),INDEX('[3]CURRENT PRICING'!$A:$U,MATCH($A32,'[3]CURRENT PRICING'!$B:$B,0),MATCH([3]Generators_PL!$H$1,'[3]CURRENT PRICING'!$11:$11,0)),VLOOKUP($J32,[3]INPUTS!$H:$I,2,FALSE)) -> 1248.075 | T32: 185 | U32: =VLOOKUP($A32,'[3]CURRENT PRICING'!$B:$F,4,FALSE) -> 810 | V32: =VLOOKUP($A32,'[3]CURRENT PRICING'!$B:$F,5,FALSE) -> 1599
A33: PA-PRO90E-2002 | B33: x | D33: x | E33: 9.0kW Portable, w Electric Start, Mobility Kit | F33: 9 | G33: 7.2 | H33: 8 | I33: Y | J33: 200 | K33: 35 | L33: 23 | M33: 24 | N33: Y | O33: N/A | P33: 6 | Q33: 1 | R33: 4 | S33: =IF(ISERROR(VLOOKUP($J33,[3]INPUTS!$H:$I,2,FALSE)),INDEX('[3]CURRENT PRICING'!$A:$U,MATCH($A33,'[3]CURRENT PRICING'!$B:$B,0),MATCH([3]Generators_PL!$H$1,'[3]CURRENT PRICING'!$11:$11,0)),VLOOKUP($J33,[3]INPUTS!$H:$I,2,FALSE)) -> 1484.325 | T33: 92 | U33: =VLOOKUP($A33,'[3]CURRENT PRICING'!$B:$F,4,FALSE) -> 1000 | V33: =VLOOKUP($A33,'[3]CURRENT PRICING'!$B:$F,5,FALSE) -> 1899
A34: PA-PRO90E-2102 | B34: x | D34: x | E34: 9.0kW Portable, w Electric Start, Mobility Kit, CO Monitor | F34: 9 | G34: 7.2 | H34: 8 | I34: Y | J34: 218 | K34: 29.4 | L34: 21.4 | M34: 22.3 | N34: Y | O34: N/A | P34: 6 | Q34: 1 | R34: 4 | S34: =IF(ISERROR(VLOOKUP($J34,[3]INPUTS!$H:$I,2,FALSE)),INDEX('[3]CURRENT PRICING'!$A:$U,MATCH($A34,'[3]CURRENT PRICING'!$B:$B,0),MATCH([3]Generators_PL!$H$1,'[3]CURRENT PRICING'!$11:$11,0)),VLOOKUP($J34,[3]INPUTS!$H:$I,2,FALSE)) -> 1551.825 | T34: 423 | U34: =VLOOKUP($A34,'[3]CURRENT PRICING'!$B:$F,4,FALSE) -> 1085 | V34: =VLOOKUP($A34,'[3]CURRENT PRICING'!$B:$F,5,FALSE) -> 1949
A36: PORTABLE GENSETS: ACCESSORIES
A38: 17 755 60-S | B38: x | E38: Tri-Fuel Regulator Kit (PRO64 models) | S38: =IF(ISERROR(VLOOKUP($J38,[3]INPUTS!$H:$I,2,FALSE)),INDEX('[3]CURRENT PRICING'!$A:$U,MATCH($A38,'[3]CURRENT PRICING'!$B:$B,0),MATCH([3]Generators_PL!$H$1,'[3]CURRENT PRICING'!$11:$11,0)),VLOOKUP($J38,[3]INPUTS!$H:$I,2,FALSE)) -> 76.275 | T38: =VLOOKUP($A38,'[3]CURRENT PRICING'!$B:$F,3,FALSE) -> 113 | U38: =VLOOKUP($A38,'[3]CURRENT PRICING'!$B:$F,4,FALSE) -> 101 | V38: =VLOOKUP($A38,'[3]CURRENT PRICING'!$B:$F,5,FALSE) -> 97
A39: 17 337 10-S | B39: x | E39: Natural Gas Fuel Optimizer Kit (PRO64 models) | S39: =IF(ISERROR(VLOOKUP($J39,[3]INPUTS!$H:$I,2,FALSE)),INDEX('[3]CURRENT PRICING'!$A:$U,MATCH($A39,'[3]CURRENT PRICING'!$B:$B,0),MATCH([3]Generators_PL!$H$1,'[3]CURRENT PRICING'!$11:$11,0)),VLOOKUP($J39,[3]INPUTS!$H:$I,2,FALSE)) -> 0.675 | T39: 28 | U39: =VLOOKUP($A39,'[3]CURRENT PRICING'!$B:$F,4,FALSE) -> 1 | V39: =VLOOKUP($A39,'[3]CURRENT PRICING'!$B:$F,5,FALSE) -> 1
A40: 17 755 56-S | B40: x | E40: Natural Gas Tri-Fuel Hose Kit (PRO64 models) | S40: =IF(ISERROR(VLOOKUP($J40,[3]INPUTS!$H:$I,2,FALSE)),INDEX('[3]CURRENT PRICING'!$A:$U,MATCH($A40,'[3]CURRENT PRICING'!$B:$B,0),MATCH([3]Generators_PL!$H$1,'[3]CURRENT PRICING'!$11:$11,0)),VLOOKUP($J40,[3]INPUTS!$H:$I,2,FALSE)) -> 55.35 | T40: =VLOOKUP($A40,'[3]CURRENT PRICING'!$B:$F,3,FALSE) -> 82 | U40: =VLOOKUP($A40,'[3]CURRENT PRICING'!$B:$F,4,FALSE) -> 73 | V40: =VLOOKUP($A40,'[3]CURRENT PRICING'!$B:$F,5,FALSE) -> 70
A41: 17 755 57-S | B41: x | E41: Liquid Propane Tri-Fuel Hose Kit (PRO64 models) | S41: =IF(ISERROR(VLOOKUP($J41,[3]INPUTS!$H:$I,2,FALSE)),INDEX('[3]CURRENT PRICING'!$A:$U,MATCH($A41,'[3]CURRENT PRICING'!$B:$B,0),MATCH([3]Generators_PL!$H$1,'[3]CURRENT PRICING'!$11:$11,0)),VLOOKUP($J41,[3]INPUTS!$H:$I,2,FALSE)) -> 39.15 | T41: =VLOOKUP($A41,'[3]CURRENT PRICING'!$B:$F,3,FALSE) -> 58 | U41: =VLOOKUP($A41,'[3]CURRENT PRICING'!$B:$F,4,FALSE) -> 52 | V41: =VLOOKUP($A41,'[3]CURRENT PRICING'!$B:$F,5,FALSE) -> 50
A42: 33 127 01-S | B42: x | C42: x | D42: x | E42: 12 Volt Battery Charger | S42: =IF(ISERROR(VLOOKUP($J42,[3]INPUTS!$H:$I,2,FALSE)),INDEX('[3]CURRENT PRICING'!$A:$U,MATCH($A42,'[3]CURRENT PRICING'!$B:$B,0),MATCH([3]Generators_PL!$H$1,'[3]CURRENT PRICING'!$11:$11,0)),VLOOKUP($J42,[3]INPUTS!$H:$I,2,FALSE)) -> 14.175 | T42: 48 | U42: =VLOOKUP($A42,'[3]CURRENT PRICING'!$B:$F,4,FALSE) -> 9 | V42: =VLOOKUP($A42,'[3]CURRENT PRICING'!$B:$F,5,FALSE) -> 18
A43: 33 755 03-S | B43: x | C43: x | D43: x | E43: 60W Solar Panel - folding (eGEN18 compatible) | S43: =IF(ISERROR(VLOOKUP($J43,[3]INPUTS!$H:$I,2,FALSE)),INDEX('[3]CURRENT PRICING'!$A:$U,MATCH($A43,'[3]CURRENT PRICING'!$B:$B,0),MATCH([3]Generators_PL!$H$1,'[3]CURRENT PRICING'!$11:$11,0)),VLOOKUP($J43,[3]INPUTS!$H:$I,2,FALSE)) -> 147.825 | T43: =VLOOKUP($A43,'[3]CURRENT PRICING'!$B:$F,3,FALSE) -> 219 | U43: =VLOOKUP($A43,'[3]CURRENT PRICING'!$B:$F,4,FALSE) -> 199 | V43: =VLOOKUP($A43,'[3]CURRENT PRICING'!$B:$F,5,FALSE) -> 179
A44: 33 755 04-S | B44: x | C44: x | D44: x | E44: 150W Panel (5' x 2' x 2") (eGEN18 compatible) | S44: =IF(ISERROR(VLOOKUP($J44,[3]INPUTS!$H:$I,2,FALSE)),INDEX('[3]CURRENT PRICING'!$A:$U,MATCH($A44,'[3]CURRENT PRICING'!$B:$B,0),MATCH([3]Generators_PL!$H$1,'[3]CURRENT PRICING'!$11:$11,0)),VLOOKUP($J44,[3]INPUTS!$H:$I,2,FALSE)) -> 363.825 | T44: =VLOOKUP($A44,'[3]CURRENT PRICING'!$B:$F,3,FALSE) -> 539 | U44: =VLOOKUP($A44,'[3]CURRENT PRICING'!$B:$F,4,FALSE) -> 479 | V44: =VLOOKUP($A44,'[3]CURRENT PRICING'!$B:$F,5,FALSE) -> 459
A45: 33 755 05-S | B45: x | C45: x | D45: x | E45: 25' Solar Extension Cord (one pair) | S45: =IF(ISERROR(VLOOKUP($J45,[3]INPUTS!$H:$I,2,FALSE)),INDEX('[3]CURRENT PRICING'!$A:$U,MATCH($A45,'[3]CURRENT PRICING'!$B:$B,0),MATCH([3]Generators_PL!$H$1,'[3]CURRENT PRICING'!$11:$11,0)),VLOOKUP($J45,[3]INPUTS!$H:$I,2,FALSE)) -> 66.825 | T45: 38 | U45: =VLOOKUP($A45,'[3]CURRENT PRICING'!$B:$F,4,FALSE) -> 37 | V45: =VLOOKUP($A45,'[3]CURRENT PRICING'!$B:$F,5,FALSE) -> 79
A46: 33 755 43-S | B46: x | C46: x | D46: x | E46: Solar Panel Parallel Connector Kit (eGEN18 compatible) | S46: =IF(ISERROR(VLOOKUP($J46,[3]INPUTS!$H:$I,2,FALSE)),INDEX('[3]CURRENT PRICING'!$A:$U,MATCH($A46,'[3]CURRENT PRICING'!$B:$B,0),MATCH([3]Generators_PL!$H$1,'[3]CURRENT PRICING'!$11:$11,0)),VLOOKUP($J46,[3]INPUTS!$H:$I,2,FALSE)) -> 21.6 | T46: =VLOOKUP($A46,'[3]CURRENT PRICING'!$B:$F,3,FALSE) -> 32 | U46: =VLOOKUP($A46,'[3]CURRENT PRICING'!$B:$F,4,FALSE) -> 32 | V46: =VLOOKUP($A46,'[3]CURRENT PRICING'!$B:$F,5,FALSE) -> 28
A47: 25 755 53-S | B47: x | C47: x | D47: x | E47: Wireless remote start/stop kit for PRO12.3EFI | S47: =IF(ISERROR(VLOOKUP($J47,[3]INPUTS!$H:$I,2,FALSE)),INDEX('[3]CURRENT PRICING'!$A:$U,MATCH($A47,'[3]CURRENT PRICING'!$B:$B,0),MATCH([3]Generators_PL!$H$1,'[3]CURRENT PRICING'!$11:$11,0)),VLOOKUP($J47,[3]INPUTS!$H:$I,2,FALSE)) -> 405 | T47: 18 | U47: =VLOOKUP($A47,'[3]CURRENT PRICING'!$B:$F,4,FALSE) -> 348 | V47: =VLOOKUP($A47,'[3]CURRENT PRICING'!$B:$F,5,FALSE) -> 525
A48: 34 755 01-S | B48: x | C48: x | D48: x | E48: Mobility Kit for PRO12.3EFI | S48: =IF(ISERROR(VLOOKUP($J48,[3]INPUTS!$H:$I,2,FALSE)),INDEX('[3]CURRENT PRICING'!$A:$U,MATCH($A48,'[3]CURRENT PRICING'!$B:$B,0),MATCH([3]Generators_PL!$H$1,'[3]CURRENT PRICING'!$11:$11,0)),VLOOKUP($J48,[3]INPUTS!$H:$I,2,FALSE)) -> 105.3 | T48: 52 | U48: =VLOOKUP($A48,'[3]CURRENT PRICING'!$B:$F,4,FALSE) -> 76 | V48: =VLOOKUP($A48,'[3]CURRENT PRICING'!$B:$F,5,FALSE) -> 133
A49: 37 755 08 | B49: x | C49: x | D49: x | E49: Single Cycle Mobility Kit, Gens & Pumps | T49: 44 | U49: =VLOOKUP($A49,'[3]CURRENT PRICING'!$B:$F,4,FALSE) -> 42 | V49: =VLOOKUP($A49,'[3]CURRENT PRICING'!$B:$F,5,FALSE) -> 79
A50: 25 755 45-S | B50: x | C50: x | D50: x | E50: Universal Wheelbarrow Handle | T50: 169 | U50: =VLOOKUP($A50,'[3]CURRENT PRICING'!$B:$F,4,FALSE) -> 10 | V50: =VLOOKUP($A50,'[3]CURRENT PRICING'!$B:$F,5,FALSE) -> 18
A51: 25 755 46-S | B51: x | C51: x | D51: x | E51: Universal Wheel | T51: 271 | U51: =VLOOKUP($A51,'[3]CURRENT PRICING'!$B:$F,4,FALSE) -> 28 | V51: =VLOOKUP($A51,'[3]CURRENT PRICING'!$B:$F,5,FALSE) -> 55
A52: 25 755 47-S | B52: x | C52: x | D52: x | E52: Universal Leg | T52: 22 | U52: =VLOOKUP($A52,'[3]CURRENT PRICING'!$B:$F,4,FALSE) -> 10 | V52: =VLOOKUP($A52,'[3]CURRENT PRICING'!$B:$F,5,FALSE) -> 18
A53: 25 755 48-S | B53: x | C53: x | D53: x | E53: Universal Lifting | T53: 1413 | U53: =VLOOKUP($A53,'[3]CURRENT PRICING'!$B:$F,4,FALSE) -> 7 | V53: =VLOOKUP($A53,'[3]CURRENT PRICING'!$B:$F,5,FALSE) -> 13
A54: 25 755 49-S | B54: x | C54: x | D54: x | E54: Universal Cord Management | T54: 1176 | U54: =VLOOKUP($A54,'[3]CURRENT PRICING'!$B:$F,4,FALSE) -> 7 | V54: =VLOOKUP($A54,'[3]CURRENT PRICING'!$B:$F,5,FALSE) -> 13
A55: 25 755 50-S | B55: x | C55: x | D55: x | E55: Universal Hand-Truck Handle | T55: 3749 | U55: =VLOOKUP($A55,'[3]CURRENT PRICING'!$B:$F,4,FALSE) -> 17 | V55: =VLOOKUP($A55,'[3]CURRENT PRICING'!$B:$F,5,FALSE) -> 27
A56: 25 755 51-S | B56: x | C56: x | D56: x | E56: Univerdal Rubber Isolator | T56: 916 | U56: =VLOOKUP($A56,'[3]CURRENT PRICING'!$B:$F,4,FALSE) -> 4 | V56: =VLOOKUP($A56,'[3]CURRENT PRICING'!$B:$F,5,FALSE) -> 8
A58: PORTABLE GENSETS: TRANSFER SWITCHES
A60: 37 755 06-S | B60: x | C60: x | D60: x | E60: 6-Circuit Transfer Switch | S60: =IF(ISERROR(VLOOKUP($J60,[3]INPUTS!$H:$I,2,FALSE)),INDEX('[3]CURRENT PRICING'!$A:$U,MATCH($A60,'[3]CURRENT PRICING'!$B:$B,0),MATCH([3]Generators_PL!$H$1,'[3]CURRENT PRICING'!$11:$11,0)),VLOOKUP($J60,[3]INPUTS!$H:$I,2,FALSE)) -> 303.75 | T60: 23 | U60: =VLOOKUP($A60,'[3]CURRENT PRICING'!$B:$F,4,FALSE) -> 228 | V60: =VLOOKUP($A60,'[3]CURRENT PRICING'!$B:$F,5,FALSE) -> 383
A61: 37 755 07-S | B61: x | C61: x | D61: x | E61: 10-Circuit Transfer Switch | S61: =IF(ISERROR(VLOOKUP($J61,[3]INPUTS!$H:$I,2,FALSE)),INDEX('[3]CURRENT PRICING'!$A:$U,MATCH($A61,'[3]CURRENT PRICING'!$B:$B,0),MATCH([3]Generators_PL!$H$1,'[3]CURRENT PRICING'!$11:$11,0)),VLOOKUP($J61,[3]INPUTS!$H:$I,2,FALSE)) -> 405 | T61: 62 | U61: =VLOOKUP($A61,'[3]CURRENT PRICING'!$B:$F,4,FALSE) -> 311 | V61: =VLOOKUP($A61,'[3]CURRENT PRICING'!$B:$F,5,FALSE) -> 510
A63: PORTABLE GENSETS: WATER PUMPS
A65: PA-WP20-3001 | B65: x | C65: x | D65: x | E65: CARB 2 Inch PRO Water Pump | S65: =IF(ISERROR(VLOOKUP($J65,[3]INPUTS!$H:$I,2,FALSE)),INDEX('[3]CURRENT PRICING'!$A:$U,MATCH($A65,'[3]CURRENT PRICING'!$B:$B,0),MATCH([3]Generators_PL!$H$1,'[3]CURRENT PRICING'!$11:$11,0)),VLOOKUP($J65,[3]INPUTS!$H:$I,2,FALSE)) -> 286.875 | T65: 79 | U65: =VLOOKUP($A65,'[3]CURRENT PRICING'!$B:$F,4,FALSE) -> 229 | V65: =VLOOKUP($A65,'[3]CURRENT PRICING'!$B:$F,5,FALSE) -> 375
A66: PA-WP20-3001-MX | B66: x | C66: x | D66: x | E66: CARB 2 inch Water Pump | S66: =IF(ISERROR(VLOOKUP($J66,[3]INPUTS!$H:$I,2,FALSE)),INDEX('[3]CURRENT PRICING'!$A:$U,MATCH($A66,'[3]CURRENT PRICING'!$B:$B,0),MATCH([3]Generators_PL!$H$1,'[3]CURRENT PRICING'!$11:$11,0)),VLOOKUP($J66,[3]INPUTS!$H:$I,2,FALSE)) -> 286.875 | T66: =VLOOKUP($A66,'[3]CURRENT PRICING'!$B:$F,3,FALSE) -> 425 | U66: =VLOOKUP($A66,'[3]CURRENT PRICING'!$B:$F,4,FALSE) -> 425 | V66: =VLOOKUP($A66,'[3]CURRENT PRICING'!$B:$F,5,FALSE) -> 375
A67: PA-WP30-3001 | B67: x | C67: x | D67: x | E67: CARB 3 Inch PRO Water Pump | S67: =IF(ISERROR(VLOOKUP($J67,[3]INPUTS!$H:$I,2,FALSE)),INDEX('[3]CURRENT PRICING'!$A:$U,MATCH($A67,'[3]CURRENT PRICING'!$B:$B,0),MATCH([3]Generators_PL!$H$1,'[3]CURRENT PRICING'!$11:$11,0)),VLOOKUP($J67,[3]INPUTS!$H:$I,2,FALSE)) -> 405 | T67: =VLOOKUP($A67,'[3]CURRENT PRICING'!$B:$F,3,FALSE) -> 600 | U67: =VLOOKUP($A67,'[3]CURRENT PRICING'!$B:$F,4,FALSE) -> 600 | V67: =VLOOKUP($A67,'[3]CURRENT PRICING'!$B:$F,5,FALSE) -> 525
A68: PA-WP30-3001-MX | B68: x | C68: x | D68: x | E68: CARB 3 inch Water Pump | S68: =IF(ISERROR(VLOOKUP($J68,[3]INPUTS!$H:$I,2,FALSE)),INDEX('[3]CURRENT PRICING'!$A:$U,MATCH($A68,'[3]CURRENT PRICING'!$B:$B,0),MATCH([3]Generators_PL!$H$1,'[3]CURRENT PRICING'!$11:$11,0)),VLOOKUP($J68,[3]INPUTS!$H:$I,2,FALSE)) -> 405 | T68: =VLOOKUP($A68,'[3]CURRENT PRICING'!$B:$F,3,FALSE) -> 600 | U68: =VLOOKUP($A68,'[3]CURRENT PRICING'!$B:$F,4,FALSE) -> 600 | V68: =VLOOKUP($A68,'[3]CURRENT PRICING'!$B:$F,5,FALSE) -> 525

Sheet ATS_PL
R1: =Generators_PL!H1 -> Residential Price List
R2: =Generators_PL!H2 -> EFFECTIVE DATE: 05/01/2023
R3: =Generators_PL!H3 -> Pricing is in USD
P4: =Generators_PL!F4 -> 0
A5: *denotes new or updated models
A6: Specification # | B6: Amps | C6: Phase | D6: Voltage | E6: Poles/Wire | F6: Encl Type | G6: Encl Material | H6: Load Center | I6: Service Entrance | J6: UL | K6: cUL | L6: CSA | M6: Combined Board w/Load Shed | N6: Compatible with Load Shed Kit | O6: Net Price | P6: List Price | Q6: MSRP | R6: MAP
A7: RESIDENTIAL ATS PRICE LIST
A9: RDT-CFNA-0100A-QS5 | B9: 100 | C9: 1Ph | D9: 240V | E9: 2Pole/3Wire | F9: NEMA 1 | G9: Steel | J9: X | L9: X | N9: X | O9: =P9*$P$4 -> 0 | P9: 845 | Q9: 690 | R9: 675
A10: RDT-CFNA-0200A-QS5 | B10: 200 | C10: 1Ph | D10: 240V | E10: 2Pole/3Wire | F10: NEMA 1 | G10: Steel | J10: X | L10: X | N10: X | O10: 0 | P10: 1200 | Q10: 980 | R10: 960
A11: RDT-CFNA-100B-MV04 | B11: 100 | C11: 1Ph | D11: 240V | E11: 2Pole/3Wire | F11: NEMA 1 | G11: Steel | H11: 16 | J11: X | K11: X | O11: 0 | P11: 930 | Q11: 760 | R11: 745
A12: RDT-CFNA-200B-MV04 | B12: 200 | C12: 1Ph | D12: 240V | E12: 2Pole/3Wire | F12: NEMA 1 | G12: Steel | H12: 24 | J12: X | K12: X | O12: 0 | P12: 1375 | Q12: 1120 | R12: 1100
A13: RDT-CFNC-0100A-QS7 | B13: 100 | C13: 1Ph | D13: 240V | E13: 2Pole/3Wire | F13: NEMA 3R | G13: Aluminum | J13: X | L13: X | N13: X | O13: 0 | P13: 935 | Q13: 765 | R13: 750
A14: RDT-CFNC-0200A-QS7 | B14: 200 | C14: 1Ph | D14: 240V | E14: 2Pole/3Wire | F14: NEMA 3R | G14: Aluminum | J14: X | L14: X | N14: X | O14: 0 | P14: 1285 | Q14: 1050 | R14: 1030
A15: RDT-CFNC-0100B-QS7 | B15: 100 | C15: 1Ph | D15: 240V | E15: 2Pole/3Wire | F15: NEMA 3R | G15: Aluminum | H15: 16 | J15: X | K15: X | O15: 0 | P15: 1015 | Q15: 825 | R15: 810
A16: RDT-CFNC-0200B-QS7 | B16: 200 | C16: 1Ph | D16: 240V | E16: 2Pole/3Wire | F16: NEMA 3R | G16: Aluminum | H16: 24 | J16: X | K16: X | O16: 0 | P16: 1590 | Q16: 1295 | R16: 1270
A17: RDT-CFNC-400A-QS10 | B17: 400 | C17: 1Ph | D17: 240V | E17: 2Pole/3Wire | F17: NEMA 3R | G17: Aluminum | J17: X | N17: X | O17: 0 | P17: 2730 | Q17: 2230 | R17: 2185
A18: RDT-CFNC-400A-QS11 | B18: 400 | C18: 1Ph | D18: 240V | E18: 2Pole/3Wire | F18: NEMA 3R | G18: Aluminum | L18: X | N18: X | O18: 0 | P18: 2790 | Q18: 2275 | R18: 2230
A19: RDT-CFNC-200ASEQS4 | B19: 200 | C19: 1Ph | D19: 240V | E19: 2Pole/3Wire | F19: NEMA 3R | G19: Aluminum | I19: X | J19: X | N19: X | O19: 0 | P19: 1725 | Q19: 1410 | R19: 1380
A20: RDT-CFNC-200BSEQS3 | B20: 200 | C20: 1Ph | D20: 240V | E20: 2Pole/3Wire | F20: NEMA 3R | G20: Aluminum | H20: 42 | I20: X | J20: X | O20: 0 | P20: 1820 | Q20: 1485 | R20: 1455
A21: RDT-CFNC-400ASEQS5 | B21: 400 | C21: 1Ph | D21: 240V | E21: 2Pole/3Wire | F21: NEMA 3R | G21: Aluminum | I21: X | J21: X | N21: X | O21: 0 | P21: 4530 | Q21: 3700 | R21: 3625
A22: GM85273-SA6 | B22: 100 | C22: 1Ph | D22: 240V | E22: 2Pole/3Wire | F22: NEMA 1 | G22: Steel | H22: 12 | J22: X | O22: 0 | P22: 635 | Q22: 520 | R22: 510
A23: RXT-JFNA-0100B-QS5 | B23: 100 | C23: 1Ph | D23: 240V | E23: 2Pole/3Wire | F23: NEMA 1 | G23: Steel | H23: 16 | J23: X | O23: 0 | P23: 685 | Q23: 560 | R23: 550
A24: RXT-JFNC-0100B-QS4 | B24: 100 | C24: 1Ph | D24: 240V | E24: 2Pole/3Wire | F24: NEMA 3R | G24: Aluminum | H24: 16 | J24: X | O24: 0 | P24: 740 | Q24: 600 | R24: 590
A25: RXT-JFNC-0100A-QS7 | B25: 100 | C25: 1Ph | D25: 240V | E25: 2Pole/3Wire | F25: NEMA 3R | G25: Aluminum | J25: X | L25: X | M25: X | O25: 0 | P25: 645 | Q25: 525 | R25: 515
A26: RXT-JFNC-0200A-QS7 | B26: 200 | C26: 1Ph | D26: 240V | E26: 2Pole/3Wire | F26: NEMA 3R | G26: Aluminum | J26: X | L26: X | M26: X | O26: 0 | P26: 930 | Q26: 760 | R26: 745
A27: RXT-JFNC-0400A-QS5 | B27: 400 | C27: 1Ph | D27: 240V | E27: 2Pole/3Wire | F27: NEMA 3R | G27: Aluminum | J27: X | M27: X | O27: 0 | P27: 2715 | Q27: 2215 | R27: 2170
A28: RXT-JFNC-400A-MV07 | B28: 400 | C28: 1Ph | D28: 240V | E28: 2Pole/3Wire | F28: NEMA 3R | G28: Aluminum | L28: X | M28: X | O28: 0 | P28: 2460 | Q28: 2010 | R28: 1970
A29: RXT-JFNC-100ASEQS4 | B29: 100 | C29: 1Ph | D29: 240V | E29: 2Pole/3Wire | F29: NEMA 3R | G29: Aluminum | I29: X | J29: X | M29: X | O29: 0 | P29: 795 | Q29: 650 | R29: 635
A30: RXT-JFNC-150ASEQS3 | B30: 150 | C30: 1Ph | D30: 240V | E30: 2Pole/3Wire | F30: NEMA 3R | G30: Aluminum | I30: X | J30: X | M30: X | O30: 0 | P30: 1090 | Q30: 890 | R30: 870
A31: RXT-JFNC-200ASEQS4 | B31: 200 | C31: 1Ph | D31: 240V | E31: 2Pole/3Wire | F31: NEMA 3R | G31: Aluminum | I31: X | J31: X | M31: X | O31: 0 | P31: 1005 | Q31: 890 | R31: 870
A32: RXT-JFNC-300ASEQS4 | B32: 300 | C32: 1Ph | D32: 240V | E32: 2Pole/3Wire | F32: NEMA 3R | G32: Aluminum | I32: X | J32: X | M32: X | O32: 0 | P32: 4295 | Q32: 3505 | R32: 3435
A33: RXT-JFNC300CSEMV01 | B33: 300 | C33: 1Ph | D33: 240V | E33: 2Pole/3Wire | F33: NEMA 3R | G33: Aluminum | I33: X | L33: X | M33: X | O33: 0 | P33: 4295 | Q33: 3505 | R33: 3435
A34: RXT-JFNC-400ASEQS4 | B34: 400 | C34: 1Ph | D34: 240V | E34: 2Pole/3Wire | F34: NEMA 3R | G34: Aluminum | I34: X | J34: X | M34: X | O34: 0 | P34: 4295 | Q34: 3505 | R34: 3435
A35: RXT-JFNC-400CSEQS | B35: 400 | C35: 1Ph | D35: 240V | E35: 2Pole/3Wire | F35: NEMA 3R | G35: Aluminum | I35: X | L35: X | M35: X | O35: 0 | P35: 4295 | Q35: 3505 | R35: 3435
A36: RXT-JFNC-100CSEQS3 | B36: 100 | C36: 1Ph | D36: 240V | E36: 2Pole/3Wire | F36: NEMA 3R | G36: Aluminum | I36: X | L36: X | M36: X | O36: 0 | P36: 940 | Q36: 765 | R36: 750
A37: RXT-JFNC-200CSEQS3 | B37: 200 | C37: 1Ph | D37: 240V | E37: 2Pole/3Wire | F37: NEMA 3R | G37: Aluminum | I37: X | L37: X | M37: X | O37: 0 | P37: 1300 | Q37: 1060 | R37: 1040
A38: 3 Phase - UL
A39: RXT-JCTC-0100A-QS4 | B39: 100 | C39: 3Ph | D39: 208V | E39: 3Pole/4Wire | F39: NEMA 3R | G39: Aluminum | J39: X | O39: =P39*$P$4 -> 0 | P39: 1090 | Q39: 890 | R39: 870
A40: RXT-JFTC-0100A-QS4 | B40: 100 | C40: 3Ph | D40: 240V | E40: 3Pole/4Wire | F40: NEMA 3R | G40: Aluminum | J40: X | O40: 0 | P40: 1090 | Q40: 890 | R40: 870
A41: RXT-JMTC-0100A-QS4 | B41: 100 | C41: 3Ph | D41: 480V | E41: 3Pole/4Wire | F41: NEMA 3R | G41: Aluminum | J41: X | O41: 0 | P41: 1230 | Q41: 1005 | R41: 985
A42: RXT-JCTC-0200A-QS4 | B42: 200 | C42: 3Ph | D42: 208V | E42: 3Pole/4Wire | F42: NEMA 3R | G42: Aluminum | J42: X | O42: 0 | P42: 1660 | Q42: 1355 | R42: 1330
A43: RXT-JFTC-0200A-QS4 | B43: 200 | C43: 3Ph | D43: 240V | E43: 3Pole/4Wire | F43: NEMA 3R | G43: Aluminum | J43: X | O43: 0 | P43: 1660 | Q43: 1355 | R43: 1330
A44: RXT-JMTC-0200A-QS3 | B44: 200 | C44: 3Ph | D44: 480V | E44: 3Pole/4Wire | F44: NEMA 3R | G44: Aluminum | J44: X | O44: 0 | P44: 1790 | Q44: 1460 | R44: 1430
A45: RXT-JCTC-400A-MV06 | B45: 400 | C45: 3Ph | D45: 208V | E45: 3Pole/4Wire | F45: NEMA 3R | G45: Aluminum | J45: X | O45: 0 | P45: 2905 | Q45: 2370 | R45: 2325
A46: RXT-JFTC-400A-MV06 | B46: 400 | C46: 3Ph | D46: 240V | E46: 3Pole/4Wire | F46: NEMA 3R | G46: Aluminum | J46: X | O46: 0 | P46: 2905 | Q46: 2370 | R46: 2325
A47: RXT-JMTC-0400A-QS3 | B47: 400 | C47: 3Ph | D47: 480V | E47: 3Pole/4Wire | F47: NEMA 3R | G47: Aluminum | J47: X | O47: 0 | P47: 3245 | Q47: 2650 | R47: 2595
A48: RXT-JCVC-100A-MV06 | B48: 100 | C48: 3Ph | D48: 208V | E48: 4Pole/4Wire | F48: NEMA 3R | G48: Aluminum | J48: X | O48: 0 | P48: 1740 | Q48: 1420 | R48: 1390
A49: RXT-JFVC-100A-MV06 | B49: 100 | C49: 3Ph | D49: 240V | E49: 4Pole/4Wire | F49: NEMA 3R | G49: Aluminum | J49: X | O49: 0 | P49: 1740 | Q49: 1420 | R49: 1390
A50: RXT-JMVC-100A-MV06 | B50: 100 | C50: 3Ph | D50: 480V | E50: 4Pole/4Wire | F50: NEMA 3R | G50: Aluminum | J50: X | O50: 0 | P50: 1875 | Q50: 1530 | R50: 1500
A51: RXT-JCVC-200A-MV06 | B51: 200 | C51: 3Ph | D51: 208V | E51: 4Pole/4Wire | F51: NEMA 3R | G51: Aluminum | J51: X | O51: 0 | P51: 2140 | Q51: 1745 | R51: 1710
A52: RXT-JFVC-200A-MV06 | B52: 200 | C52: 3Ph | D52: 240V | E52: 4Pole/4Wire | F52: NEMA 3R | G52: Aluminum | J52: X | O52: 0 | P52: 2140 | Q52: 1745 | R52: 1710
A53: RXT-JMVC-200A-MV06 | B53: 200 | C53: 3Ph | D53: 480V | E53: 4Pole/4Wire | F53: NEMA 3R | G53: Aluminum | J53: X | O53: 0 | P53: 2290 | Q53: 1865 | R53: 1830
A54: RXT-JCVC-400A-MV06 | B54: 400 | C54: 3Ph | D54: 208V | E54: 4Pole/4Wire | F54: NEMA 3R | G54: Aluminum | J54: X | O54: 0 | P54: 3655 | Q54: 2985 | R54: 2925
A55: RXT-JFVC-400A-MV06 | B55: 400 | C55: 3Ph | D55: 240V | E55: 4Pole/4Wire | F55: NEMA 3R | G55: Aluminum | J55: X | O55: 0 | P55: 3655 | Q55: 2985 | R55: 2925
A56: RXT-JMVC-400A-MV06 | B56: 400 | C56: 3Ph | D56: 480V | E56: 4Pole/4Wire | F56: NEMA 3R | G56: Aluminum | J56: X | O56: 0 | P56: 4005 | Q56: 3270 | R56: 3205
A57: 3 Phase - CSA
A58: RXT-JCTC-100A-MV03 | B58: 100 | C58: 3Ph | D58: 208V | E58: 3Pole/4Wire | F58: NEMA 3R | G58: Aluminum | J58: X | L58: X | O58: =P58*$P$4 -> 0 | P58: 1180 | Q58: 965 | R58: 945
A59: RXT-JFTC-100A-MV03 | B59: 100 | C59: 3Ph | D59: 240V | E59: 3Pole/4Wire | F59: NEMA 3R | G59: Aluminum | J59: X | L59: X | O59: 0 | P59: 1180 | Q59: 965 | R59: 945
A60: RXT-JMTC-100A-MV04 | B60: 100 | C60: 3Ph | D60: 480V | E60: 3Pole/4Wire | F60: NEMA 3R | G60: Aluminum | J60: X | L60: X | O60: 0 | P60: 1320 | Q60: 1075 | R60: 1055
A61: RXT-JCTC-200A-MV03 | B61: 200 | C61: 3Ph | D61: 208V | E61: 3Pole/4Wire | F61: NEMA 3R | G61: Aluminum | J61: X | L61: X | O61: 0 | P61: 1700 | Q61: 1390 | R61: 1360
A62: RXT-JFTC-200A-MV03 | B62: 200 | C62: 3Ph | D62: 240V | E62: 3Pole/4Wire | F62: NEMA 3R | G62: Aluminum | J62: X | L62: X | O62: 0 | P62: 1700 | Q62: 1390 | R62: 1360
A63: RXT-JMTC-200A-MV04 | B63: 200 | C63: 3Ph | D63: 480V | E63: 3Pole/4Wire | F63: NEMA 3R | G63: Aluminum | J63: X | L63: X | O63: 0 | P63: 1845 | Q63: 1505 | R63: 1475
A64: RXT-JCTC-400A-MV07 | B64: 400 | C64: 3Ph | D64: 208V | E64: 3Pole/4Wire | F64: NEMA 3R | G64: Aluminum | J64: X | L64: X | O64: 0 | P64: 2950 | Q64: 2410 | R64: 2360
A65: RXT-JFTC-400A-MV07 | B65: 400 | C65: 3Ph | D65: 240V | E65: 3Pole/4Wire | F65: NEMA 3R | G65: Aluminum | J65: X | L65: X | O65: 0 | P65: 2950 | Q65: 2410 | R65: 2360
A66: RXT-JMTC-400A-MV04 | B66: 400 | C66: 3Ph | D66: 480V | E66: 3Pole/4Wire | F66: NEMA 3R | G66: Aluminum | J66: X | L66: X | O66: 0 | P66: 3295 | Q66: 2690 | R66: 2635
A67: RXT-JCVC-100A-MV07 | B67: 100 | C67: 3Ph | D67: 208V | E67: 4Pole/4Wire | F67: NEMA 3R | G67: Aluminum | J67: X | L67: X | O67: 0 | P67: 1780 | Q67: 1455 | R67: 1425
A68: RXT-JFVC-100A-MV07 | B68: 100 | C68: 3Ph | D68: 240V | E68: 4Pole/4Wire | F68: NEMA 3R | G68: Aluminum | J68: X | L68: X | O68: 0 | P68: 1780 | Q68: 1455 | R68: 1425
A69: RXT-JMVC-100A-MV07 | B69: 100 | C69: 3Ph | D69: 480V | E69: 4Pole/4Wire | F69: NEMA 3R | G69: Aluminum | J69: X | L69: X | O69: 0 | P69: 1920 | Q69: 1565 | R69: 1535
A70: RXT-JCVC-200A-MV07 | B70: 200 | C70: 3Ph | D70: 208V | E70: 4Pole/4Wire | F70: NEMA 3R | G70: Aluminum | J70: X | L70: X | O70: 0 | P70: 2190 | Q70: 1785 | R70: 1750
A71: RXT-JFVC-200A-MV07 | B71: 200 | C71: 3Ph | D71: 240V | E71: 4Pole/4Wire | F71: NEMA 3R | G71: Aluminum | J71: X | L71: X | O71: 0 | P71: 2190 | Q71: 1785 | R71: 1750
A72: RXT-JMVC-200A-MV07 | B72: 200 | C72: 3Ph | D72: 480V | E72: 4Pole/4Wire | F72: NEMA 3R | G72: Aluminum | J72: X | L72: X | O72: 0 | P72: 2330 | Q72: 1905 | R72: 1865
A73: RXT-JCVC-400A-MV07 | B73: 400 | C73: 3Ph | D73: 208V | E73: 4Pole/4Wire | F73: NEMA 3R | G73: Aluminum | J73: X | L73: X | O73: 0 | P73: 3700 | Q73: 3020 | R73: 2960
A74: RXT-JFVC-400A-MV07 | B74: 400 | C74: 3Ph | D74: 240V | E74: 4Pole/4Wire | F74: NEMA 3R | G74: Aluminum | J74: X | L74: X | O74: 0 | P74: 3700 | Q74: 3020 | R74: 2960
A75: RXT-JMVC-400A-MV07 | B75: 400 | C75: 3Ph | D75: 480V | E75: 4Pole/4Wire | F75: NEMA 3R | G75: Aluminum | J75: X | L75: X | O75: 0 | P75: 4060 | Q75: 3315 | R75: 3250
A76: Industrial
A77: KEP-DFNC-400NK-QS1 | B77: 400 | C77: 1Ph | D77: 240V | E77: 2Pole/3Wire | F77: NEMA 3R | G77: Steel | I77: X | J77: X | O77: =P77*$P$4 -> 0 | P77: 11841 | Q77: 11604.18 | R77: 9472.8
A78: KEP-DCTC-400NK-QS1 | B78: 400 | C78: 3Ph | D78: 208V | E78: 3Pole/4Wire | F78: NEMA 3R | G78: Steel | I78: X | J78: X | O78: 0 | P78: 12363 | Q78: 12115.74 | R78: 9890.4
A79: KEP-DCTC-600NK-QS1 | B79: 600 | C79: 3Ph | D79: 208V | E79: 3Pole/4Wire | F79: NEMA 3R | G79: Steel | I79: X | J79: X | O79: 0 | P79: 17628 | Q79: 17275.44 | R79: 14102.4
A80: KEP-DFNC-600NK-QS4 | B80: 600 | C80: 1Ph | D80: 240V | E80: 2Pole/3Wire | F80: NEMA 3R | G80: Steel | I80: X | J80: X | O80: 0 | P80: 17105 | Q80: 16762.9 | R80: 13684
A81: KEP-DCTC-800NK-QS1 | B81: 800 | C81: 3Ph | D81: 208V | E81: 3Pole/4Wire | F81: NEMA 3R | G81: Steel | I81: X | J81: X | O81: 0 | P81: 20690 | Q81: 20276.2 | R81: 16552
A82: KEP-DFNC-800NK-QS3 | B82: 800 | C82: 1Ph | D82: 240V | E82: 2Pole/3Wire | F82: NEMA 3R | G82: Steel | I82: X | J82: X | O82: 0 | P82: 20170 | Q82: 19766.6 | R82: 16136
A83: KSS-ACTC-0400S-QS2 | B83: 400 | C83: 3Ph | D83: 208V | E83: 3Pole/4Wire | F83: NEMA 3R | G83: Steel | O83: 0 | P83: 7536 | Q83: 7385.28 | R83: 6028.8
A84: KSS-ACTC-0600S-QS1 | B84: 600 | C84: 3Ph | D84: 208V | E84: 3Pole/4Wire | F84: NEMA 3R | G84: Steel | J84: X | L84: X | O84: 0 | P84: 10963 | Q84: 10743.74 | R84: 8770.4
A85: KSS-ACTC-0800S-QS1 | B85: 800 | C85: 3Ph | D85: 208V | E85: 3Pole/4Wire | F85: NEMA 3R | G85: Steel | J85: X | L85: X | O85: 0 | P85: 12794 | Q85: 12538.12 | R85: 10235.2
A86: KSS-AFTC-0800S-QS1 | B86: 800 | C86: 3Ph | D86: 240V | E86: 3Pole/4Wire | F86: NEMA 3R | G86: Steel | J86: X | L86: X | O86: 0 | P86: 12794 | Q86: 12538.12 | R86: 10235.2
A87: KSS-AFNC-0600S-QS1 | B87: 600 | C87: 1Ph | D87: 240V | E87: 2Pole/3Wire | F87: NEMA 3R | G87: Steel | J87: X | O87: 0 | P87: 10289 | Q87: 10083.22 | R87: 8231.2
A88: KSS-JFTC-0800S-QS1 | B88: 800 | C88: 3Ph | D88: 240V | E88: 3Pole/4Wire | F88: NEMA 3R | G88: Steel | J88: X | O88: 0 | P88: 8270 | Q88: 8104.6 | R88: 6616

Sheet ATS_PL_Canada
T1: =Generators_PL!H1 -> Residential Price List
F2: CANADA | T2: =Generators_PL!H2 -> EFFECTIVE DATE: 05/01/2023
T3: =Generators_PL!F4 -> 0
A5: *denotes new or updated models | O5: USD | S5: CAD | U5: 1.35
A6: Specification # | B6: Amps | C6: Phase | D6: Voltage | E6: Poles/Wire | F6: Encl Type | G6: Encl Material | H6: Load Center | I6: Service Entrance | J6: UL | K6: cUL | L6: CSA | M6: Combined Board w/Load Shed | N6: Compatible with Load Shed Kit | O6: Net Price | P6: List Price | Q6: MSRP | R6: MAP | S6: MSRP | T6: MAP
A7: RESIDENTIAL ATS PRICE LIST
A9: RDT-CFNA-0100A-QS5 | B9: 100 | C9: 1Ph | D9: 240V | E9: 2Pole/3Wire | F9: NEMA 1 | G9: Steel | J9: X | L9: X | N9: X | O9: =P9*$T$3 -> 0 | P9: =ATS_PL!P9 -> 845 | Q9: =ATS_PL!Q9 -> 690 | R9: =ATS_PL!R9 -> 675 | S9: =Q9*$U$5 -> 931.5 | T9: 911.25
A10: RDT-CFNA-0200A-QS5 | B10: 200 | C10: 1Ph | D10: 240V | E10: 2Pole/3Wire | F10: NEMA 1 | G10: Steel | J10: X | L10: X | N10: X | O10: =P10*$T$3 -> 0 | P10: =ATS_PL!P10 -> 1200 | Q10: =ATS_PL!Q10 -> 980 | R10: =ATS_PL!R10 -> 960 | S10: 1323 | T10: 1296
A11: RDT-CFNA-100B-MV04 | B11: 100 | C11: 1Ph | D11: 240V | E11: 2Pole/3Wire | F11: NEMA 1 | G11: Steel | H11: 16 | J11: X | K11: X | O11: =P11*$T$3 -> 0 | P11: =ATS_PL!P11 -> 930 | Q11: =ATS_PL!Q11 -> 760 | R11: =ATS_PL!R11 -> 745 | S11: 1026 | T11: 1005.75
A12: RDT-CFNA-200B-MV04 | B12: 200 | C12: 1Ph | D12: 240V | E12: 2Pole/3Wire | F12: NEMA 1 | G12: Steel | H12: 24 | J12: X | K12: X | O12: =P12*$T$3 -> 0 | P12: =ATS_PL!P12 -> 1375 | Q12: =ATS_PL!Q12 -> 1120 | R12: =ATS_PL!R12 -> 1100 | S12: 1512 | T12: 1485
A13: RDT-CFNC-0100A-QS7 | B13: 100 | C13: 1Ph | D13: 240V | E13: 2Pole/3Wire | F13: NEMA 3R | G13: Aluminum | J13: X | L13: X | N13: X | O13: =P13*$T$3 -> 0 | P13: =ATS_PL!P13 -> 935 | Q13: =ATS_PL!Q13 -> 765 | R13: =ATS_PL!R13 -> 750 | S13: 1032.75 | T13: 1012.5
A14: RDT-CFNC-0200A-QS7 | B14: 200 | C14: 1Ph | D14: 240V | E14: 2Pole/3Wire | F14: NEMA 3R | G14: Aluminum | J14: X | L14: X | N14: X | O14: =P14*$T$3 -> 0 | P14: =ATS_PL!P14 -> 1285 | Q14: =ATS_PL!Q14 -> 1050 | R14: =ATS_PL!R14 -> 1030 | S14: 1417.5 | T14: 1390.5
A15: RDT-CFNC-0100B-QS7 | B15: 100 | C15: 1Ph | D15: 240V | E15: 2Pole/3Wire | F15: NEMA 3R | G15: Aluminum | H15: 16 | J15: X | K15: X | O15: =P15*$T$3 -> 0 | P15: =ATS_PL!P15 -> 1015 | Q15: =ATS_PL!Q15 -> 825 | R15: =ATS_PL!R15 -> 810 | S15: 1113.75 | T15: 1093.5
A16: RDT-CFNC-0200B-QS7 | B16: 200 | C16: 1Ph | D16: 240V | E16: 2Pole/3Wire | F16: NEMA 3R | G16: Aluminum | H16: 24 | J16: X | K16: X | O16: =P16*$T$3 -> 0 | P16: =ATS_PL!P16 -> 1590 | Q16: =ATS_PL!Q16 -> 1295 | R16: =ATS_PL!R16 -> 1270 | S16: 1748.25 | T16: 1714.5
A17: RDT-CFNC-400A-QS10 | B17: 400 | C17: 1Ph | D17: 240V | E17: 2Pole/3Wire | F17: NEMA 3R | G17: Aluminum | J17: X | N17: X | O17: =P17*$T$3 -> 0 | P17: =ATS_PL!P17 -> 2730 | Q17: =ATS_PL!Q17 -> 2230 | R17: =ATS_PL!R17 -> 2185 | S17: 3010.5 | T17: 2949.75
A18: RDT-CFNC-400A-QS11 | B18: 400 | C18: 1Ph | D18: 240V | E18: 2Pole/3Wire | F18: NEMA 3R | G18: Aluminum | L18: X | N18: X | O18: =P18*$T$3 -> 0 | P18: =ATS_PL!P18 -> 2790 | Q18: =ATS_PL!Q18 -> 2275 | R18: =ATS_PL!R18 -> 2230 | S18: 3071.25 | T18: 3010.5
A19: RDT-CFNC-200ASEQS4 | B19: 200 | C19: 1Ph | D19: 240V | E19: 2Pole/3Wire | F19: NEMA 3R | G19: Aluminum | I19: X | J19: X | N19: X | O19: =P19*$T$3 -> 0 | P19: =ATS_PL!P19 -> 1725 | Q19: =ATS_PL!Q19 -> 1410 | R19: =ATS_PL!R19 -> 1380 | S19: 1903.5 | T19: 1863
A20: RDT-CFNC-200BSEQS3 | B20: 200 | C20: 1Ph | D20: 240V | E20: 2Pole/3Wire | F20: NEMA 3R | G20: Aluminum | H20: 42 | I20: X | J20: X | O20: =P20*$T$3 -> 0 | P20: =ATS_PL!P20 -> 1820 | Q20: =ATS_PL!Q20 -> 1485 | R20: =ATS_PL!R20 -> 1455 | S20: 2004.75 | T20: 1964.25
A21: RDT-CFNC-400ASEQS5 | B21: 400 | C21: 1Ph | D21: 240V | E21: 2Pole/3Wire | F21: NEMA 3R | G21: Aluminum | I21: X | J21: X | N21: X | O21: =P21*$T$3 -> 0 | P21: =ATS_PL!P21 -> 4530 | Q21: =ATS_PL!Q21 -> 3700 | R21: =ATS_PL!R21 -> 3625 | S21: 4995 | T21: 4893.75
A22: GM85273-SA6 | B22: 100 | C22: 1Ph | D22: 240V | E22: 2Pole/3Wire | F22: NEMA 1 | G22: Steel | H22: 12 | J22: X | O22: =P22*$T$3 -> 0 | P22: =ATS_PL!P22 -> 635 | Q22: =ATS_PL!Q22 -> 520 | R22: =ATS_PL!R22 -> 510 | S22: 702 | T22: 688.5
A23: RXT-JFNA-0100B-QS5 | B23: 100 | C23: 1Ph | D23: 240V | E23: 2Pole/3Wire | F23: NEMA 1 | G23: Steel | H23: 16 | J23: X | O23: =P23*$T$3 -> 0 | P23: =ATS_PL!P23 -> 685 | Q23: =ATS_PL!Q23 -> 560 | R23: =ATS_PL!R23 -> 550 | S23: 756 | T23: 742.5
A24: RXT-JFNC-0100B-QS4 | B24: 100 | C24: 1Ph | D24: 240V | E24: 2Pole/3Wire | F24: NEMA 3R | G24: Aluminum | H24: 16 | J24: X | O24: =P24*$T$3 -> 0 | P24: =ATS_PL!P24 -> 740 | Q24: =ATS_PL!Q24 -> 600 | R24: =ATS_PL!R24 -> 590 | S24: 810 | T24: 796.5
A25: RXT-JFNC-0100A-QS7 | B25: 100 | C25: 1Ph | D25: 240V | E25: 2Pole/3Wire | F25: NEMA 3R | G25: Aluminum | J25: X | L25: X | M25: X | O25: =P25*$T$3 -> 0 | P25: =ATS_PL!P25 -> 645 | Q25: =ATS_PL!Q25 -> 525 | R25: =ATS_PL!R25 -> 515 | S25: 708.75 | T25: 695.25
A26: RXT-JFNC-0200A-QS7 | B26: 200 | C26: 1Ph | D26: 240V | E26: 2Pole/3Wire | F26: NEMA 3R | G26: Aluminum | J26: X | L26: X | M26: X | O26: =P26*$T$3 -> 0 | P26: =ATS_PL!P26 -> 930 | Q26: =ATS_PL!Q26 -> 760 | R26: =ATS_PL!R26 -> 745 | S26: 1026 | T26: 1005.75
A27: RXT-JFNC-0400A-QS5 | B27: 400 | C27: 1Ph | D27: 240V | E27: 2Pole/3Wire | F27: NEMA 3R | G27: Aluminum | J27: X | M27: X | O27: =P27*$T$3 -> 0 | P27: =ATS_PL!P27 -> 2715 | Q27: =ATS_PL!Q27 -> 2215 | R27: =ATS_PL!R27 -> 2170 | S27: 2990.25 | T27: 2929.5
A28: RXT-JFNC-400A-MV07 | B28: 400 | C28: 1Ph | D28: 240V | E28: 2Pole/3Wire | F28: NEMA 3R | G28: Aluminum | L28: X | M28: X | O28: =P28*$T$3 -> 0 | P28: =ATS_PL!P28 -> 2460 | Q28: =ATS_PL!Q28 -> 2010 | R28: =ATS_PL!R28 -> 1970 | S28: 2713.5 | T28: 2659.5
A29: RXT-JFNC-100ASEQS4 | B29: 100 | C29: 1Ph | D29: 240V | E29: 2Pole/3Wire | F29: NEMA 3R | G29: Aluminum | I29: X | J29: X | M29: X | O29: =P29*$T$3 -> 0 | P29: =ATS_PL!P29 -> 795 | Q29: =ATS_PL!Q29 -> 650 | R29: =ATS_PL!R29 -> 635 | S29: 877.5 | T29: 857.25
A30: RXT-JFNC-150ASEQS3 | B30: 150 | C30: 1Ph | D30: 240V | E30: 2Pole/3Wire | F30: NEMA 3R | G30: Aluminum | I30: X | J30: X | M30: X | O30: =P30*$T$3 -> 0 | P30: =ATS_PL!P30 -> 1090 | Q30: =ATS_PL!Q30 -> 890 | R30: =ATS_PL!R30 -> 870 | S30: 1201.5 | T30: 1174.5
A31: RXT-JFNC-200ASEQS4 | B31: 200 | C31: 1Ph | D31: 240V | E31: 2Pole/3Wire | F31: NEMA 3R | G31: Aluminum | I31: X | J31: X | M31: X | O31: =P31*$T$3 -> 0 | P31: =ATS_PL!P31 -> 1005 | Q31: =ATS_PL!Q31 -> 890 | R31: =ATS_PL!R31 -> 870 | S31: 1201.5 | T31: 1174.5
A32: RXT-JFNC-300ASEQS4 | B32: 300 | C32: 1Ph | D32: 240V | E32: 2Pole/3Wire | F32: NEMA 3R | G32: Aluminum | I32: X | J32: X | M32: X | O32: =P32*$T$3 -> 0 | P32: =ATS_PL!P32 -> 4295 | Q32: =ATS_PL!Q32 -> 3505 | R32: =ATS_PL!R32 -> 3435 | S32: 4731.75 | T32: 4637.25
A33: RXT-JFNC300CSEMV01 | B33: 300 | C33: 1Ph | D33: 240V | E33: 2Pole/3Wire | F33: NEMA 3R | G33: Aluminum | I33: X | L33: X | M33: X | O33: =P33*$T$3 -> 0 | P33: =ATS_PL!P33 -> 4295 | Q33: =ATS_PL!Q33 -> 3505 | R33: =ATS_PL!R33 -> 3435 | S33: 4731.75 | T33: 4637.25
A34: RXT-JFNC-400ASEQS4 | B34: 400 | C34: 1Ph | D34: 240V | E34: 2Pole/3Wire | F34: NEMA 3R | G34: Aluminum | I34: X | J34: X | M34: X | O34: =P34*$T$3 -> 0 | P34: =ATS_PL!P34 -> 4295 | Q34: =ATS_PL!Q34 -> 3505 | R34: =ATS_PL!R34 -> 3435 | S34: 4731.75 | T34: 4637.25
A35: RXT-JFNC-400CSEQS | B35: 400 | C35: 1Ph | D35: 240V | E35: 2Pole/3Wire | F35: NEMA 3R | G35: Aluminum | I35: X | L35: X | M35: X | O35: =P35*$T$3 -> 0 | P35: =ATS_PL!P35 -> 4295 | Q35: =ATS_PL!Q35 -> 3505 | R35: =ATS_PL!R35 -> 3435 | S35: 4731.75 | T35: 4637.25
A36: RXT-JFNC-100CSEQS3 | B36: 100 | C36: 1Ph | D36: 240V | E36: 2Pole/3Wire | F36: NEMA 3R | G36: Aluminum | I36: X | L36: X | M36: X | O36: =P36*$T$3 -> 0 | P36: =ATS_PL!P36 -> 940 | Q36: =ATS_PL!Q36 -> 765 | R36: =ATS_PL!R36 -> 750 | S36: 1032.75 | T36: 1012.5
A37: RXT-JFNC-200CSEQS3 | B37: 200 | C37: 1Ph | D37: 240V | E37: 2Pole/3Wire | F37: NEMA 3R | G37: Aluminum | I37: X | L37: X | M37: X | O37: =P37*$T$3 -> 0 | P37: =ATS_PL!P37 -> 1300 | Q37: =ATS_PL!Q37 -> 1060 | R37: =ATS_PL!R37 -> 1040 | S37: 1431 | T37: 1404
A38: 3 Phase - UL
A39: RXT-JCTC-0100A-QS4 | B39: 100 | C39: 3Ph | D39: 208V | E39: 3Pole/4Wire | F39: NEMA 3R | G39: Aluminum | J39: X | O39: =P39*$T$3 -> 0 | P39: =ATS_PL!P39 -> 1090 | Q39: =ATS_PL!Q39 -> 890 | R39: =ATS_PL!R39 -> 870 | S39: =Q39*$U$5 -> 1201.5 | T39: =R39*$U$5 -> 1174.5
A40: RXT-JFTC-0100A-QS4 | B40: 100 | C40: 3Ph | D40: 240V | E40: 3Pole/4Wire | F40: NEMA 3R | G40: Aluminum | J40: X | O40: =P40*$T$3 -> 0 | P40: =ATS_PL!P40 -> 1090 | Q40: =ATS_PL!Q40 -> 890 | R40: =ATS_PL!R40 -> 870 | S40: =Q40*$U$5 -> 1201.5 | T40: 1174.5
A41: RXT-JMTC-0100A-QS4 | B41: 100 | C41: 3Ph | D41: 480V | E41: 3Pole/4Wire | F41: NEMA 3R | G41: Aluminum | J41: X | O41: =P41*$T$3 -> 0 | P41: =ATS_PL!P41 -> 1230 | Q41: =ATS_PL!Q41 -> 1005 | R41: =ATS_PL!R41 -> 985 | S41: 1356.75 | T41: 1329.75
A42: RXT-JCTC-0200A-QS4 | B42: 200 | C42: 3Ph | D42: 208V | E42: 3Pole/4Wire | F42: NEMA 3R | G42: Aluminum | J42: X | O42: =P42*$T$3 -> 0 | P42: =ATS_PL!P42 -> 1660 | Q42: =ATS_PL!Q42 -> 1355 | R42: =ATS_PL!R42 -> 1330 | S42: 1829.25 | T42: 1795.5
A43: RXT-JFTC-0200A-QS4 | B43: 200 | C43: 3Ph | D43: 240V | E43: 3Pole/4Wire | F43: NEMA 3R | G43: Aluminum | J43: X | O43: =P43*$T$3 -> 0 | P43: =ATS_PL!P43 -> 1660 | Q43: =ATS_PL!Q43 -> 1355 | R43: =ATS_PL!R43 -> 1330 | S43: 1829.25 | T43: 1795.5
A44: RXT-JMTC-0200A-QS3 | B44: 200 | C44: 3Ph | D44: 480V | E44: 3Pole/4Wire | F44: NEMA 3R | G44: Aluminum | J44: X | O44: =P44*$T$3 -> 0 | P44: =ATS_PL!P44 -> 1790 | Q44: =ATS_PL!Q44 -> 1460 | R44: =ATS_PL!R44 -> 1430 | S44: 1971 | T44: 1930.5
A45: RXT-JCTC-400A-MV06 | B45: 400 | C45: 3Ph | D45: 208V | E45: 3Pole/4Wire | F45: NEMA 3R | G45: Aluminum | J45: X | O45: =P45*$T$3 -> 0 | P45: =ATS_PL!P45 -> 2905 | Q45: =ATS_PL!Q45 -> 2370 | R45: =ATS_PL!R45 -> 2325 | S45: 3199.5 | T45: 3138.75
A46: RXT-JFTC-400A-MV06 | B46: 400 | C46: 3Ph | D46: 240V | E46: 3Pole/4Wire | F46: NEMA 3R | G46: Aluminum | J46: X | O46: =P46*$T$3 -> 0 | P46: =ATS_PL!P46 -> 2905 | Q46: =ATS_PL!Q46 -> 2370 | R46: =ATS_PL!R46 -> 2325 | S46: 3199.5 | T46: 3138.75
A47: RXT-JMTC-0400A-QS3 | B47: 400 | C47: 3Ph | D47: 480V | E47: 3Pole/4Wire | F47: NEMA 3R | G47: Aluminum | J47: X | O47: =P47*$T$3 -> 0 | P47: =ATS_PL!P47 -> 3245 | Q47: =ATS_PL!Q47 -> 2650 | R47: =ATS_PL!R47 -> 2595 | S47: 3577.5 | T47: 3503.25
A48: RXT-JCVC-100A-MV06 | B48: 100 | C48: 3Ph | D48: 208V | E48: 4Pole/4Wire | F48: NEMA 3R | G48: Aluminum | J48: X | O48: =P48*$T$3 -> 0 | P48: =ATS_PL!P48 -> 1740 | Q48: =ATS_PL!Q48 -> 1420 | R48: =ATS_PL!R48 -> 1390 | S48: 1917 | T48: 1876.5
A49: RXT-JFVC-100A-MV06 | B49: 100 | C49: 3Ph | D49: 240V | E49: 4Pole/4Wire | F49: NEMA 3R | G49: Aluminum | J49: X | O49: =P49*$T$3 -> 0 | P49: =ATS_PL!P49 -> 1740 | Q49: =ATS_PL!Q49 -> 1420 | R49: =ATS_PL!R49 -> 1390 | S49: 1917 | T49: 1876.5
A50: RXT-JMVC-100A-MV06 | B50: 100 | C50: 3Ph | D50: 480V | E50: 4Pole/4Wire | F50: NEMA 3R | G50: Aluminum | J50: X | O50: =P50*$T$3 -> 0 | P50: =ATS_PL!P50 -> 1875 | Q50: =ATS_PL!Q50 -> 1530 | R50: =ATS_PL!R50 -> 1500 | S50: 2065.5 | T50: 2025
A51: RXT-JCVC-200A-MV06 | B51: 200 | C51: 3Ph | D51: 208V | E51: 4Pole/4Wire | F51: NEMA 3R | G51: Aluminum | J51: X | O51: =P51*$T$3 -> 0 | P51: =ATS_PL!P51 -> 2140 | Q51: =ATS_PL!Q51 -> 1745 | R51: =ATS_PL!R51 -> 1710 | S51: 2355.75 | T51: 2308.5
A52: RXT-JFVC-200A-MV06 | B52: 200 | C52: 3Ph | D52: 240V | E52: 4Pole/4Wire | F52: NEMA 3R | G52: Aluminum | J52: X | O52: =P52*$T$3 -> 0 | P52: =ATS_PL!P52 -> 2140 | Q52: =ATS_PL!Q52 -> 1745 | R52: =ATS_PL!R52 -> 1710 | S52: 2355.75 | T52: 2308.5
A53: RXT-JMVC-200A-MV06 | B53: 200 | C53: 3Ph | D53: 480V | E53: 4Pole/4Wire | F53: NEMA 3R | G53: Aluminum | J53: X | O53: =P53*$T$3 -> 0 | P53: =ATS_PL!P53 -> 2290 | Q53: =ATS_PL!Q53 -> 1865 | R53: =ATS_PL!R53 -> 1830
A54: RXT-JCVC-400A-MV06 | B54: 400 | C54: 3Ph | D54: 208V | E54: 4Pole/4Wire | F54: NEMA 3R | G54: Aluminum | J54: X | O54: =P54*$T$3 -> 0 | P54: =ATS_PL!P54 -> 3655 | Q54: =ATS_PL!Q54 -> 2985 | R54: =ATS_PL!R54 -> 2925
A55: RXT-JFVC-400A-MV06 | B55: 400 | C55: 3Ph | D55: 240V | E55: 4Pole/4Wire | F55: NEMA 3R | G55: Aluminum | J55: X | O55: =P55*$T$3 -> 0 | P55: =ATS_PL!P55 -> 3655 | Q55: =ATS_PL!Q55 -> 2985 | R55: =ATS_PL!R55 -> 2925
A56: RXT-JMVC-400A-MV06 | B56: 400 | C56: 3Ph | D56: 480V | E56: 4Pole/4Wire | F56: NEMA 3R | G56: Aluminum | J56: X | O56: =P56*$T$3 -> 0 | P56: =ATS_PL!P56 -> 4005 | Q56: =ATS_PL!Q56 -> 3270 | R56: =ATS_PL!R56 -> 3205
A57: 3 Phase - CSA
A58: RXT-JCTC-100A-MV03 | B58: 100 | C58: 3Ph | D58: 208V | E58: 3Pole/4Wire | F58: NEMA 3R | G58: Aluminum | J58: X | L58: X | O58: =P58*$T$3 -> 0 | P58: =ATS_PL!P58 -> 1180 | Q58: =ATS_PL!Q58 -> 965 | R58: =ATS_PL!R58 -> 945 | S58: =Q58*$U$5 -> 1302.75 | T58: 1275.75
A59: RXT-JFTC-100A-MV03 | B59: 100 | C59: 3Ph | D59: 240V | E59: 3Pole/4Wire | F59: NEMA 3R | G59: Aluminum | J59: X | L59: X | O59: =P59*$T$3 -> 0 | P59: =ATS_PL!P59 -> 1180 | Q59: =ATS_PL!Q59 -> 965 | R59: =ATS_PL!R59 -> 945 | S59: 1302.75 | T59: 1275.75
A60: RXT-JMTC-100A-MV04 | B60: 100 | C60: 3Ph | D60: 480V | E60: 3Pole/4Wire | F60: NEMA 3R | G60: Aluminum | J60: X | L60: X | O60: =P60*$T$3 -> 0 | P60: =ATS_PL!P60 -> 1320 | Q60: =ATS_PL!Q60 -> 1075 | R60: =ATS_PL!R60 -> 1055 | S60: 1451.25 | T60: 1424.25
A61: RXT-JCTC-200A-MV03 | B61: 200 | C61: 3Ph | D61: 208V | E61: 3Pole/4Wire | F61: NEMA 3R | G61: Aluminum | J61: X | L61: X | O61: =P61*$T$3 -> 0 | P61: =ATS_PL!P61 -> 1700 | Q61: =ATS_PL!Q61 -> 1390 | R61: =ATS_PL!R61 -> 1360 | S61: 1876.5 | T61: 1836
A62: RXT-JFTC-200A-MV03 | B62: 200 | C62: 3Ph | D62: 240V | E62: 3Pole/4Wire | F62: NEMA 3R | G62: Aluminum | J62: X | L62: X | O62: =P62*$T$3 -> 0 | P62: =ATS_PL!P62 -> 1700 | Q62: =ATS_PL!Q62 -> 1390 | R62: =ATS_PL!R62 -> 1360 | S62: 1876.5 | T62: 1836
A63: RXT-JMTC-200A-MV04 | B63: 200 | C63: 3Ph | D63: 480V | E63: 3Pole/4Wire | F63: NEMA 3R | G63: Aluminum | J63: X | L63: X | O63: =P63*$T$3 -> 0 | P63: =ATS_PL!P63 -> 1845 | Q63: =ATS_PL!Q63 -> 1505 | R63: =ATS_PL!R63 -> 1475 | S63: 2031.75 | T63: 1991.25
A64: RXT-JCTC-400A-MV07 | B64: 400 | C64: 3Ph | D64: 208V | E64: 3Pole/4Wire | F64: NEMA 3R | G64: Aluminum | J64: X | L64: X | O64: =P64*$T$3 -> 0 | P64: =ATS_PL!P64 -> 2950 | Q64: =ATS_PL!Q64 -> 2410 | R64: =ATS_PL!R64 -> 2360 | S64: 3253.5 | T64: 3186
A65: RXT-JFTC-400A-MV07 | B65: 400 | C65: 3Ph | D65: 240V | E65: 3Pole/4Wire | F65: NEMA 3R | G65: Aluminum | J65: X | L65: X | O65: =P65*$T$3 -> 0 | P65: =ATS_PL!P65 -> 2950 | Q65: =ATS_PL!Q65 -> 2410 | R65: =ATS_PL!R65 -> 2360 | S65: 3253.5 | T65: 3186
A66: RXT-JMTC-400A-MV04 | B66: 400 | C66: 3Ph | D66: 480V | E66: 3Pole/4Wire | F66: NEMA 3R | G66: Aluminum | J66: X | L66: X | O66: =P66*$T$3 -> 0 | P66: =ATS_PL!P66 -> 3295 | Q66: =ATS_PL!Q66 -> 2690 | R66: =ATS_PL!R66 -> 2635 | S66: 3631.5 | T66: 3557.25
A67: RXT-JCVC-100A-MV07 | B67: 100 | C67: 3Ph | D67: 208V | E67: 4Pole/4Wire | F67: NEMA 3R | G67: Aluminum | J67: X | L67: X | O67: =P67*$T$3 -> 0 | P67: =ATS_PL!P67 -> 1780 | Q67: =ATS_PL!Q67 -> 1455 | R67: =ATS_PL!R67 -> 1425 | S67: 1964.25 | T67: 1923.75
A68: RXT-JFVC-100A-MV07 | B68: 100 | C68: 3Ph | D68: 240V | E68: 4Pole/4Wire | F68: NEMA 3R | G68: Aluminum | J68: X | L68: X | O68: =P68*$T$3 -> 0 | P68: =ATS_PL!P68 -> 1780 | Q68: =ATS_PL!Q68 -> 1455 | R68: =ATS_PL!R68 -> 1425 | S68: 1964.25 | T68: 1923.75
A69: RXT-JMVC-100A-MV07 | B69: 100 | C69: 3Ph | D69: 480V | E69: 4Pole/4Wire | F69: NEMA 3R | G69: Aluminum | J69: X | L69: X | O69: =P69*$T$3 -> 0 | P69: =ATS_PL!P69 -> 1920 | Q69: =ATS_PL!Q69 -> 1565 | R69: =ATS_PL!R69 -> 1535 | S69: 2112.75 | T69: 2072.25
A70: RXT-JCVC-200A-MV07 | B70: 200 | C70: 3Ph | D70: 208V | E70: 4Pole/4Wire | F70: NEMA 3R | G70: Aluminum | J70: X | L70: X | O70: =P70*$T$3 -> 0 | P70: =ATS_PL!P70 -> 2190 | Q70: =ATS_PL!Q70 -> 1785 | R70: =ATS_PL!R70 -> 1750 | S70: 2409.75 | T70: 2362.5
A71: RXT-JFVC-200A-MV07 | B71: 200 | C71: 3Ph | D71: 240V | E71: 4Pole/4Wire | F71: NEMA 3R | G71: Aluminum | J71: X | L71: X | O71: =P71*$T$3 -> 0 | P71: =ATS_PL!P71 -> 2190 | Q71: =ATS_PL!Q71 -> 1785 | R71: =ATS_PL!R71 -> 1750 | S71: 2409.75 | T71: 2362.5
A72: RXT-JMVC-200A-MV07 | B72: 200 | C72: 3Ph | D72: 480V | E72: 4Pole/4Wire | F72: NEMA 3R | G72: Aluminum | J72: X | L72: X | O72: =P72*$T$3 -> 0 | P72: =ATS_PL!P72 -> 2330 | Q72: =ATS_PL!Q72 -> 1905 | R72: =ATS_PL!R72 -> 1865 | S72: 2571.75 | T72: 2517.75
A73: RXT-JCVC-400A-MV07 | B73: 400 | C73: 3Ph | D73: 208V | E73: 4Pole/4Wire | F73: NEMA 3R | G73: Aluminum | J73: X | L73: X | O73: =P73*$T$3 -> 0 | P73: =ATS_PL!P73 -> 3700 | Q73: =ATS_PL!Q73 -> 3020 | R73: =ATS_PL!R73 -> 2960 | S73: 4077 | T73: 3996
A74: RXT-JFVC-400A-MV07 | B74: 400 | C74: 3Ph | D74: 240V | E74: 4Pole/4Wire | F74: NEMA 3R | G74: Aluminum | J74: X | L74: X | O74: =P74*$T$3 -> 0 | P74: =ATS_PL!P74 -> 3700 | Q74: =ATS_PL!Q74 -> 3020 | R74: =ATS_PL!R74 -> 2960 | S74: 4077 | T74: 3996
A75: RXT-JMVC-400A-MV07 | B75: 400 | C75: 3Ph | D75: 480V | E75: 4Pole/4Wire | F75: NEMA 3R | G75: Aluminum | J75: X | L75: X | O75: =P75*$T$3 -> 0 | P75: =ATS_PL!P75 -> 4060 | Q75: =ATS_PL!Q75 -> 3315 | R75: =ATS_PL!R75 -> 3250 | S75: 4475.25 | T75: 4387.5
A76: Industrial
A77: KEP-DFNC-400NK-QS1 | B77: 400 | C77: 1Ph | D77: 240V | E77: 2Pole/3Wire | F77: NEMA 3R | G77: Steel | I77: X | J77: X | O77: =P77*$T$3 -> 0 | P77: =ATS_PL!P77 -> 11841 | Q77: =ATS_PL!Q77 -> 11604.18 | R77: =ATS_PL!R77 -> 9472.8
A78: KEP-DCTC-400NK-QS1 | B78: 400 | C78: 3Ph | D78: 208V | E78: 3Pole/4Wire | F78: NEMA 3R | G78: Steel | I78: X | J78: X | O78: =P78*$T$3 -> 0 | P78: =ATS_PL!P78 -> 12363 | Q78: =ATS_PL!Q78 -> 12115.74 | R78: =ATS_PL!R78 -> 9890.4
A79: KEP-DCTC-600NK-QS1 | B79: 600 | C79: 3Ph | D79: 208V | E79: 3Pole/4Wire | F79: NEMA 3R | G79: Steel | I79: X | J79: X | O79: =P79*$T$3 -> 0 | P79: =ATS_PL!P79 -> 17628 | Q79: =ATS_PL!Q79 -> 17275.44 | R79: =ATS_PL!R79 -> 14102.4
A80: KEP-DFNC-600NK-QS4 | B80: 600 | C80: 1Ph | D80: 240V | E80: 2Pole/3Wire | F80: NEMA 3R | G80: Steel | I80: X | J80: X | O80: =P80*$T$3 -> 0 | P80: =ATS_PL!P80 -> 17105 | Q80: =ATS_PL!Q80 -> 16762.9 | R80: =ATS_PL!R80 -> 13684
A81: KEP-DCTC-800NK-QS1 | B81: 800 | C81: 3Ph | D81: 208V | E81: 3Pole/4Wire | F81: NEMA 3R | G81: Steel | I81: X | J81: X | O81: =P81*$T$3 -> 0 | P81: =ATS_PL!P81 -> 20690 | Q81: =ATS_PL!Q81 -> 20276.2 | R81: =ATS_PL!R81 -> 16552 | S81: =Q81*$U$5 -> 27372.87 | T81: 22345.2
A82: KEP-DFNC-800NK-QS3 | B82: 800 | C82: 1Ph | D82: 240V | E82: 2Pole/3Wire | F82: NEMA 3R | G82: Steel | I82: X | J82: X | O82: =P82*$T$3 -> 0 | P82: =ATS_PL!P82 -> 20170 | Q82: =ATS_PL!Q82 -> 19766.6 | R82: =ATS_PL!R82 -> 16136 | S82: 26684.91 | T82: 21783.6
A83: KSS-ACTC-0400S-QS2 | B83: 400 | C83: 3Ph | D83: 208V | E83: 3Pole/4Wire | F83: NEMA 3R | G83: Steel | O83: =P83*$T$3 -> 0 | P83: =ATS_PL!P83 -> 7536 | Q83: =ATS_PL!Q83 -> 7385.28 | R83: =ATS_PL!R83 -> 6028.8 | S83: 9970.128 | T83: 8138.88
A84: KSS-ACTC-0600S-QS1 | B84: 600 | C84: 3Ph | D84: 208V | E84: 3Pole/4Wire | F84: NEMA 3R | G84: Steel | J84: X | L84: X | O84: =P84*$T$3 -> 0 | P84: =ATS_PL!P84 -> 10963 | Q84: =ATS_PL!Q84 -> 10743.74 | R84: =ATS_PL!R84 -> 8770.4 | S84: 14504.049 | T84: 11840.04
A85: KSS-ACTC-0800S-QS1 | B85: 800 | C85: 3Ph | D85: 208V | E85: 3Pole/4Wire | F85: NEMA 3R | G85: Steel | J85: X | L85: X | O85: =P85*$T$3 -> 0 | P85: =ATS_PL!P85 -> 12794 | Q85: =ATS_PL!Q85 -> 12538.12 | R85: =ATS_PL!R85 -> 10235.2 | S85: 16926.462 | T85: 13817.52
A86: KSS-AFTC-0800S-QS1 | B86: 800 | C86: 3Ph | D86: 240V | E86: 3Pole/4Wire | F86: NEMA 3R | G86: Steel | J86: X | L86: X | O86: =P86*$T$3 -> 0 | P86: =ATS_PL!P86 -> 12794 | Q86: =ATS_PL!Q86 -> 12538.12 | R86: =ATS_PL!R86 -> 10235.2 | S86: 16926.462 | T86: 13817.52
A87: KSS-AFNC-0600S-QS1 | B87: 600 | C87: 1Ph | D87: 240V | E87: 2Pole/3Wire | F87: NEMA 3R | G87: Steel | J87: X | O87: =P87*$T$3 -> 0 | P87: =ATS_PL!P87 -> 10289 | Q87: =ATS_PL!Q87 -> 10083.22 | R87: =ATS_PL!R87 -> 8231.2 | S87: 13612.347 | T87: 11112.12
A88: KSS-JFTC-0800S-QS1 | B88: 800 | C88: 3Ph | D88: 240V | E88: 3Pole/4Wire | F88: NEMA 3R | G88: Steel | J88: X | O88: =P88*$T$3 -> 0 | P88: =ATS_PL!P88 -> 8270 | Q88: =ATS_PL!Q88 -> 8104.6 | R88: =ATS_PL!R88 -> 6616 | S88: 10941.21 | T88: 8931.6

Sheet ATS_PARTS_PL
K1: =Generators_PL!H1 -> Residential Price List
K2: =Generators_PL!H2 -> EFFECTIVE DATE: 05/01/2023
K3: =Generators_PL!H3 -> Pricing is in USD
I4: =Generators_PL!F4 -> 0
C5: Please click on the following link to access Accessory Kit Pricing | D5: :AMP STOCK ORDERS
A6: OLD PART NUMBER (superseded by the New Part Number starting on 4/3/2023) | B6: NEW PART NUMBER | C6: Description | D6: RDT | E6: RXT | F6: Compatible w/ Contactor | G6: Service Entrance | H6: Net Price | I6: Aftermarket Parts List Price | J6: MSRP | K6: MAP
A7: RESIDENTIAL ATS LOOSE ACCESSORIES PRICE LIST
A9: GM84662-KP1-QS | B9: GM84662-S1 | C9: Status Indicator Module | E9: X | H9: =I9*I$4 -> 0 | I9: =VLOOKUP(B9,'[4]AMP List Prices'!$A:$D,4,FALSE) -> 40
A10: GM84662-KP2-QS | B10: GM84662-S2 | C10: Status Indicator Module, Load Control | E10: X | H10: =I10*I$4 -> 0 | I10: =VLOOKUP(B10,'[4]AMP List Prices'!$A:$D,4,FALSE) -> 55
A11: GM29856-KP1 | B11: GM29856-S1 | C11: Auxiliary Contacts, 100-200A | D11: X | E11: X | F11: GM71468 GM71469 GM80547 GM80549 | G11: X | H11: 0 | I11: =VLOOKUP(B11,'[4]AMP List Prices'!$A:$D,4,FALSE) -> 70
A12: GM104789-KP1 | B12: GM104789-S1 | C12: Auxiliary Contacts, 100-200A | D12: X | E12: X | F12: GM103487 GM103488 GM103489 GM103490 GM103491 GM103492 | G12: X | H12: 0 | I12: =VLOOKUP(B12,'[4]AMP List Prices'!$A:$D,4,FALSE) -> 14
A13: GM100830-KP1 | B13: GM100830-S1 | C13: Auxiliary Contacts, 400A | D13: X | E13: X | F13: GM80139 GM80140 GM80551 GM81111 GM88426 GM88427 | G13: X | H13: 0 | I13: =VLOOKUP(B13,'[4]AMP List Prices'!$A:$D,4,FALSE) -> 32
A14: GM104558-KP1 | B14: GM104558-S1 | C14: Auxiliary Circuit Breaker kit, 15A, 100-200A | E14: X | G14: X Only | H14: 0 | I14: =VLOOKUP(B14,'[4]AMP List Prices'!$A:$D,4,FALSE) -> 57
A15: GM104558-KP2 | B15: GM104558-S2 | C15: Auxiliary Circuit Breaker kit, 15A, 400A - Legacy | E15: X | G15: X Only | H15: 0 | I15: =VLOOKUP(B15,'[4]AMP List Prices'!$A:$D,4,FALSE) -> 56
A16: GM104558-KP3 | B16: GM104558-S3 | C16: Aux Circuit Breaker, 15A, 300-400A | E16: X | G16: X | H16: 0 | I16: =VLOOKUP(B16,'[4]AMP List Prices'!$A:$D,4,FALSE) -> 46
A17: GM104558-KP4 | B17: GM104558-S4 | C17: Aux Circuit Breaker, 20A, 100-200A | E17: X | G17: X | H17: 0 | I17: =VLOOKUP(B17,'[4]AMP List Prices'!$A:$D,4,FALSE) -> 56
A18: GM104558-KP5 | B18: GM104558-S5 | C18: Aux Circuit Breaker, 20A, 400A - Legacy | E18: X | G18: X | H18: 0 | I18: =VLOOKUP(B18,'[4]AMP List Prices'!$A:$D,4,FALSE) -> 68
A19: GM104558-KP6 | B19: GM104558-S6 | C19: Aux Circuit Breaker, 20A, 300-400A | E19: X | G19: X | H19: 0 | I19: =VLOOKUP(B19,'[4]AMP List Prices'!$A:$D,4,FALSE) -> 56
A20: GM92001-KP1-QS | B20: GM92001-1 | C20: Power Relay Module (PRM) | D20: X | E20: X | H20: 0 | I20: =VLOOKUP(B20,'[4]AMP List Prices'!$A:$D,4,FALSE) -> 160
A21: GM38795-KP1 | B21: GM38795-S | C21: External Alarm Module | D21: X | H21: 0 | I21: =VLOOKUP(B21,'[4]AMP List Prices'!$A:$D,4,FALSE) -> 252.95
A22: GM38796-KP1 | B22: GM38796-S | C22: Accessory Board | D22: X | H22: 0 | I22: =VLOOKUP(B22,'[4]AMP List Prices'!$A:$D,4,FALSE) -> 249
A23: GM38799-KP2 | B23: GM38799-S2 | C23: Bezel | D23: X | H23: 0 | I23: =VLOOKUP(B23,'[4]AMP List Prices'!$A:$D,4,FALSE) -> 50
A24: GM17250-KP1-QS | B24: GM17250-S1 | C24: Current Transformer, 400A | D24: X | H24: 0 | I24: =VLOOKUP(B24,'[4]AMP List Prices'!$A:$D,4,FALSE) -> 187
A25: GM17250-KP2-QS | B25: GM17250-S2 | C25: Current Transformer, 500A | D25: X | H25: 0 | I25: =VLOOKUP(B25,'[4]AMP List Prices'!$A:$D,4,FALSE) -> 187
A26: GM47597-KP2 | B26: GM47597-S2 | C26: Programmable Exerciser, 100 -200A | D26: X | H26: Email: Resi-Aftermarketparts@kohler.com for pricing
A27: GM47597-KP1 | B27: GM47597-S1 | C27: Programmable Exerciser, 400A, 200A SE & 400A SE | D27: X | G27: X
A28: GM49867-KP1 | B28: GM49867-S1 | C28: Circuit Breaker Option Disconnect | D28: X | G28: X | H28: 0 | I28: =VLOOKUP(B28,'[4]AMP List Prices'!$A:$D,4,FALSE) -> 19
A29: GM87869-KP1 | B29: GM87869-S1 | C29: Space Heater w/Hygrostat | D29: X | G29: X | H29: 0 | I29: =VLOOKUP(B29,'[4]AMP List Prices'!$A:$D,4,FALSE) -> 680
A30: GM88281-KP1-QS | B30: GM88281-1 | C30: Load Shed | D30: X | G30: X | H30: 0 | I30: =VLOOKUP(B30,'[4]AMP List Prices'!$A:$D,4,FALSE) -> 286
A31: GM87487-KP1 | B31: GM87487-S1 | C31: SPD (Normal Side Only) | D31: X | G31: X | H31: 0 | I31: =VLOOKUP(B31,'[4]AMP List Prices'!$A:$D,4,FALSE) -> 425
A32: GM87487-KP2 | B32: GM87487-S2 | C32: SPD (Normal & Emergency) | D32: X | G32: X | H32: 0 | I32: =VLOOKUP(B32,'[4]AMP List Prices'!$A:$D,4,FALSE) -> 750
A33: GM39334-KP | B33: No Change | C33: Production Literature | D33: X | H33: 0 | I33: =VLOOKUP($A33,'[2]CURRENT PRICING'!$B:$F,3,FALSE) -> 15
A34: GM84653-KP | B34: No Change | C34: Production Literature | E34: X | H34: 0 | I34: =VLOOKUP($A34,'[2]CURRENT PRICING'!$B:$F,3,FALSE) -> 15
A35: GM39335-KP | B35: No Change | C35: Technical Literature | D35: X | H35: 0 | I35: =VLOOKUP($A35,'[2]CURRENT PRICING'!$B:$F,3,FALSE) -> 40
A36: GM84652-KP | B36: No Change | C36: Technical Literature | E36: X | H36: 0 | I36: =VLOOKUP($A36,'[2]CURRENT PRICING'!$B:$F,3,FALSE) -> 40
A37: GM118076 | B37: No Change | C37: 7 Year Comprehensive Warranty | D37: X | E37: X | H37: 0 | I37: =VLOOKUP($A37,'[2]CURRENT PRICING'!$B:$F,3,FALSE) -> 195
A38: GM118077 | B38: No Change | C38: 10 Year Comprehensive Warranty | D38: X | E38: X | H38: 0 | I38: =VLOOKUP($A38,'[2]CURRENT PRICING'!$B:$F,3,FALSE) -> 295

Sheet PORTABLES PRICING ANALYSIS (hidden)
F1: 0.64 | H1: 0.67333 | J1: 0.65353 | L1: 0.70588 | N1: 0.63725 | P1: 0.64706 | R1: 0.69314
A2: Model | B2: COST | C2: MAP | D2: MSRP | E2: LIST | F2: DIST | G2: % Margin | H2: Wholesale - Silver | I2: % Margin | J2: Wholesale - Platinum | K2: % Margin | L2: Etail - Silver | M2: % Margin | N2: Etail - Platinum | O2: % Margin | P2: Etail - Gold | Q2: % Margin | R2: Retail | S2: % Margin
A3: PA-eGen18iS-3001 | B3: =63333/100 -> 633.33 | C3: =VLOOKUP(A3,PORTABLES_PL!$A:$T,13,FALSE) -> 26 | D3: =VLOOKUP(A3,PORTABLES_PL!$A:$S,12,FALSE) -> 18 | E3: =VLOOKUP(A3,PORTABLES_PL!$A:$U,14,FALSE) -> N/A | F3: =$E3*F$1 ->  | G3: =(F3-B3)/F3 ->  | H3: =$E3*H$1 ->  | I3: =(H3-B3)/H3 ->  | J3: =$E3*J$1 ->  | K3: =(J3-B3)/J3 ->  | L3: =$E3*L$1 ->  | M3: =(L3-B3)/L3 ->  | N3: =$E3*N$1 ->  | O3: =(N3-B3)/N3 ->  | P3: =$E3*P$1 ->  | Q3: =(P3-B3)/P3 ->  | R3: =$E3*R$1 ->  | S3: =(R3-B3)/R3 -> 
A4: PA-GEN50-3003 | B4: =50582.51/100 -> 505.8251 | C4: =VLOOKUP(A4,PORTABLES_PL!$A:$T,13,FALSE) -> 24 | D4: =VLOOKUP(A4,PORTABLES_PL!$A:$S,12,FALSE) -> 23 | E4: =VLOOKUP(A4,PORTABLES_PL!$A:$U,14,FALSE) -> Y | G4: =(F4-B4)/F4 ->  | I4: =(H4-B4)/H4 ->  | K4: =(J4-B4)/J4 ->  | M4: =(L4-B4)/L4 ->  | O4: =(N4-B4)/N4 ->  | Q4: =(P4-B4)/P4 ->  | S4: =(R4-B4)/R4 -> 
A5: PA-PRO64-3002 | B5: =47306/100 -> 473.06 | C5: =VLOOKUP(A5,PORTABLES_PL!$A:$T,13,FALSE) -> 24 | D5: =VLOOKUP(A5,PORTABLES_PL!$A:$S,12,FALSE) -> 23 | E5: =VLOOKUP(A5,PORTABLES_PL!$A:$U,14,FALSE) -> Y
A6: PA-PRO64E-3002 | B6: =56483/100 -> 564.83 | C6: =VLOOKUP(A6,PORTABLES_PL!$A:$T,13,FALSE) -> 24 | D6: =VLOOKUP(A6,PORTABLES_PL!$A:$S,12,FALSE) -> 23 | E6: =VLOOKUP(A6,PORTABLES_PL!$A:$U,14,FALSE) -> Y
A7: PA-PRO90-3002 | B7: =57264/100 -> 572.64 | C7: =VLOOKUP(A7,PORTABLES_PL!$A:$T,13,FALSE) -> 24 | D7: =VLOOKUP(A7,PORTABLES_PL!$A:$S,12,FALSE) -> 23 | E7: =VLOOKUP(A7,PORTABLES_PL!$A:$U,14,FALSE) -> Y
A8: PA-PRO90E-3002 | B8: =64543/100 -> 645.43 | C8: =VLOOKUP(A8,PORTABLES_PL!$A:$T,13,FALSE) -> 24 | D8: =VLOOKUP(A8,PORTABLES_PL!$A:$S,12,FALSE) -> 23 | E8: =VLOOKUP(A8,PORTABLES_PL!$A:$U,14,FALSE) -> Y
A9: PA-PRO123EFI-3001 | B9: =267120/100 -> 2671.2 | C9: =VLOOKUP(A9,PORTABLES_PL!$A:$T,13,FALSE) ->  | D9: =VLOOKUP(A9,PORTABLES_PL!$A:$S,12,FALSE) ->  | E9: =VLOOKUP(A9,PORTABLES_PL!$A:$U,14,FALSE) -> 
A10: PA-GEN50-2003 | B10: N/A | C10: =VLOOKUP(A10,PORTABLES_PL!$A:$T,13,FALSE) -> 25 | D10: =VLOOKUP(A10,PORTABLES_PL!$A:$S,12,FALSE) -> 24 | E10: =VLOOKUP(A10,PORTABLES_PL!$A:$U,14,FALSE) -> Y
A11: PA-PRO64-2002 | B11: N/A | C11: =VLOOKUP(A11,PORTABLES_PL!$A:$T,13,FALSE) -> 22.3 | D11: =VLOOKUP(A11,PORTABLES_PL!$A:$S,12,FALSE) -> 21.4 | E11: =VLOOKUP(A11,PORTABLES_PL!$A:$U,14,FALSE) -> Y
A12: PA-PRO64E-2002 | B12: N/A | C12: =VLOOKUP(A12,PORTABLES_PL!$A:$T,13,FALSE) -> 24 | D12: =VLOOKUP(A12,PORTABLES_PL!$A:$S,12,FALSE) -> 23 | E12: =VLOOKUP(A12,PORTABLES_PL!$A:$U,14,FALSE) -> Y
A13: PA-PRO90-2002 | B13: N/A | C13: =VLOOKUP(A13,PORTABLES_PL!$A:$T,13,FALSE) -> 24 | D13: =VLOOKUP(A13,PORTABLES_PL!$A:$S,12,FALSE) -> 23 | E13: =VLOOKUP(A13,PORTABLES_PL!$A:$U,14,FALSE) -> Y
A14: PA-PRO90E-2002 | B14: N/A | C14: =VLOOKUP(A14,PORTABLES_PL!$A:$T,13,FALSE) -> 24 | D14: =VLOOKUP(A14,PORTABLES_PL!$A:$S,12,FALSE) -> 23 | E14: =VLOOKUP(A14,PORTABLES_PL!$A:$U,14,FALSE) -> Y

Sheet PORTABLES_PARTS (hidden)
F1: Distribution
F2: EFFECTIVE DATE: 4/20/2020
A6: Specification # | B6: Description | C6: MSRP | D6: MAP | E6: List Price | F6: Net Price
A7: PORTABLE GENSETS: ACCESSORIES
A9: 17 755 60-S | B9: Tri-Fuel Regulator Kit (PRO64 models) | I9: =$F$1&A9 -> Distribution17 755 60-S
A10: 17 337 10-S | B10: Natural Gas Fuel Optimizer Kit (PRO64 models) | I10: Distribution17 337 10-S
A11: 17 755 56-S | B11: Natural Gas Tri-Fuel Hose Kit (PRO64 models) | I11: Distribution17 755 56-S
A12: 17 755 57-S | B12: Liquid Propane Tri-Fuel Hose Kit (PRO64 models) | I12: Distribution17 755 57-S
A13: 33 127 01-S | B13: 12 Volt Battery Charger | I13: Distribution33 127 01-S
A14: 33 755 03-S | B14: 60W Solar Panel - folding (eGEN18 compatible) | I14: Distribution33 755 03-S
A15: 33 755 04-S | B15: 150W Panel (5' x 2' x 2") (eGEN18 compatible) | I15: Distribution33 755 04-S
A16: 33 755 05-S | B16: 25' Solar Extension Cord (one pair) | I16: Distribution33 755 05-S
A17: 33 755 43-S | B17: Solar Panel Parallel Connector Kit (eGEN18 compatible) | I17: Distribution33 755 43-S
A18: 25 755 53-S | B18: Wireless remote start/stop kit for PRO12.3EFI | I18: Distribution25 755 53-S
A20: PORTABLE GENSETS: TRANSFER SWITCHES
A22: 37 755 06-S | B22: 6-Circuit Transfer Switch | I22: =$F$1&A22 -> Distribution37 755 06-S
A23: 37 755 07-S | B23: 10-Circuit Transfer Switch | I23: =$F$1&A23 -> Distribution37 755 07-S
